Workbook

Sheet BOARDESK
W3: DATOS
F4: PUNTO DE EQUILIBRIO GENERAL | L4: =+'PUNTO DE EQUILIBRIO'!H10 -> 367.2269383 | P4: HUESPEDES ESPERADOS | W4: =+P5/P5 -> 1
F5: # HUESPED | H5: INVERSION (CT+GT) | J5: INGRESOS OP. | K5: UTILIDAD | P5: 800 | W5: =+P22/P5 -> 0.375
F6: =+'PUNTO DE EQUILIBRIO'!E12 -> 0 | H6: =+'PUNTO DE EQUILIBRIO'!F12 -> 45581752.37 | J6: =+'PUNTO DE EQUILIBRIO'!G12 -> 0 | K6: =+'PUNTO DE EQUILIBRIO'!H12 -> -45581752.37 | W6: =+W4-W5 -> 0.625
E7: Q | F7: =+'PUNTO DE EQUILIBRIO'!E17 -> 367.2269383 | H7: =+'PUNTO DE EQUILIBRIO'!F17 -> 49208409.74 | J7: =+'PUNTO DE EQUILIBRIO'!G17 -> 49208409.74 | K7: =+'PUNTO DE EQUILIBRIO'!H17 -> 0 | M7: Q | P7: ESPERADOS | W7: VELOCIMETRO
F8: =+'PUNTO DE EQUILIBRIO'!E22 -> 800 | H8: =+'PUNTO DE EQUILIBRIO'!F22 -> 53482387.08 | J8: =+'PUNTO DE EQUILIBRIO'!G22 -> 97400000 | K8: =+'PUNTO DE EQUILIBRIO'!H22 -> 43917612.92 | W8: =W5 -> 0.375
N9: GASTOS | W9: 0.03
P10: UTILIDAD ESPERADA | W10: =1.55-SUM(W8:W9) -> 1.145
P11: =+'PUNTO DE EQUILIBRIO'!C21 -> 0.4508995167
D12: DATOS
P13: =+'PUNTO DE EQUILIBRIO'!H22 -> 43917612.92
N17: ESTADO DE RESULTADOS
D21: COSTOS | P21: CLIENTES REALES
P22: 300
N29: ESTADO COSTOS
D30: ABC
C48: Q-ESTANDAR | F48: Q-JUNIOR/SUITE | I48: Q-TWIN | L48: Q-TRIPLE | O48: Q-SENCILLA | R48: Q-GENERAL
C49: =+'PUNTO DE EQUILIBRIO'!$E$46 -> 211.1554895 | D49: 150 | F49: =+'PUNTO DE EQUILIBRIO'!$F$46 -> 64.26471421 | G49: 31 | I49: =+'PUNTO DE EQUILIBRIO'!$G$46 -> 55.08404075 | J49: 10 | L49: =+'PUNTO DE EQUILIBRIO'!$H$46 -> 27.54202038 | M49: 15 | O49: =+'PUNTO DE EQUILIBRIO'!$I$46 -> 9.180673459 | P49: 2 | R49: =+C49+F49+I49+L49+O49 -> 367.2269383 | T49: =+D49+G49+J49+M49+P49 -> 208
C53: 1 | D53: =+D49/C49 -> 0.7103769849 | G53: =+G49/F49 -> 0.4823798002 | J53: =+J49/I49 -> 0.181540785 | M53: =+M49/L49 -> 0.5446223551 | P53: =+P49/O49 -> 0.217848942 | T53: =+T49/R49 -> 0.5664072493
D54: =+C53-D53 -> 0.2896230151 | G54: =+C53-G53 -> 0.5176201998 | J54: =+C53-J53 -> 0.818459215 | M54: =+C53-M53 -> 0.4553776449 | P54: =+C53-P53 -> 0.782151058 | T54: =+C53-T53 -> 0.4335927507

Sheet GASTOS
B2: 5 - GASTOS OPERACIONALES | E2: 5 - GASTOS FIJOS MES | G2: HUESPED | K2: =+BOARDESK!P5 -> 800 | M2: 5 - GASTOS VARIABLES * CLIENTE | O2: CLIENTES PROMEDIO | S2: =+K2 -> 800 | U2: GV. Unit
G3: ESTÁNDAR | H3: SUITE | I3: TWIN | J3: TRIPLE | K3: SENCILLA | O3: ESTÁNDAR | P3: SUITE | Q3: TWIN | R3: TRIPLE | S3: SENCILLA | U3: =+S2 -> 800
B4: 51 -GASTOS DE ADMINISTRACIÓN | E4: 51 -GASTOS DE ADMINISTRACIÓN FIJOS MES | G4: =+'PUNTO DE EQUILIBRIO'!E29 -> 460 | H4: =+'PUNTO DE EQUILIBRIO'!F29 -> 140 | I4: =+'PUNTO DE EQUILIBRIO'!G29 -> 120 | J4: =+'PUNTO DE EQUILIBRIO'!H29 -> 60 | K4: =+'PUNTO DE EQUILIBRIO'!I29 -> 20 | M4: 51 -GASTOS DE ADMINISTRACIÓN | O4: =+G4 -> 460 | P4: =+H4 -> 140 | Q4: =+I4 -> 120 | R4: =+J4 -> 60 | S4: =+K4 -> 20
B5: DETALLE | C5: VALOR | E5: DETALLE | F5: VALOR | G5: VALOR | H5: VALOR | I5: VALOR | J5: VALOR | K5: VALOR | M5: DETALLE | N5: VALOR | O5: VALOR | P5: VALOR | Q5: VALOR | R5: VALOR | S5: VALOR | U5: VALOR
B6: Servicio de energía | C6: =DATOS!D7*40% -> 462380 | E6: Servicio de energía | F6: =+C6*60% -> 277428 | G6: =+(F6/$K$2)*$G$4 -> 159521.1 | H6: =+(F6/$K$2)*$H$4 -> 48549.9 | I6: =+(F6/$K$2)*$I$4 -> 41614.2 | J6: =+(F6/$K$2)*$J$4 -> 20807.1 | K6: =+(F6/$K$2)*$K$4 -> 6935.7 | M6: Servicio de energía | N6: =+C6*40% -> 184952 | O6: =+(N6/$S$2)*$O$4 -> 106347.4 | P6: =+(N6/$S$2)*$P$4 -> 32366.6 | Q6: =+(N6/$S$2)*$Q$4 -> 27742.8 | R6: =+(N6/$S$2)*$R$4 -> 13871.4 | S6: =+(N6/$K$2)*$K$4 -> 4623.8 | U6: =+N6/$U$3 -> 231.19
B7: Servicio de acueducto | C7: =DATOS!D26*40% -> 306390.3333 | E7: Servicio de acueducto | F7: =+C7*60% -> 183834.2 | G7: =+(F7/$K$2)*$G$4 -> 105704.665 | H7: =+(F7/$K$2)*$H$4 -> 32170.985 | I7: =+(F7/$K$2)*$I$4 -> 27575.13 | J7: =+(F7/$K$2)*$J$4 -> 13787.565 | K7: =+(F7/$K$2)*$K$4 -> 4595.855 | M7: Servicio de acueducto | N7: =+C7*40% -> 122556.1333 | O7: =+(N7/$S$2)*$O$4 -> 70469.77667 | P7: =+(N7/$S$2)*$P$4 -> 21447.32333 | Q7: =+(N7/$S$2)*$Q$4 -> 18383.42 | R7: =+(N7/$S$2)*$R$4 -> 9191.71 | S7: =+(N7/$K$2)*$K$4 -> 3063.903333 | U7: =+N7/$U$3 -> 153.1951667
B8: Servicio de gas | C8: =DATOS!D45*40% -> 483352.9333 | E8: Servicio de gas | F8: =+C8*60% -> 290011.76 | G8: 166756.762 | H8: 50752.058 | I8: 43501.764 | J8: 21750.882 | K8: 7250.294 | M8: Servicio de gas | N8: 193341.1733 | O8: 111171.1747 | P8: 33834.70533 | Q8: 29001.176 | R8: 14500.588 | S8: =+(N8/$K$2)*$K$4 -> 4833.529333 | U8: =+N8/$U$3 -> 241.6764667
B9: Gastos Nómina | C9: =+NOMINA!D19+NOMINA!D20+NOMINA!D21+NOMINA!D22 -> 7987889.205 | E9: Gastos Nómina | F9: =+C9 -> 7987889.205 | G9: 4593036.293 | H9: 1397880.611 | I9: 1198183.381 | J9: 599091.6904 | K9: 199697.2301
B10: Arrendamiento | C10: 22000000 | E10: Arrendamiento | F10: =+C10 -> 22000000 | G10: 12650000 | H10: 3850000 | I10: 3300000 | J10: 1650000 | K10: 550000
B11: Salario contador | C11: 1000000 | E11: Salario contador | F11: =+C11 -> 1000000 | G11: 575000 | H11: 175000 | I11: 150000 | J11: 75000 | K11: 25000
B12: Salario Auxiliar Contable | C12: 1000000 | E12: Salario Auxiliar Contable | F12: 1000000 | G12: 575000 | H12: 175000 | I12: 150000 | J12: 75000 | K12: 25000
B13: Salario Auxiliar Administrativo | C13: 1000000 | E13: Salario Auxiliar Administrativo | F13: 1000000 | G13: 575000 | H13: 175000 | I13: 150000 | J13: 75000 | K13: 25000
B14: Salario Administrador | C14: 1000000 | E14: Salario Administrador | F14: 1000000 | G14: 575000 | H14: 175000 | I14: 150000 | J14: 75000 | K14: 25000
B15: Seguridad Social | C15: 1717000 | E15: Seguridad Social | F15: 1717000 | G15: 987275 | H15: 300475 | I15: 257550 | J15: 128775 | K15: 42925
B16: 51 - TOTAL GASTOS DE ADMINISTRACIÓN | C16: =SUM(C6:C15) -> 36957012.47 | E16: 51 - TOTAL GASTOS DE ADMINISTRACIÓN FIJOS | F16: =SUM(F6:F15) -> 36456163.17 | G16: =SUM(G6:G15) -> 20962293.82 | H16: =SUM(H6:H15) -> 6379828.554 | I16: =SUM(I6:I15) -> 5468424.475 | J16: =SUM(J6:J15) -> 2734212.237 | K16: 911404.0791 | M16: 51 - TOTAL GASTOS DE ADMINISTRACIÓN VAR | N16: =SUM(N6:N15) -> 500849.3067 | O16: 287988.3513 | P16: 87648.62867 | Q16: 75127.396 | R16: 37563.698 | S16: 12521.23267 | U16: =SUM(U6:U15) -> 626.0616333
B18: 52 - GASTOS DE VENTAS | E18: 52 - GASTOS DE VENTAS FIJOS MES | G18: =+G4 -> 460 | H18: =+H4 -> 140 | I18: =+I4 -> 120 | J18: =+J4 -> 60 | K18: =+K4 -> 20 | M18: 52 - GASTOS DE VENTAS VARIABLES | O18: =+O4 -> 460 | P18: =+P4 -> 140 | Q18: =+Q4 -> 120 | R18: =+R4 -> 60 | S18: =+S4 -> 20 | U18: =+S2 -> 800
B19: DETALLE | C19: VALOR | E19: DETALLE | F19: VALOR | G19: VALOR | H19: VALOR | I19: VALOR | J19: VALOR | K19: VALOR | M19: DETALLE | N19: VALOR | O19: VALOR | P19: VALOR | Q19: VALOR | R19: VALOR | S19: VALOR | U19: VALOR
B20: PAXENGER | C20: 119000 | M20: PAXENGER | N20: 119000 | O20: =+(N20/$K$2)*$G$4 -> 68425 | P20: =+(N20/$K$2)*$H$4 -> 20825 | Q20: =+(N20/$K$2)*$I$4 -> 17850 | R20: =+(N20/$S$2)*$R$4 -> 8925 | S20: =+(N20/$K$2)*$K$4 -> 2975 | U20: =+N20/$U$18 -> 148.75
B21: BOOKING | C21: 636000 | M21: BOOKING | N21: 636000 | O21: 365700 | P21: =+(N21/$K$2)*$H$4 -> 111300 | Q21: 95400 | R21: 47700 | S21: 15900 | U21: =+N21/$U$18 -> 795
B22: DOMINIO PAGINA WEB | C22: 96000 | M22: DOMINIO PAGINA WEB | N22: 96000 | O22: 55200 | P22: 16800 | Q22: 14400 | R22: 7200 | S22: 2400 | U22: 120
B23: SIIGO | C23: 1110000 | E23: SIIGO | F23: 1110000 | G23: =+(F23/$K$2)*$G$4 -> 638250 | H23: =+(F23/$K$2)*$H$4 -> 194250 | I23: =+(F23/$K$2)*$I$4 -> 166500 | J23: =+(F23/$K$2)*$J$4 -> 83250 | K23: =+(F23/$K$2)*$K$4 -> 27750
B24: 52 - TOTAL GASTO DE VENTAS | C24: =SUM(C20:C23) -> 1961000 | E24: 52 - TOTAL GASTO DE VENTAS FIJOS MES | F24: =SUM(F20:F23) -> 1110000 | G24: =SUM(G20:G23) -> 638250 | H24: 194250 | I24: 166500 | J24: 83250 | K24: 27750 | M24: 52 - TOTAL GASTO DE VENTAS VARIBALES | N24: =SUM(N20:N23) -> 851000 | O24: =SUM(O20:O23) -> 489325 | P24: =SUM(P20:P23) -> 148925 | Q24: =SUM(Q20:Q23) -> 127650 | R24: =SUM(R20:R23) -> 63825 | S24: =SUM(S20:S23) -> 21275 | U24: =SUM(U20:U23) -> 1063.75
B26: 53 - OTROS GASTOS | E26: 53 - OTROS GASTOS FIJOS | G26: 171.6666667 | H26: 75.5 | I26: 57.66666667 | J26: 23.91666667 | K26: 36.25 | M26: 53 - OTROS GASTOS | O26: 171.6666667 | P26: 75.5 | Q26: 57.66666667 | R26: 23.91666667 | S26: 36.25 | U26: =+S2 -> 800
B27: DETALLE | C27: VALOR | E27: DETALLE | F27: VALOR | G27: VALOR | H27: VALOR | I27: VALOR | J27: VALOR | K27: VALOR | M27: DETALLE | N27: VALOR | O27: VALOR | P27: VALOR | Q27: VALOR | R27: VALOR | S27: VALOR | U27: VALOR
B28: PAPELERÍA | C28: ='[1]GASTOS CAJA MENOR'!$D$102 -> 245800 | M28: PAPELERÍA | N28: ='[1]GASTOS CAJA MENOR'!$D$102 -> 245800 | O28: =+(N28/$K$2)*$G$4 -> 141335 | P28: =+(N28/$K$2)*$H$4 -> 43015 | Q28: =+(N28/$K$2)*$I$4 -> 36870 | R28: =+(N28/$S$2)*$R$4 -> 18435 | S28: =+(N28/$K$2)*$K$4 -> 6145 | U28: =+N28/$U$26 -> 307.25
B29: TARJETA ÉXITO | C29: 450000 | M29: TARJETA ÉXITO | N29: 450000 | O29: 258750 | P29: =+(N29/$K$2)*$H$4 -> 78750 | Q29: =+(N29/$K$2)*$I$4 -> 67500 | R29: 33750 | S29: =+(N29/$K$2)*$K$4 -> 11250 | U29: =+N29/$U$26 -> 562.5
B30: MANTENIMIENTO | C30: 1210000 | M30: MANTENIMIENTO | N30: 1210000 | O30: 695750 | P30: 211750 | Q30: 181500 | R30: 90750 | S30: 30250 | U30: 1512.5
B31: DOTACIÓN | C31: ='[1]GASTOS CAJA MENOR'!$D$178 -> 116900 | M31: DOTACIÓN | N31: ='[1]GASTOS CAJA MENOR'!$D$178 -> 116900 | O31: 67217.5 | P31: 20457.5 | Q31: 17535 | R31: 8767.5 | S31: 2922.5 | U31: 146.125
B32: 53 - TOTAL OTROS GASTOS | C32: =SUM(C28:C31) -> 2022700 | E32: 53 - TOTAL OTROS GASTOS | F32: =SUM(F28:F31) -> 0 | G32: =SUM(G28:G31) -> 0 | H32: 0 | I32: 0 | J32: 0 | K32: 0 | M32: 53 - TOTAL OTROS GASTOS | N32: =SUM(N28:N31) -> 2022700 | O32: =SUM(O28:O31) -> 1163052.5 | P32: =SUM(P28:P31) -> 353972.5 | Q32: =SUM(Q28:Q31) -> 303405 | R32: =SUM(R28:R31) -> 151702.5 | S32: =SUM(S28:S31) -> 50567.5 | U32: =SUM(U28:U31) -> 2528.375
B34: 5 - TOTAL GASTOS 51+52+53 | C34: =+C16+C24+C32 -> 40940712.47 | E34: 5 - TOTAL GASTOS FIJOS MENSUALES | F34: =F16+F24+F32 -> 37566163.17 | G34: =G16+G24+G32 -> 21600543.82 | H34: 6574078.554 | I34: 5634924.475 | J34: 2817462.237 | K34: 939154.0791 | M34: 5 - TOTAL GASTOS VARIABLES | N34: =N16+N24+N32 -> 3374549.307 | O34: =O16+O24+O32 -> 1940365.851 | P34: 590546.1287 | Q34: 506182.396 | R34: 253091.198 | S34: 84363.73267 | U34: =U16+U24+U32 -> 4218.186633
N36: GV. Unit
N37: =+N34/S2 -> 4218.186633
B42: BOARDESK | E42: BOARDESK

Sheet COSTOS
B2: 7 - COSTOS DE PRODUCCIÓN | K2: =+BOARDESK!P5 -> 800
B4: 71 - MATERIA PRIMA | I4: CF | K4: CV
B5: 710501 - MATERIA PRIMA DIRECTA CAMARERÍA
B6: ELEMENTOS DE ASEO | K6: HUESPED
B7: CANTIDAD | C7: ARTÍCULO | D7: UNIDAD DE MEDIDA | E7: VALOR | F7: ANUAL | G7: MENSUAL | I7: MENSUAL
B8: 6 | C8: ESCOBAS | D8: UNIDAD | E8: 6500 | F8: =E8*B8 -> 39000 | G8: =+F8/12 -> 3250 | I8: =+G8 -> 3250
B9: 10 | C9: TRAPEROS | D9: UNIDAD | E9: 12300 | F9: =E9*B9 -> 123000 | G9: =+F9/12 -> 10250 | I9: =+G9 -> 10250
B10: 2 | C10: RECOGEDORES | D10: UNIDAD | E10: 4800 | F10: =E10*B10 -> 9600 | G10: 800 | I10: 800
B11: 24 | C11: AMBIENTADOR | D11: UNIDAD | E11: 6700 | F11: =E11*B11 -> 160800 | G11: 13400 | I11: 13400
B12: 2 | C12: JABÓN TOCADOR CAJA *121 | D12: UNIDAD | E12: 133000 | F12: =B12*E12 -> 266000 | G12: 22166.66667 | K12: =+G12 -> 22166.66667
B13: 4 | C13: DETERGENTE BOLSA *1000 GR | D13: UNIDAD | E13: 17200 | F13: =B13*E13 -> 68800 | G13: 5733.333333 | K13: =+G13 -> 5733.333333
B14: 15 | C14: PAPEL HIGIENICO PACA *12 UNIDADES | D14: UNIDAD | E14: 19990 | F14: =B14*E14 -> 299850 | G14: 24987.5 | K14: 24987.5
B15: 7105 - MATERIA PRIMA DIRECTA CAMARERÍA | E15: =SUM(E8:E14) -> 200490 | F15: =SUM(F8:F14) -> 967050 | G15: =SUM(G8:G14) -> 80587.5 | I15: =SUM(I8:I14) -> 27700 | K15: =SUM(K12:K14) -> 52887.5
B16: 710502 - INSUMOS DESAYUNOS
B17: CANTIDAD | C17: ARTÍCULO | D17: UNIDAD DE MEDIDA | E17: DATO | F17: VALOR MES | G17: DIARIO | I17: MENSUAL | K17: HUESPED
B18: 47 | C18: HUEVOS | D18: Panal * 30 | E18: 16800 | F18: =+G18*12 -> 315840 | G18: =+(E18/30)*B18 -> 26320 | K18: =+F18 -> 315840
B19: 9 | C19: CAFÉ | D19: Libra | E19: 13200 | F19: =B19*E19 -> 118800 | G19: =+(E19/30)*B19 -> 3960 | K19: =+F19 -> 118800
B20: 9 | C20: CHOCOLATE | D20: Libra | E20: 13380 | F20: 120420 | G20: 4014 | K20: 120420
B21: 44 | C21: AREPAS | D21: Paquete * 10 | E21: 3950 | F21: 173800 | G21: 5793.333333 | K21: 173800
B22: 218 | C22: PAN UNIDAD | D22: UNIDAD | E22: 400 | F22: 87200 | G22: 2906.666667 | K22: 87200
B23: 12 | C23: LECHE | D23: Paca * 6 | E23: 23990 | F23: 287880 | G23: 9596 | K23: 287880
B24: TOTAL INSUMOS DESAYUNO | E24: =SUM(E18:E23) -> 71720 | F24: =SUM(F18:F23) -> 1103940 | G24: =SUM(G18:G23) -> 52590 | I24: =SUM(I18:I23) -> 0 | K24: =SUM(K18:K23) -> 1103940
B25: 7110 - MATERIA PRIMA INDIRECTA CAMARERÍA
B26: ELEMENTOS DE ASEO
B27: CANTIDAD | C27: ARTÍCULO | E27: UNIDAD DE MEDIDA | F27: MENSUAL | G27: DIARIO | I27: MENSUAL | K27: HUESPED
B28: 1 | C28: OTROS ELEMENTOS CAMARERÍA | E28: N/A | F28: 535054 | G28: =+F28/30 -> 17835.13333 | K28: =+F28 -> 535054
B29: 1 | C29: OTROS INSUMOS DESAYUNOS | E29: N/A | F29: 691919 | G29: =+F29/30 -> 23063.96667 | K29: =+F29 -> 691919
K30: 0
B31: 7110 - MATERIA PRIMA INDIRECTA CAMARERÍA | F31: =SUM(F28:F30) -> 1226973 | G31: =SUM(G28:G30) -> 40899.1 | I31: =SUM(I28:I30) -> 0 | K31: =SUM(K28:K30) -> 1226973
B32: 71 - TOTAL COSTOS MATERIA PRIMA (7105 + 7110) | F32: =+G15+F24+F31 -> 2411500.5 | G32: =+G15+G24+G31 -> 174076.6 | I32: =+I15+I24+I31 -> 27700 | K32: =+K15+K24+K31 -> 2383800.5
F33: MENSUAL
B35: 72. MANO DE OBRA
B36: 720501 - MANO DE OBRA DIRECTA
B37: CAMAS
B38: CANTIDAD | C38: DESCRIPCIÓN | F38: MENSUAL | G38: DIARIO | I38: MENSUAL | K38: HUESPED
B39: 2 | C39: CAMARERIA | F39: =+NOMINA!D19+NOMINA!D22 -> 3993944.603 | G39: =+F39/30 -> 133131.4868 | I39: =+F39 -> 3993944.603
B40: 2 | C40: RECEPCIÓN | F40: =+NOMINA!D20+NOMINA!D21 -> 3993944.603 | G40: =+F40/30 -> 133131.4868 | I40: =+F40 -> 3993944.603
G41: 0 | I41: =+G41/$K$2 -> 0
B42: 720501- TOTAL MANO DE OBRA DIRECTA | F42: =SUM(F39:F40) -> 7987889.205 | G42: =SUM(G39:G40) -> 266262.9735 | I42: =SUM(I39:I41) -> 7987889.205 | K42: =SUM(K39:K41) -> 0
B43: 72 - TOTAL COSTOS MANO DE OBRA (7205 + 7210) | F43: =+F42 -> 7987889.205 | G43: =+G42 -> 266262.9735 | I43: =+I42 -> 7987889.205 | K43: =+K42 -> 0
B45: 3. COSTOS INDIRECTOS DE FABRICACIÓN
B46: CLIENTES
B47: CANTIDAD | C47: SERVICIO | F47: MENSUAL | G47: DIARIO | I47: MENSUAL | K47: HUESPED
C48: ACUEDUCTO | F48: =DATOS!D26*60% -> 459585.5 | G48: =+F48/30 -> 15319.51667 | K48: =+F48 -> 459585.5
C49: ENERGIA | F49: =DATOS!D7*60% -> 693570 | G49: =+F49/30 -> 23119 | K49: =+F49 -> 693570
C50: GAS | F50: =DATOS!D45*60% -> 725029.4 | G50: 24167.64667 | K50: 725029.4
C51: CELULAR | F51: 32000 | G51: 1066.666667 | K51: 32000
C52: DOCLECLICK | F52: 232100 | G52: 7736.666667 | K52: 232100
B53: TOTAL CIF | F53: =SUM(F48:F52) -> 2142284.9 | G53: =SUM(G48:G52) -> 71409.49667 | I53: =SUM(I48:I52) -> 0 | K53: =SUM(K48:K52) -> 2142284.9
B55: 7 - COSTOS DE PRODUCCIÓN MES (71+72+73) | F55: =+F53+F43+F32 -> 12541674.61 | I55: =+I32+I43+I53 -> 8015589.205 | K55: =+K32+K43+K53 -> 4526085.4
I56: CFT | K56: CVT
F58: =+F55/K2 -> 15677.09326 | I58: =+I55/K2 -> 10019.48651 | K58: =+K55/K2 -> 5657.60675
F59: C Unitario | I59: CF Unitario | K59: CV Unitario

Sheet PUNTO DE EQUILIBRIO
B2: PUNTO DE EQUILIBRIO ESPECÍFICO PROMEDIO
B4: PUNTO DE EQUILIBRIO
E9: =+E22-E17 -> 432.7730617 | F9: =+E9/5 -> 86.55461233
B10: COSTOS FIJOS TOTALES | C10: =+COSTOS!I55 -> 8015589.205 | E10: =+B2 -> PUNTO DE EQUILIBRIO ESPECÍFICO PROMEDIO | H10: =+C12/(C19-C16) -> 367.2269383
B11: GASTOS FIJOS TOTALES | C11: =+GASTOS!F34 -> 37566163.17 | E11: # HUESPED | F11: INVERSION (CT+GT) | G11: INGRESOS OPERACIONALES | H11: UTILIDAD
B12: CF + GF | C12: =+C11+C10 -> 45581752.37 | E12: 0 | F12: =+(E12*$C$16)+$C$12 -> 45581752.37 | G12: =+E12*$C$19 -> 0 | H12: =+G12-F12 -> -45581752.37
E13: =+E17/5 -> 73.44538767 | F13: =+(E13*$C$16)+$C$12 -> 46307083.84 | G13: =+E13*$C$19 -> 9841681.948 | H13: =+G13-F13 -> -36465401.9
B14: COSTO Variable Unitario | C14: =+COSTOS!K58 -> 5657.60675 | E14: =+E13*2 -> 146.8907753 | F14: 47032415.32 | G14: 19683363.9 | H14: -27349051.42
B15: GASTO Varibale Unitario | C15: =+GASTOS!U34 -> 4218.186633 | E15: =+E13*3 -> 220.336163 | F15: 47757746.79 | G15: 29525045.84 | H15: -18232700.95
B16: Cvu + Gvu | C16: =+C38 -> 9875.793383 | E16: =+E13*4 -> 293.7815507 | F16: 48483078.26 | G16: 39366727.79 | H16: -9116350.474
E17: =+H10 -> 367.2269383 | F17: 49208409.74 | G17: 49208409.74 | H17: 0
B18: HUESPEDES ESPERADOS | C18: =BOARDESK!P5 -> 800 | E18: =+E17+F9 -> 453.7815507 | F18: 50063205.21 | G18: 60806727.79 | H18: 10743522.58
B19: PRECIO DE VENTA PROMEDIO | C19: =+C31 -> 134000 | E19: =+E18+F9 -> 540.336163 | F19: 50918000.67 | G19: 72405045.84 | H19: 21487045.17
B20: INGRESOS OPERACIONALES (HUESPEDES) | C20: =+G22 -> 97400000 | E20: =+E19+F9 -> 626.8907753 | F20: 51772796.14 | G20: 84003363.9 | H20: 32230567.75
B21: MARGEN DE UTILIDAD | C21: =+H22/G22 -> 0.4508995167 | E21: =+E20+F9 -> 713.4453877 | F21: 52627591.61 | G21: 95601681.95 | H21: 42974090.34
B22: UTILIDAD ESPERADA | C22: =+C20*C21 -> 43917612.92 | E22: =+C18 -> 800 | F22: 53482387.08 | G22: =+'ESTADO DE RESULTADOS'!F10 -> 97400000 | H22: 43917612.92
E26: ESTÁNDAR | F26: SUITE | G26: TWIN | H26: TRIPLE | I26: SENCILLA | J26: T. HAB
E27: =+DATOS!I5 -> 23 | F27: =+DATOS!I6 -> 7 | G27: =+DATOS!I7 -> 6 | H27: =+DATOS!I8 -> 3 | I27: =+DATOS!I9 -> 1 | J27: =SUM(E27:I27) -> 40
E28: =+E27/J27 -> 0.575 | F28: =+F27/J27 -> 0.175 | G28: =+G27/J27 -> 0.15 | H28: =+H27/J27 -> 0.075 | I28: =+I27/J27 -> 0.025 | J28: =SUM(E28:I28) -> 1
C29: HUESPED ESPERADOS | E29: =+$C$18*E28 -> 460 | F29: =+$C$18*F28 -> 140 | G29: =+$C$18*G28 -> 120 | H29: =+$C$18*H28 -> 60 | I29: =+$C$18*I28 -> 20 | J29: =SUM(E29:I29) -> 800 | K29: ←Proyección de Huesped por Habitación
C30: Tarifa Promedio | E30: $ ESTÁNDAR | F30: $ SUITE | G30: $ TWIN | H30: $ TRIPLE | I30: $ SENCILLA | J30: HUESPED ESPERADOS
C31: =(SUM(E31:I31))/5 -> 134000 | E31: =+DATOS!J5 -> 100000 | F31: =+DATOS!J6 -> 130000 | G31: =+DATOS!J7 -> 180000 | H31: =+DATOS!J8 -> 160000 | I31: =+DATOS!J9 -> 100000
B32: COSTOS FIJOS TOTALES | C32: =+COSTOS!I55 -> 8015589.205 | E32: =+$C$32*E28 -> 4608963.793 | F32: =+$C$32*F28 -> 1402728.111 | G32: =+$C$32*G28 -> 1202338.381 | H32: =+$C$32*H28 -> 601169.1904 | I32: =+$C$32*I28 -> 200389.7301 | J32: =+J29 -> 800
B33: GASTOS FIJOS TOTALES | C33: =+GASTOS!F34 -> 37566163.17 | E33: =+GASTOS!G34 -> 21600543.82 | F33: =+GASTOS!H34 -> 6574078.554 | G33: =+GASTOS!I34 -> 5634924.475 | H33: =+GASTOS!J34 -> 2817462.237 | I33: =+GASTOS!K34 -> 939154.0791
B34: CF + GF | C34: =+C32+C33 -> 45581752.37 | E34: =+E32+E33 -> 26209507.61 | F34: =+F32+F33 -> 7976806.665 | G34: 6837262.856 | H34: 3418631.428 | I34: 1139543.809
B36: COSTO Varibale Unitario | C36: =+COSTOS!K58 -> 5657.60675 | E36: =+$C$36*E28 -> 3253.123881 | F36: =+$C$36*F28 -> 990.0811813 | G36: =+$C$36*G28 -> 848.6410125 | H36: =+$C$36*H28 -> 424.3205063 | I36: =+$C$36*I28 -> 141.4401688 | J36: UN SOLO HUESPED
B37: GASTOS Variable Unitario | C37: =+GASTOS!U34 -> 4218.186633 | E37: =+$C$37*E28 -> 2425.457314 | F37: =+$C$37*F28 -> 738.1826608 | G37: =+$C$37*G28 -> 632.727995 | H37: =+$C$37*H28 -> 316.3639975 | I37: =+$C$37*I28 -> 105.4546658
B38: CVu + Gvu | C38: =+C36+C37 -> 9875.793383 | E38: =+E36+E37 -> 5678.581195 | F38: =+F36+F37 -> 1728.263842 | G38: =+G36+G37 -> 1481.369007 | H38: =+H36+H37 -> 740.6845037 | I38: =+I36+I37 -> 246.8948346
B40: COSTO VARIABLES TOTALES | C40: =+C36*$J$40 -> 4526085.4 | E40: =+E36*$J$40 -> 2602499.105 | F40: =+F36*$J$40 -> 792064.945 | G40: 678912.81 | H40: 339456.405 | I40: 113152.135 | J40: =+J32 -> 800
B41: GASTOS VARIABLES TOTALES | C41: =+C37*J40 -> 3374549.307 | E41: =+E37*$J$40 -> 1940365.851 | F41: =+F37*$J$40 -> 590546.1287 | G41: 506182.396 | H41: 253091.198 | I41: 84363.73267
B42: CVT + CFT | C42: =+C40+C41 -> 7900634.707 | E42: =+E40+E41 -> 4542864.956 | F42: =+F40+F41 -> 1382611.074 | G42: =+G40+G41 -> 1185095.206 | H42: =+H40+H41 -> 592547.603 | I42: =+I40+I41 -> 197515.8677
C44: Q PROMEDIO | E44: $ ESTÁNDAR | F44: $ SUITE | G44: $ TWIN | H44: $ TRIPLE | I44: $ SENCILLA | J44: Q GENERAL
B45: HUESPEDES ESPERADOS | C45: =+J40 -> 800 | E45: =+E29 -> 460 | F45: =+F29 -> 140 | G45: 120 | H45: 60 | I45: 20 | J45: =SUM(E45:I45) -> 800
B46: PUNTO DE EQUILIBRIO | C46: =+C34/(C31-C38) -> 367.2269383 | E46: =+C46*E28 -> 211.1554895 | F46: =+C46*F28 -> 64.26471421 | G46: =+C46*G28 -> 55.08404075 | H46: =+C46*H28 -> 27.54202038 | I46: =+C46*I28 -> 9.180673459 | J46: =SUM(E46:I46) -> 367.2269383

Sheet DATOS
B2: HOTEL SAN JERÓNIMO | G2: HOTEL SAN JERONIMO | L2: HUESPEDES POR MES | Q2: HABITACIÓN ESTANDAR | V2: HABITACIÓN SUPERIOR/JUNIOR SUITE | Z2: HABITACIÓN TWIN | AE2: HABITACIÓN TRIPLE | AJ2: HABITACIÓN SENCILLA
B3: SERVICIO DE ENERGIA | G3: TARIFAS A 2022 | L3: MES | N3: CANTIDAD | O3: PROMEDIO MENSUAL | Q3: MES | R3: N° VECES VENDIDA | T3: PROMEDIO MENSUAL | V3: MES | W3: N° VECES VENDIDA | X3: PROMEDIO MENSUAL | Z3: MES | AA3: N° VECES VENDIDA | AC3: PROMEDIO MENSUAL | AE3: MES | AF3: N° VECES VENDIDA | AH3: PROMEDIO MENSUAL | AJ3: MES | AK3: N° VECES VENDIDA | AM3: PROMEDIO MENSUAL
B4: 2022 | G4: TIPO DE HABITACIÓN | I4: N° HABITACIÓN | J4: TARIFA
B5: MES | C5: VALOR | D5: PROMEDIO PONDERADO ENERGIA | G5: ESTANDAR | I5: 23 | J5: 100000 | L5: ENERO | N5: 499 | O5: =N17/12 -> 544.8333333 | Q5: ENERO | R5: 109 | T5: =R17/12 -> 171.6666667 | V5: ENERO | W5: 76 | X5: =W17/12 -> 75.5 | Z5: ENERO | AA5: 54 | AC5: =AA17/12 -> 57.66666667 | AE5: ENERO | AF5: 22 | AH5: =AF17/12 -> 23.91666667 | AJ5: ENERO | AK5: 33 | AM5: =AK17/12 -> 36.25
B6: ENERO | C6: ='[2]GASTOS CAJA MENOR'!$L$8 -> 1047000 | G6: SUPERIOR/JUNIOR SUITE | I6: 7 | J6: 130000 | L6: FEBRERO | N6: 376 | Q6: FEBRERO | R6: 115 | V6: FEBRERO | W6: 69 | Z6: FEBRERO | AA6: 21 | AE6: FEBRERO | AF6: 19 | AJ6: FEBRERO | AK6: 24
B7: FEBRERO | C7: ='[3]GASTOS CAJA MENOR'!$L$18 -> 1180000 | D7: =C18/12 -> 1155950 | G7: TWIN | I7: 6 | J7: 180000 | L7: MARZO | N7: 401 | Q7: MARZO | R7: 149 | V7: MARZO | W7: 51 | Z7: MARZO | AA7: 37 | AE7: MARZO | AF7: 33 | AJ7: MARZO | AK7: 22
B8: MARZO | C8: ='[4]GASTOS CAJA MENOR'!$L$19 -> 1091600 | G8: TRIPLE | I8: 3 | J8: 160000 | L8: ABRIL | N8: 734 | Q8: ABRIL | R8: 194 | V8: ABRIL | W8: 102 | Z8: ABRIL | AA8: 49 | AE8: ABRIL | AF8: 31 | AJ8: ABRIL | AK8: 11
B9: ABRIL | C9: ='[5]GASTOS CAJA MENOR'!$L$16 -> 1048400 | G9: SENCILLA | I9: 1 | J9: 100000 | L9: MAYO | N9: 677 | Q9: MAYO | R9: 166 | V9: MAYO | W9: 81 | Z9: MAYO | AA9: 27 | AE9: MAYO | AF9: 26 | AJ9: MAYO | AK9: 47
B10: MAYO | C10: ='[6]GASTOS CAJA MENOR'!$L$13 -> 1179300 | G10: TOTAL HABITACIONES | I10: =SUM(I5:I9) -> 40 | L10: JUNIO | N10: 478 | Q10: JUNIO | R10: 201 | V10: JUNIO | W10: 78 | Z10: JUNIO | AA10: 66 | AE10: JUNIO | AF10: 27 | AJ10: JUNIO | AK10: 26
B11: JUNIO | C11: ='[7]GASTOS CAJA MENOR'!$L$15 -> 1208700 | L11: JULIO | N11: 589 | Q11: JULIO | R11: 177 | V11: JULIO | W11: 74 | Z11: JULIO | AA11: 91 | AE11: JULIO | AF11: 20 | AJ11: JULIO | AK11: 56
B12: JULIO | C12: 1026600 | L12: AGOSTO | N12: 698 | Q12: AGOSTO | R12: 198 | V12: AGOSTO | W12: 70 | Z12: AGOSTO | AA12: 70 | AE12: AGOSTO | AF12: 19 | AJ12: AGOSTO | AK12: 54
B13: AGOSTO | C13: 1169900 | L13: SEPTIEMBRE | N13: 445 | Q13: SEPTIEMBRE | R13: 231 | V13: SEPTIEMBRE | W13: 78 | Z13: SEPTIEMBRE | AA13: 55 | AE13: SEPTIEMBRE | AF13: 11 | AJ13: SEPTIEMBRE | AK13: 29
B14: SEPTIEMBRE | C14: ='[8]GASTOS CAJA MENOR'!$L$21 -> 1200700 | L14: OCTUBRE | N14: 506 | Q14: OCTUBRE | R14: 143 | V14: OCTUBRE | W14: 66 | Z14: OCTUBRE | AA14: 61 | AE14: OCTUBRE | AF14: 18 | AJ14: OCTUBRE | AK14: 44
B15: OCTUBRE | C15: ='[9]GASTOS CAJA MENOR'!$L$15 -> 1286500 | L15: NOVIEMBRE | N15: 621 | Q15: NOVIEMBRE | R15: 183 | V15: NOVIEMBRE | W15: 73 | Z15: NOVIEMBRE | AA15: 73 | AE15: NOVIEMBRE | AF15: 17 | AJ15: NOVIEMBRE | AK15: 21
B16: NOVIEMBRE | C16: ='[10]GASTOS CAJA MENOR'!$L$18 -> 1270000 | L16: DICIEMBRE | N16: 514 | Q16: DICIEMBRE | R16: 194 | V16: DICIEMBRE | W16: 88 | Z16: DICIEMBRE | AA16: 88 | AE16: DICIEMBRE | AF16: 44 | AJ16: DICIEMBRE | AK16: 68
B17: DICIEMBRE | C17: ='[11]GASTOS CAJA MENOR'!$L$14 -> 1162700 | E17: BOARDESK | L17: TOTAL | N17: =SUM(N5:N16) -> 6538 | Q17: TOTAL | R17: =SUM(R5:S16) -> 2060 | V17: TOTAL | W17: =SUM(W5:W16) -> 906 | Z17: TOTAL | AA17: =SUM(AA5:AB16) -> 692 | AE17: TOTAL | AF17: =SUM(AF5:AG16) -> 287 | AJ17: TOTAL | AK17: =SUM(AK5:AL16) -> 435
B18: TOTAL | C18: =SUM(C6:C17) -> 13871400 | L18: PROMEDIO DIARIO | O18: =+O5/30 -> 18.16111111 | Q18: PROMEDIO DIARIO | T18: =T5/30 -> 5.722222222 | V18: PROMEDIO DIARIO | X18: =X5/30 -> 2.516666667 | Z18: PROMEDIO DIARIO | AC18: =AC5/30 -> 1.922222222 | AE18: PROMEDIO DIARIO | AH18: =AH5/30 -> 0.7972222222 | AJ18: PROMEDIO DIARIO | AM18: =AM5/30 -> 1.208333333
B21: HOTEL SAN JERÓNIMO
B22: SERVICIO DE ACUEDUCTO
B23: 2022
B24: MES | C24: VALOR | D24: PROMEDIO PONDERADO ACUEDUCTO
B25: ENERO | C25: ='[2]GASTOS CAJA MENOR'!$L$20 -> 710210
B26: FEBRERO | C26: ='[3]GASTOS CAJA MENOR'!$L$21 -> 746000 | D26: =C37/12 -> 765975.8333
B27: MARZO | C27: ='[4]GASTOS CAJA MENOR'!$L$30 -> 645360
B28: ABRIL | C28: ='[5]GASTOS CAJA MENOR'!$L$25 -> 639460
B29: MAYO | C29: ='[6]GASTOS CAJA MENOR'!$L$25 -> 752900
B30: JUNIO | C30: ='[7]GASTOS CAJA MENOR'!$L$24 -> 399200
B31: JULIO | C31: 1014550
B32: AGOSTO | C32: 888670
B33: SEPTIEMBRE | C33: ='[8]GASTOS CAJA MENOR'!$L$33 -> 999800
B34: OCTUBRE | C34: ='[9]GASTOS CAJA MENOR'!$L$26 -> 784280
B35: NOVIEMBRE | C35: ='[10]GASTOS CAJA MENOR'!$L$28 -> 777280
B36: DICIEMBRE | C36: ='[11]GASTOS CAJA MENOR'!$L$27 -> 834000
B37: TOTAL | C37: =SUM(C25:C36) -> 9191710
B40: HOTEL SAN JERÓNIMO
B41: SERVICIO DE GAS
B42: 2022
B43: MES | C43: VALOR | D43: PROMEDIO PONDERADO GAS
B44: ENERO | C44: ='[2]GASTOS CAJA MENOR'!$L$15+'[2]GASTOS CAJA MENOR'!$L$19+'[2]GASTOS CAJA MENOR'!$L$30+'[2]GASTOS CAJA MENOR'!$L$36 -> 1200000
B45: FEBRERO | C45: ='[3]GASTOS CAJA MENOR'!$L$8+'[3]GASTOS CAJA MENOR'!$L$14+'[3]GASTOS CAJA MENOR'!$L$20+'[3]GASTOS CAJA MENOR'!$L$27 -> 802000 | D45: =C56/12 -> 1208382.333
B46: MARZO | C46: ='[4]GASTOS CAJA MENOR'!$L$8+'[4]GASTOS CAJA MENOR'!$L$21+'[4]GASTOS CAJA MENOR'!$L$33+'[4]GASTOS CAJA MENOR'!$L$34+'[4]GASTOS CAJA MENOR'!$L$37 -> 1600000
B47: ABRIL | C47: ='[5]GASTOS CAJA MENOR'!$L$17+'[5]GASTOS CAJA MENOR'!$L$28+'[5]GASTOS CAJA MENOR'!$L$38+'[5]GASTOS CAJA MENOR'!$L$42 -> 1000000
B48: MAYO | C48: ='[6]GASTOS CAJA MENOR'!$L$10+'[6]GASTOS CAJA MENOR'!$L$19+'[6]GASTOS CAJA MENOR'!$L$30+'[6]GASTOS CAJA MENOR'!$L$31 -> 1100000
B49: JUNIO | C49: ='[7]GASTOS CAJA MENOR'!$L$8+'[7]GASTOS CAJA MENOR'!$L$16+'[7]GASTOS CAJA MENOR'!$L$28+'[7]GASTOS CAJA MENOR'!$L$33 -> 1000550
B50: JULIO | C50: =400000+399000+400000 -> 1199000
B51: AGOSTO | C51: =400000+299600+300000 -> 999600
B52: SEPTIEMBRE | C52: ='[8]GASTOS CAJA MENOR'!$L$12+'[8]GASTOS CAJA MENOR'!$L$20+'[8]GASTOS CAJA MENOR'!$L$25+'[8]GASTOS CAJA MENOR'!$L$34+'[8]GASTOS CAJA MENOR'!$L$43 -> 1800000
B53: OCTUBRE | C53: ='[9]GASTOS CAJA MENOR'!$L$27+'[9]GASTOS CAJA MENOR'!$L$28+'[9]GASTOS CAJA MENOR'!$L$29+'[9]GASTOS CAJA MENOR'!$L$33 -> 999113
B54: NOVIEMBRE | C54: ='[10]GASTOS CAJA MENOR'!$L$9+'[10]GASTOS CAJA MENOR'!$L$17+'[10]GASTOS CAJA MENOR'!$L$27+'[10]GASTOS CAJA MENOR'!$L$29 -> 1200000
B55: DICIEMBRE | C55: ='[11]GASTOS CAJA MENOR'!$L$10+'[11]GASTOS CAJA MENOR'!$L$15+'[11]GASTOS CAJA MENOR'!$L$26+'[11]GASTOS CAJA MENOR'!$L$32+'[11]GASTOS CAJA MENOR'!$L$35 -> 1600325
B56: TOTAL | C56: =SUM(C44:C55) -> 14500588
B59: EVENTOS
B61: FECHA | C61: VALOR
B62: 2022-02-05 | C62: 1200000
B63: 2022-02-22 | C63: 250000
B64: 2022-03-04 | C64: 100000
B65: 2022-03-08 | C65: 200000
B66: 2022-04-19 | C66: 350000
B67: 2022-04-25 | C67: 250000
B68: 2022-04-30 | C68: 1200000
B69: 2022-06-08 | C69: 370000
B70: 2022-06-11 | C70: 1200000
B71: 2022-07-09 | C71: 350000
B72: 2022-09-28 | C72: 250000
B73: 2022-11-06 | C73: 1000000
B74: 2022-12-17 | C74: 250000
B75: 2022-12-30 | C75: 250000
B76: TOTAL | C76: =SUM(C62:C75) -> 7220000

Sheet NOMINA
C2: MES | E2: ENERO | F2: AÑO | G2: 2023
C4: DATOS
C5: SUELDO MINIMO 2023 | E5: 1160000 | F5: SALUD ADO | G5: 0.04
C6: AUXILIO DE TRANSPORTE | E6: 140606 | F6: SALUD ADOR | G6: 0.08
C7: SUBSIDIO ALIMENTACION | E7: 0 | F7: PENSION ADO. | G7: 0.0375
C8: AUX.FAMILIAR | E8: 0 | F8: PENSION ADOR. | G8: 0.1125
C9: RECARGO NOCTURNO | E9: 0 | F9: C.C.,SENA,ICBF | G9: 0.09
A10: BOARDESK | C10: HORAS EXTRA DIURNA | E10: 1.25 | F10: PRIMA | G10: 0.0833
C11: HORAS EXTRA NOCTURNA | E11: 1.75 | F11: CESANTIAS | G11: 0.0833
C12: DOMINICALES | E12: 1.75 | F12: INT CESANTIAS | G12: 0.01
F13: VACACIONES | G13: 0.0417
F14: ARL | G14: 0.0052 | U14: M | Z14: R
F15: FONDO SOLIDAR | G15: 0.01 | M15: F | N15: G | P15: I | Q15: J | R15: K | S15: K` | T15: L | U15: (H-L) | V15: N | W15: O | X15: P | Y15: Q | Z15: (H+Q) | AA15: S | AC15: U | AD15: V | AE15: W
D16: TOTAL | M16: DESCUENTOS | N16: INCAPACIDADES | O16: H | P16: (A*4%) | Q16: (A*3,75%) | R16: (A*1%) | S16: (A*1%) | T16: (I+J+K) | U16: VALOR A | V16: (A*8%) | W16: (A*11,25%) | X16: 0.09 | Y16: (N+O+P) | Z16: SUB TOTAL | AA16: ((A-F-G)/12 | AB16: T | AC16: (X/2) | AD16: (X/2) | AE16: (S+T+U+V) | AF16: X | AG16: Y | AH16: Z | AI16: TOTAL
D17: NOMINA | F17: A | I17: B | J17: C | K17: D | L17: E | M17: HORAS NO | N17: SUPERIORES | O17: (A+B+C+D+E-F-G) | P17: DEDUCCIONES EMPLEADO | T17: TOTAL | U17: CANCELAR A | V17: EMPLEADOR | Y17: PAGOS | Z17: NOMINA | AA17: PRIMAS Y BONIFICACIONES | AE17: TOTAL | AF17: X | AG17: (X*1%) | AH17: (H*4,17%) | AI17: NOMINA
A18: No. | B18: C.C./CÓDIGO | C18: EMPLEADO | D18: MENSUAL | E18: CARGO | F18: SALARIO | G18: DIARIO | H18: HORA | I18: SUB.FAMILIAR | J18: AUX.TRANSPOR | K18: SUBS.ALIMENT | L18: H.EXTRAS | M18: TRABAJADAS | N18: A TRES DIAS | O18: TTAL.DEV.MES | P18: SALUD | Q18: PENSION | R18: ARP | S18: FONDO SOLIDAR | T18: DEDUCCIONES | U18: EMPLEADOS | V18: SALUD | W18: PENSION | X18: PARAFISCALES | Y18: EMPLEADOR | Z18: MENSUAL | AA18: PRIMA SERV. | AB18: BONIF.SERV. | AC18: PRIMA JUNIO | AD18: PRIMA NAVIDAD | AE18: PRIMAS Y BON. | AF18: CESANTIAS | AG18: INT.CESANTIAS | AH18: VACACIONES | AI18: MENSUAL
A19: 1 | B19: 111 | C19: PEPITO PÉREZ | D19: =+AI19 -> 1996972.301 | E19: JEFE CAMARERIA | F19: 1160000 | G19: =+F19/30 -> 38666.66667 | H19: =+G19/8 -> 4833.333333 | I19: =+E8 -> 0 | J19: 140606 | K19: 0 | L19: 0 | M19: 0 | N19: 0 | O19: =+F19+I19+J19+K19+L19-M19-N19 -> 1300606 | P19: =+F19*G5 -> 46400 | Q19: =+F19*G7 -> 43500 | R19: =+F19*G14 -> 6032 | S19: 0 | T19: =SUM(P19:S19) -> 95932 | U19: =+O19-T19 -> 1204674 | V19: =+F19*G6 -> 92800 | W19: =+F19*G8 -> 130500 | X19: =+F19*9% -> 104400 | Y19: =SUM(V19:X19) -> 327700 | Z19: =+O19+Y19 -> 1628306 | AA19: =+(F19-M19)/12 -> 96666.66667 | AB19: 0 | AC19: =+AF19/2 -> 54170.2399 | AD19: =+AF19/2 -> 54170.2399 | AE19: =SUM(AA19:AD19) -> 205007.1465 | AF19: =+O19*G11 -> 108340.4798 | AG19: =+AF19*1% -> 1083.404798 | AH19: =+O19*G13 -> 54235.2702 | AI19: =+Z19+AE19+AF19+AG19+AH19 -> 1996972.301
A20: 2 | B20: 222 | C20: ANASTASÍA MORALES | D20: =+AI20 -> 1996972.301 | E20: RECEPCIONISTA | F20: 1160000 | G20: =+F20/30 -> 38666.66667 | H20: =+G20/8 -> 4833.333333 | I20: =+E8 -> 0 | J20: 140606 | K20: 0 | L20: 0 | M20: 0 | N20: 0 | O20: =+F20+I20+J20+K20+L20-M20-N20 -> 1300606 | P20: =+F20*G5 -> 46400 | Q20: =+F20*G7 -> 43500 | R20: =+F20*G14 -> 6032 | S20: 0 | T20: =SUM(P20:S20) -> 95932 | U20: =+O20-T20 -> 1204674 | V20: =+F20*G6 -> 92800 | W20: =+F20*G8 -> 130500 | X20: 104400 | Y20: =SUM(V20:X20) -> 327700 | Z20: =+O20+Y20 -> 1628306 | AA20: =+(F20-M20)/12 -> 96666.66667 | AB20: 0 | AC20: =+AF20/2 -> 54170.2399 | AD20: =+AF20/2 -> 54170.2399 | AE20: =SUM(AA20:AD20) -> 205007.1465 | AF20: =+O20*G11 -> 108340.4798 | AG20: =+AF20*1% -> 1083.404798 | AH20: =+O20*G13 -> 54235.2702 | AI20: =+Z20+AE20+AF20+AG20+AH20 -> 1996972.301
A21: 3 | B21: 333 | C21: GODOLFO ÑAÑEZ | D21: 1996972.301 | E21: RECEPCIONISTA | F21: 1160000 | G21: 38666.66667 | H21: 4833.333333 | I21: =+E8 -> 0 | J21: 140606 | K21: 0 | L21: 0 | M21: 0 | N21: 0 | O21: 1300606 | P21: =+F21*G5 -> 46400 | Q21: =+F21*G7 -> 43500 | R21: =+F21*G14 -> 6032 | S21: 0 | T21: 95932 | U21: 1204674 | V21: =+F21*G6 -> 92800 | W21: =+F21*G8 -> 130500 | X21: 104400 | Y21: 327700 | Z21: 1628306 | AA21: 96666.66667 | AB21: 0 | AC21: 54170.2399 | AD21: 54170.2399 | AE21: 205007.1465 | AF21: =+O21*G11 -> 108340.4798 | AG21: 1083.404798 | AH21: =+O21*G13 -> 54235.2702 | AI21: 1996972.301
A22: 4 | B22: 444 | C22: LULU PATAQUIBA | D22: 1996972.301 | E22: AUX CAMARERIA | F22: 1160000 | G22: 38666.66667 | H22: 4833.333333 | I22: =+E8 -> 0 | J22: 140606 | K22: 0 | L22: 0 | M22: 0 | N22: 0 | O22: 1300606 | P22: =+F22*G5 -> 46400 | Q22: =+F22*G7 -> 43500 | R22: =+F22*G14 -> 6032 | S22: 0 | T22: 95932 | U22: 1204674 | V22: =+F22*G6 -> 92800 | W22: =+F22*G8 -> 130500 | X22: 104400 | Y22: 327700 | Z22: 1628306 | AA22: 96666.66667 | AB22: 0 | AC22: 54170.2399 | AD22: 54170.2399 | AE22: 205007.1465 | AF22: =+O22*G11 -> 108340.4798 | AG22: 1083.404798 | AH22: =+O22*G13 -> 54235.2702 | AI22: 1996972.301
A23: 5 | B23: 555 | C23: EUSTAQUIO GALLEGO | D23: 1996972.301 | E23: AUX ADMINISTRATIVO | F23: 1160000 | G23: 38666.66667 | H23: 4833.333333 | I23: =+E8 -> 0 | J23: 140606 | K23: 0 | L23: 0 | M23: 0 | N23: 0 | O23: 1300606 | P23: =+F23*G5 -> 46400 | Q23: =+F23*G7 -> 43500 | R23: =+F23*G14 -> 6032 | S23: 0 | T23: =SUM(P23:S23) -> 95932 | U23: 1204674 | V23: =+F23*G6 -> 92800 | W23: =+F23*G8 -> 130500 | X23: 104400 | Y23: 327700 | Z23: 1628306 | AA23: 96666.66667 | AB23: 0 | AC23: 54170.2399 | AD23: 54170.2399 | AE23: 205007.1465 | AF23: =+O23*G11 -> 108340.4798 | AG23: 1083.404798 | AH23: =+O23*G13 -> 54235.2702 | AI23: 1996972.301
A24: 6 | B24: 666 | C24: MANUELITA BELLO | D24: 1996972.301 | E24: AUX CONTABLE | F24: 1160000 | G24: 38666.66667 | H24: 4833.333333 | I24: =+E8 -> 0 | J24: 140606 | K24: 0 | L24: =+L23*2 -> 0 | M24: 0 | N24: 0 | O24: =+F24+I24+J24+K24+L24-M24-N24 -> 1300606 | P24: =+F24*G5 -> 46400 | Q24: =+F24*G7 -> 43500 | R24: =+F24*G14 -> 6032 | S24: 0 | T24: 95932 | U24: 1204674 | V24: =+F24*G6 -> 92800 | W24: =+F24*G8 -> 130500 | X24: 104400 | Y24: 327700 | Z24: 1628306 | AA24: 96666.66667 | AB24: 0 | AC24: 54170.2399 | AD24: 54170.2399 | AE24: 205007.1465 | AF24: =+O24*G11 -> 108340.4798 | AG24: 1083.404798 | AH24: =+O24*G13 -> 54235.2702 | AI24: 1996972.301
D25: 0 | F25: 0 | G25: 0 | H25: 0 | I25: 0 | J25: 0 | K25: 0 | L25: 0 | M25: 0 | N25: 0 | O25: 0 | P25: =+F25*G5 -> 0 | Q25: =+F25*G7 -> 0 | R25: =+F25*G14 -> 0 | S25: 0 | T25: 0 | U25: 0 | V25: =+F25*G6 -> 0 | W25: =+F25*G8 -> 0 | X25: 0 | Y25: 0 | Z25: 0 | AA25: 0 | AB25: 0 | AC25: 0 | AD25: 0 | AE25: 0 | AF25: =+O25*G11 -> 0 | AG25: 0 | AH25: =+O25*G13 -> 0 | AI25: 0
D26: 0 | F26: 0 | G26: 0 | H26: 0 | I26: 0 | J26: 0 | K26: 0 | L26: 0 | M26: 0 | N26: 0 | O26: 0 | P26: =+F26*G5 -> 0 | Q26: =+F26*G7 -> 0 | R26: =+F26*G14 -> 0 | S26: 0 | T26: 0 | U26: 0 | V26: =+F26*G6 -> 0 | W26: =+F26*G8 -> 0 | X26: 0 | Y26: 0 | Z26: 0 | AA26: 0 | AB26: 0 | AC26: 0 | AD26: 0 | AE26: 0 | AF26: =+O26*G11 -> 0 | AG26: 0 | AH26: =+O26*G13 -> 0 | AI26: 0
D27: =SUM(D19:D26) -> 11981833.81 | E27: TOTAL | F27: =SUM(F19:F26) -> 6960000 | G27: =SUM(G19:G26) -> 232000 | H27: 29000 | I27: 0 | J27: 843636 | K27: 0 | L27: 0 | M27: 0 | N27: 0 | O27: 7803636 | P27: 278400 | Q27: 261000 | R27: 36192 | S27: 0 | T27: 575592 | U27: 7228044 | V27: 556800 | W27: 783000 | X27: 626400 | Y27: 1966200 | Z27: 9769836 | AA27: 580000 | AB27: 0 | AC27: 325021.4394 | AD27: 325021.4394 | AE27: 1230042.879 | AF27: 650042.8788 | AG27: 6500.428788 | AH27: 325411.6212 | AI27: =SUM(AI19:AI26) -> 11981833.81
AI29: =+AI27-AI24-AI23 -> 7987889.205
D30: =+D19+D20+D21+D22 -> 7987889.205
C34: ENTIDAD | E34: TOTAL
E35: A PAGAR
C36: SALUD | E36: =+P27+V27 -> 835200
C37: COFENALCO | E37: =+P19+P20+P21+V19+V20+V21 -> 417600
C38: SALUDCOOP | E38: =+P22+P23+P24+V22+V23+V24 -> 417600
C39: COOMEVA | E39: 0
C40: PENSION | E40: =+Q27+W27 -> 1044000
C41: SEGURO SOCIAL | E41: =+E40 -> 1044000
C42: PARAFISCALES | E42: =+X27 -> 626400
C43: COMFACAUCA (4%) | E43: =+(E42*4)/9 -> 278400
C44: ICBF (3%) | E44: =+(E42*3)/9 -> 208800
C45: SENA (2%) | E45: =+(E42*2)/9 -> 139200
C46: FONDO DE SOLIDARIDAD | E46: =+S27 -> 0
C47: FDS | E47: =+E46 -> 0
C48: ARP | E48: =+R27 -> 36192
C49: ASEGURADORA DE RIESGOS P | E49: =+R27 -> 36192
C50: TOTAL A PAGAR | E50: =+E36+E40+E42+E46+E48 -> 2541792
B53: DEPOSITO Y RESERVA PARA EL PAGO DE PRESTACIONES SOCIALES Y LIQUIDACIONES | G53: =+AE27+AF27+AG27+AH27 -> 2211997.808 | H53: < PASIVO
B58: NOTA: BLANCO Y AZUL SE DEBE ALIMENTAR - LOS DEMAS COLORES TIENEN FORMULA - NO SE PUEDE ADULTERAR

Sheet COSTOS ABC MO
B2: HOTEL SAN JERÓNIMO POPAYÁN
B3: HOJA DE COSTOS ABC MANO DE OBRA
B5: 23+7+6+3+1=40 | C5: SERVICIOS | D5: SERVICIOS MES | E5: INDICADOR FINANCIERO
B6: HABITACIONES | C6: DIA | D6: MES*30 DIAS
B7: 23 Habitación standar | C7: 23 | D7: =C7*30 -> 690 | E7: =+D7/D12 -> 0.575
B8: 7 Habitación Superior/junior suite | C8: 7 | D8: =C8*30 -> 210 | E8: =D8/D12 -> 0.175
B9: 6 Habitación Twin | C9: 6 | D9: =C9*30 -> 180 | E9: =D9/D12 -> 0.15
B10: 3 Habitación Triple | C10: 3 | D10: 90 | E10: =D10/D12 -> 0.075
B11: 1 Habitación Sencilla | C11: 1 | D11: 30 | E11: =D11/D12 -> 0.025 | F11: BOARDESK
B12: 40 Habitaciones | C12: =SUM(C7:C11) -> 40 | D12: =SUM(D7:D11) -> 1200 | E12: =SUM(E7:E11) -> 1
H14: Distribuir salario CAMARERAS | J14: Distribuir salario RECEPCIONISTAS | M14: TOTAL MANO DE OBRA/HABITACIONES
B15: Salario para (02) camareras: | C15: SMLV | D15: ($1996972*2) | G15: =+NOMINA!D19+NOMINA!D22 -> 3993944.603 | H15: *Habitacion | I15: *Indicador% | J15: LLAMADAS RECIBIDAS | K15: RESERVAS REALIZADAS | L15: CLIENTES ATENDIDOS
B16: Habitaciones en servicio | C16: Numero de Servicios por mes distribidos asi: | G16: %
B17: 23 Habitación standar | C17: 23 | D17: =C17*30 -> 690 | E17: =+D17/D22 -> 0.575 | F17: =+G15 -> 3993944.603 | G17: =+E7 -> 0.575 | I17: =+F17*G17 -> 2296518.146 | J17: =+K28 -> 238444.4539 | K17: =+K29 -> 83455.55886 | L17: =K30 -> 476888.9078 | M17: =SUM(I17:L17) -> 3095307.067 | N17: =+I17/D7 -> 3328.287169
B18: 7 Habitación Superior/junior suite | C18: 7 | D18: =C18*30 -> 210 | E18: =D18/D22 -> 0.175 | G18: =+E8 -> 0.175 | I18: =F17*G18 -> 698940.3054 | J18: =+K28 -> 238444.4539 | K18: =K29 -> 83455.55886 | L18: =K30 -> 476888.9078 | M18: =SUM(I18:L18) -> 1497729.226 | N18: =I18/D18 -> 3328.287169
B19: 6 Habitación Twin | C19: 6 | D19: =C19*30 -> 180 | E19: =D19/D22 -> 0.15 | G19: 0.15 | I19: =F17*G19 -> 599091.6904 | J19: =+K28 -> 238444.4539 | K19: =K29 -> 83455.55886 | L19: =K30 -> 476888.9078 | M19: =SUM(I19:L19) -> 1397880.611 | N19: =I19/D19 -> 3328.287169
B20: 3 Habitación Triple | C20: 3 | D20: 90 | E20: =D20/D22 -> 0.075 | G20: 0.075 | I20: =F17*G20 -> 299545.8452 | J20: =+K28 -> 238444.4539 | K20: =K29 -> 83455.55886 | L20: =K30 -> 476888.9078 | M20: =SUM(I20:L20) -> 1098334.766 | N20: =I20/D20 -> 3328.287169
B21: 1 Habitación Sencilla | C21: 1 | D21: 30 | E21: =D21/D22 -> 0.025 | G21: 0.025 | I21: =F17*G21 -> 99848.61506 | J21: =+K28 -> 238444.4539 | K21: =K29 -> 83455.55886 | L21: =K30 -> 476888.9078 | M21: =SUM(I21:L21) -> 898637.5356 | N21: =I21/D21 -> 3328.287169
B22: 40 Habitaciones | C22: =SUM(C17:C21) -> 40 | D22: =SUM(D17:D21) -> 1200 | E22: =SUM(E17:E21) -> 1 | G22: =SUM(G17:G21) -> 1 | I22: =SUM(I17:I21) -> 3993944.603 | J22: 1192222.269 | K22: 417277.7943 | L22: 2384444.539 | M22: 7987889.205 | N22: 16641.43584
H25: Distribuir salario RECEPCIONISTAS
B26: Salario para (02) recepcionistas | C26: SMLV | D26: ($1996972*2) | G26: =1996972*2 -> 3993944 | I26: *Indicador%
B27: Servicio | C27: Numero de Servicios por mes distribidos asi: | G27: %
B28: Llamadas recibidas | C28: 20 | D28: =C28*30 -> 600 | E28: =+D28/D31 -> 0.2985074627 | F28: =+NOMINA!D20+NOMINA!D21 -> 3993944.603 | G28: =E28 -> 0.2985074627 | I28: =+F28*G28 -> 1192222.269 | J28: =+I28/D18 -> 5677.248902 | K28: =+I28/5 -> 238444.4539
B29: Reservas realizadas | C29: 7 | D29: =C29*30 -> 210 | E29: =D29/D31 -> 0.1044776119 | G29: =E29 -> 0.1044776119 | I29: =F28*G29 -> 417277.7943 | J29: =I29/D29 -> 1987.037116 | K29: =+I29/5 -> 83455.55886
B30: Clientes Atendidos | C30: 40 | D30: =C30*30 -> 1200 | E30: =D30/D31 -> 0.5970149254 | G30: 0.5970149254 | I30: =F28*G30 -> 2384444.539 | J30: =I30/D30 -> 1987.037116 | K30: =I30/5 -> 476888.9078
C31: =SUM(C28:C30) -> 67 | D31: =SUM(D28:D30) -> 2010 | E31: =SUM(E28:E30) -> 1 | G31: =SUM(G28:G30) -> 1 | I31: =SUM(I28:I30) -> 3993944.603 | J31: =SUM(J28:J30) -> 9651.323133 | K31: =SUM(K28:K30) -> 798788.9205
H35: Distribuir salario AUXILIAR ADMINISTRATIVO
B36: Salario para (01) Aux administrativo | C36: SMLV | D36: ($1996972*1) | G36: =1996972*1 -> 1996972 | I36: *Indicador%
C37: Numero de Servicios por mes distribidos asi: | G37: %
B38: Cotizaciones | C38: 4 | D38: =C38*30 -> 120 | E38: =+D38/D41 -> 0.5 | F38: =+NOMINA!D23 -> 1996972.301 | G38: =E38 -> 0.5 | I38: =+F38*G38 -> 998486.1506 | J38: =+I38/D29 -> 4754.695955 | K38: =I38/5 -> 199697.2301
B39: Compras | C39: 3 | D39: =C39*30 -> 90 | E39: =D39/D41 -> 0.375 | G39: =E39 -> 0.375 | I39: =F38*G39 -> 748864.613 | J39: =I39/D39 -> 8320.717922 | K39: =I39/5 -> 149772.9226
B40: Pagos | C40: 1 | D40: =C40*30 -> 30 | E40: =D40/D41 -> 0.125 | G40: 0.125 | I40: =F38*G40 -> 249621.5377 | J40: =I40/D40 -> 8320.717922 | K40: 49924.30753
C41: =SUM(C38:C40) -> 8 | D41: =SUM(D38:D40) -> 240 | E41: =SUM(E38:E40) -> 1 | G41: =SUM(G38:G40) -> 1 | I41: =SUM(I38:I40) -> 1996972.301 | J41: =SUM(J38:J40) -> 21396.1318 | K41: =SUM(K38:K40) -> 399394.4603
F44: =+F17+F28+F38 -> 9984861.506

Sheet ESTADO DE COSTOS
C3: ESTADO DE COSTOS PRESTACION DE SERVICIO | E3: ESTANDAR | G3: JUNIOR SUITE | I3: TWIN | K3: TRIPLE | M3: SENCILLA | O3: =+BOARDESK!P5 -> 800 | P3: ←Huesped esperados
E4: 23 | G4: 7 | I4: 6 | K4: 3 | M4: 1
C5: MENSUAL | E5: 0.575 | G5: 0.175 | I5: 0.15 | K5: 0.075 | M5: 0.025
B8: CUENTA | C8: PARCIAL | D8: TOTAL | E8: PARCIAL | F8: TOTAL | G8: PARCIAL | H8: TOTAL | I8: PARCIAL | J8: TOTAL | K8: PARCIAL | L8: TOTAL | M8: PARCIAL | N8: TOTAL
B10: Materia Prima Directa Usada o Requerida | C10: =+COSTOS!F32 -> 2411500.5 | E10: =+C10*$E$5 -> 1386612.787 | G10: =+C10*$G$5 -> 422012.5875 | I10: =+C10*$I$5 -> 361725.075 | K10: =+C10*$K$5 -> 180862.5375 | M10: =+C10*$M$5 -> 60287.5125
B11: 71- COSTO DE MATERIA PRIMA | D11: =+C10 -> 2411500.5 | F11: =SUM(E10:E10) -> 1386612.787 | H11: =+G10 -> 422012.5875 | J11: =+I10 -> 361725.075 | L11: =+K10 -> 180862.5375 | N11: =+M10 -> 60287.5125
B13: Mano de Obra Directa | C13: =+COSTOS!F43 -> 7987889.205 | E13: =+C13*$E$5 -> 4593036.293 | G13: =+C13*$G$5 -> 1397880.611 | I13: =+C13*$I$5 -> 1198183.381 | K13: =+C13*$K$5 -> 599091.6904 | M13: =+C13*$M$5 -> 199697.2301
B14: (+) Mano de Obra Indirecta | C14: 0 | E14: 0 | G14: 0 | I14: 0 | K14: 0 | M14: 0
B15: 72- COSTO DE MANO DE OBRA | D15: =+C13+C14 -> 7987889.205 | F15: =+E13+E14 -> 4593036.293 | H15: =G13+G14 -> 1397880.611 | J15: =I13+I14 -> 1198183.381 | L15: =K13+K14 -> 599091.6904 | N15: =M13+M14 -> 199697.2301
B17: Costos Indirectos de Fabricación | C17: =+COSTOS!F53 -> 2142284.9 | E17: =+C17*$E$5 -> 1231813.817 | G17: =+C17*$G$5 -> 374899.8575 | I17: =+C17*$I$5 -> 321342.735 | K17: =+C17*$K$5 -> 160671.3675 | M17: =+C17*$M$5 -> 53557.1225
B18: 73- COSTOS INDIRECTOS DE FABRICACIÓN | D18: =+C17 -> 2142284.9 | F18: =+E17 -> 1231813.817 | H18: =+G17 -> 374899.8575 | J18: =+I17 -> 321342.735 | L18: =+K17 -> 160671.3675 | N18: =+M17 -> 53557.1225
J19: 0
B20: COSTOS DE PRODUCCIÓN (71+72+73) | D20: =+D11+D15+D18 -> 12541674.61 | F20: =+F11+F15+F18 -> 7211462.898 | H20: =+H11+H15+H18 -> 2194793.056 | J20: =+J11+J15+J18 -> 1881251.191 | L20: =+L11+L15+L18 -> 940625.5954 | N20: =+N11+N15+N18 -> 313541.8651
B21: (+) Inventario In. Productos en Proceso | C21: =D21 -> 0 | E21: =F21 -> 0 | F21: 0 | G21: =H21 -> 0 | H21: 0 | I21: =J21 -> 0 | J21: 0 | K21: =L21 -> 0 | L21: 0 | M21: =N21 -> 0 | N21: 0
B22: (-) Inventario Fin Productos en Proceso | C22: =D22 -> 0 | E22: =F22 -> 0 | F22: 0 | G22: =H22 -> 0 | H22: 0 | I22: =J22 -> 0 | J22: 0 | K22: =L22 -> 0 | L22: 0 | M22: =N22 -> 0 | N22: 0
B23: COSTOS POR PROCESOS | D23: =+D20+C21-C22 -> 12541674.61 | F23: =F20+F21-F22 -> 7211462.898 | H23: =H20+H21-H22 -> 2194793.056 | J23: =+J20+I21-I22 -> 1881251.191 | L23: =+L20+K21-K22 -> 940625.5954 | N23: =+N20+M21-M22 -> 313541.8651
B24: (+) Inventario Inicial ProductosTerminado | C24: =D24 -> 0 | E24: =F24 -> 0 | F24: 0 | G24: =H24 -> 0 | H24: 0 | I24: =J24 -> 0 | J24: 0 | K24: =L24 -> 0 | L24: 0 | M24: =N24 -> 0 | N24: 0
B25: (-) Inventario Final Productos Terminado | C25: =D25 -> 0 | E25: =F25 -> 0 | F25: 0 | G25: =H25 -> 0 | H25: 0 | I25: =J25 -> 0 | J25: 0 | K25: =L25 -> 0 | L25: 0 | M25: =N25 -> 0 | N25: 0
B26: COSTO DE VENTA | D26: =D23+D24-D25 -> 12541674.61 | F26: =F23+F24-F25 -> 7211462.898 | H26: =H23+H24-H25 -> 2194793.056 | J26: =J23+J24-J25 -> 1881251.191 | L26: =L23+L24-L25 -> 940625.5954 | N26: =N23+N24-N25 -> 313541.8651
F27: =+F26/30 -> 240382.0966
F28: =+F27/23 -> 10451.3955
B33: REPRESENTANTE LEGAL | C33: CONTADORA

Sheet ESTADO DE RESULTADOS
H3: ESTÁNDAR | I3: SUITE | J3: TWIN | K3: TRIPLE | L3: SENCILLA
D4: ESTADO DE RESULTADOS PRESTACION DE SERVICIO | H4: 0.575 | I4: 0.175 | J4: 0.15 | K4: 0.075 | L4: 0.025
H5: =+M5*H4 -> 460 | I5: =+M5*I4 -> 140 | J5: =+M5*J4 -> 120 | K5: =+M5*K4 -> 60 | L5: =+M5*L4 -> 20 | M5: =+BOARDESK!P5 -> 800 | N5: ←Huesped esperados
D6: MENSUAL | H6: 100000 | I6: 130000 | J6: 180000 | K6: 160000 | L6: 100000 | M6: ←Tarifa | O6: =SUM(H6:N6) -> 670000 | P6: =+H6/O6 -> 0.1492537313
H7: 23 | I7: 7 | J7: 6 | K7: 3 | L7: 1 | M7: # Habitaciones
G8: ANÁLISIS | H8: TOTAL | I8: TOTAL | J8: TOTAL | K8: TOTAL | L8: TOTAL
G9: FINANCIERO
B10: INGRESOS OPERACIONALES | F10: =SUM(H10:L10) -> 97400000 | G10: =+F10/F10 -> 1 | H10: =+H5*H6 -> 46000000 | I10: =+I6*I5 -> 18200000 | J10: =+J6*J5 -> 21600000 | K10: =+K6*K5 -> 9600000 | L10: =+L6*L5 -> 2000000
A11: (-) | B11: COSTO DE VENTAS | F11: =+'ESTADO DE COSTOS '!D26 -> 12541674.61 | G11: =+F11/F10 -> 0.1287646263 | H11: =+'ESTADO DE COSTOS '!F26 -> 7211462.898 | I11: =+'ESTADO DE COSTOS '!H26 -> 2194793.056 | J11: =+'ESTADO DE COSTOS '!J26 -> 1881251.191 | K11: =+'ESTADO DE COSTOS '!L26 -> 940625.5954 | L11: =+'ESTADO DE COSTOS '!N26 -> 313541.8651
A13: (=) | B13: UTILIDAD BRUTA | F13: =+F10-F11 -> 84858325.39 | G13: =+F13/F10 -> 0.8712353737 | H13: =H10-H11 -> 38788537.1 | I13: =I10-I11 -> 16005206.94 | J13: =J10-J11 -> 19718748.81 | K13: =K10-K11 -> 8659374.405 | L13: =L10-L11 -> 1686458.135
A15: (-) | B15: Gastos Administrativos | F15: =+GASTOS!C16 -> 36957012.47 | G15: =+F15/F10 -> 0.3794354463 | H15: =+GASTOS!G16+GASTOS!O16 -> 21250282.17 | I15: =+GASTOS!H16+GASTOS!P16 -> 6467477.183 | J15: =+GASTOS!I16+GASTOS!Q16 -> 5543551.871 | K15: =+GASTOS!J16+GASTOS!R16 -> 2771775.935 | L15: =+GASTOS!K16+GASTOS!S16 -> 923925.3118
A16: (-) | B16: Gastos de Venta | F16: =+GASTOS!C24 -> 1961000 | G16: =+F16/F10 -> 0.02013347023 | H16: =+GASTOS!G24+GASTOS!O24 -> 1127575 | I16: =+GASTOS!H24+GASTOS!P24 -> 343175 | J16: =+GASTOS!I24+GASTOS!Q24 -> 294150 | K16: =+GASTOS!J24+GASTOS!R24 -> 147075 | L16: =+GASTOS!K24+GASTOS!S24 -> 49025
A17: (-) | B17: Otros Gastos | F17: =+GASTOS!C32 -> 2022700 | G17: =+F17/F10 -> 0.02076694045 | H17: =+GASTOS!O32 -> 1163052.5 | I17: =+GASTOS!H32+GASTOS!P32 -> 353972.5 | J17: =+GASTOS!I32+GASTOS!Q32 -> 303405 | K17: =+GASTOS!J32+GASTOS!R32 -> 151702.5 | L17: =+GASTOS!K32+GASTOS!S32 -> 50567.5
A18: (=) | B18: UTILIDAD OPERATIVA | F18: =F13-F15-F16-F17 -> 43917612.92 | G18: =+F18/F10 -> 0.4508995167 | H18: =H13-H15-H16-H17 -> 15247627.43 | I18: =I13-I15-I16-I17 -> 8840582.262 | J18: =J13-J15-J16-J17 -> 13577641.94 | K18: =K13-K15-K16-K17 -> 5588820.969 | L18: =L13-L15-L16-L17 -> 662940.3231
A19: (+) | B19: Otros Ingresos | C19: (eventos) | F19: =DATOS!C76 -> 7220000 | G19: =+F19/F10 -> 0.07412731006 | H19: =+F19*H4 -> 4151500 | I19: =+F19*I4 -> 1263500 | J19: =+F19*J4 -> 1083000 | K19: =+F19*K4 -> 541500 | L19: =+F19*L4 -> 180500
A20: (=) | B20: UTILIDAD ANTES DE IMPUESTOS | F20: =+F18+F19 -> 51137612.92 | G20: =+F20/F10 -> 0.5250268267 | H20: =+H18+H19 -> 19399127.43 | I20: =+I18+I19 -> 10104082.26 | J20: =+J18+J19 -> 14660641.94 | K20: =+K18+K19 -> 6130320.969 | L20: =+L18+L19 -> 843440.3231
A21: (-) | B21: Impuestos 35% | F21: =F20*35% -> 17898164.52 | G21: =+F21/F10 -> 0.1837593894 | H21: =H20*35% -> 6789694.601 | I21: =I20*35% -> 3536428.792 | J21: =J20*35% -> 5131224.678 | K21: =K20*35% -> 2145612.339 | L21: =L20*35% -> 295204.1131
A22: (=) | B22: UTILIDAD NETA | F22: =F20-F21 -> 33239448.4 | G22: =+F22/F10 -> 0.3412674374 | H22: =H20-H21 -> 12609432.83 | I22: =I20-I21 -> 6567653.47 | J22: =J20-J21 -> 9529417.26 | K22: =K20-K21 -> 3984708.63 | L22: =L20-L21 -> 548236.21
A23: (-) | B23: Reserva legal 10% | F23: =F22*10% -> 3323944.84 | G23: =+F23/F10 -> 0.03412674374 | H23: =H22*10% -> 1260943.283 | I23: =I22*10% -> 656765.347 | J23: =J22*10% -> 952941.726 | K23: =K22*10% -> 398470.863 | L23: =L22*10% -> 54823.621
A24: (=) | B24: UTILIDAD DEL EJERCICIO | F24: =F22-F23 -> 29915503.56 | G24: =+F24/F10 -> 0.3071406936 | H24: =H22-H23 -> 11348489.55 | I24: =I22-I23 -> 5910888.123 | J24: =J22-J23 -> 8576475.534 | K24: =K22-K23 -> 3586237.767 | L24: =L22-L23 -> 493412.589
H26: RENTABILIDAD
H27: ESTÁNDAR | I27: SUITE | J27: TWIN | K27: TRIPLE | L27: SENCILLA
H28: =+H24/H10 -> 0.2467062945 | I28: =+I24/I10 -> 0.3247740727 | J28: 0.3970590525 | K28: 0.3735664341 | L28: 0.2467062945
H29: Normal | I29: =+'PUNTO DE EQUILIBRIO'!C21 -> 0.4508995167 | J29: Otros Ingresos | L29: =+F20/F10 -> 0.5250268267
B30: Representante Legal | E30: Contadora Pública | H30: =+H28/23 -> 0.01072636063 | I30: =+I28/I7 -> 0.0463962961
I31: =+I30/30 -> 0.001546543203

Sheet CARGOS Y FUNCIONES
B3: CARGOS Y FUNCIONES HOTEL SAN JERÓNIMO POPAYÁN
B5: RECEPCIONISTA
B6: · Diligenciar registro hotelero con la información y datos personales del huésped a quien se presta el servicio de hospedaje.
B7: · Realizar Check-in y Check- out de los huéspedes.
B8: · Registrar reservas que se realizan a través de las redes sociales o llamadas telefónicas.
B9: · Realizar acomodación de habitaciones en relación a la ocupación y grupos que requieran hospedaje.
B10: · Facturar servicios prestados tanto de hospedaje, como eventos y mini bar.
B11: · Manejo de SOFTWARE hotelero para control de habitaciones libres, en limpieza y reservadas.
B14: BOTONES
B15: · Apoyar el área de recepción en relación a registro de huéspedes que ingresan.
B16: · Ayudar con el equipaje de los huéspedes.
B17: · Guiar al huésped en las instalaciones del hotel e instalarlo en la habitación que le haya sido asignada.
B20: CAMARERA
B21: · Realizar limpieza en todas las áreas de las habitaciones después de ser entregadas por los huéspedes.
B22: · Hacer cambio de sábanas, fundas, cobijas y edredones de las camas de cada habitación.
B23: · Llevar control de consumo de productos de mini bar en las habitaciones que cuentan con tal servicio.
B24: · Limpieza de zonas comunes del hotel.
B25: · Brindar servicio de lavandería y planchado a los huéspedes que lo requieran.
B28: JEFE DE CAMAMARERIA
B30: MESERO
B31: · Apoyar en el área de cocina al momento de ofrecer el servicio de desayuno como cortesía por parte del hotel para los huéspedes.
B32: · Atender las mesas una vez los huéspedes suban para tomar el servicio de desayuno.
B33: · Realizar montaje de comedor para atender a los huéspedes una vez decidan tomar el desayuno.
B34: · Organizar el salón de eventos cuando se requiera.
B35: · Velar por el cuidado, orden y limpieza de la zona del comedor que es su área de trabajo.
B37: AUX ADMINISTRATIVO
B39: ADMINISTRADOR
B42: CONTADOR PUBLICO
B43: · Liquidacion de impuestos
B44: · Liquidaciones de primas, contratos
B45: · Elaboracion de estados de resultados
B48: AUXILIAR CONTABLE
B49: · Realizar informe diario del efectivo que ingresa del día anterior.
B50: · Diligenciar formatos para entrega de informe diario, semanal y mensual.
B51: · Archivar documentación.
B52: · Ingresar al programa contable toda la información que se requiera para fines contables, tales como registro de todo tipo de gastos y costos en que se incurre.
B53: · Realizar conciliaciones bancarias para realizar revisión de cuentas pendientes de pago.
B54: · Realizar informe mensual tanto de ingresos, como gastos para reunión mensual.
B55: · Recepcionar correos electrónicos que contengan información contable: facturas electrónicas de compras realizadas, impuestos a liquidar y realizar su respectivo pago.
B56: · Generar planilla de salud de los colaboradores y realizar su respectivo pago.
B57: · Liquidar nómina de manera quincenal para realizar su respectico pago.
B58: · Contabilizar turnos y horas extras de personal auxiliar para realizar su respectivo pago.
B61: MESERO
B62: · Apoyar en el área de cocina al momento de ofrecer el servicio de desayuno como cortesía por parte del hotel para los huéspedes.
B63: · Atender las mesas una vez los huéspedes suban para tomar el servicio de desayuno.
B64: · Realizar montaje de comedor para atender a los huéspedes una vez decidan tomar el desayuno.
B65: · Organizar el salón de eventos cuando se requiera.
B66: · Velar por el cuidado, orden y limpieza de la zona del comedor que es su área de trabajo.

Sheet FLORELIA (hidden)
A1: EMPLEADO
A2: SALARIO BÁSICO | C2: 737717
A3: AUX. TRANSPORTE | C3: 83140
A4: HORA BÁSICA | C4: =+C2/240 -> 3073.820833
A6: CLASE | B6: FACTOR | C6: VR. HORA | D6: Total Horas | E6: Vr. Horas
A7: HEOD | B7: 1.25 | C7: =+$C$4*B7 -> 3842.276042 | D7: =SUMIF($B$46:$B$85,$A7,$E$46:$E$85) -> 0 | E7: =+IF(G7<0,G7*-1,G7) -> 0 | G7: =SUMIF($B$46:$B$85,$A7,$F$46:$F$85) -> 0
A8: HEON | B8: 1.75 | C8: =+$C$4*B8 -> 5379.186458 | D8: =SUMIF($B$19:$B$85,$A8,$E$19:$E$85) -> 0 | E8: =+IF(G8<0,G8*-1,G8) -> 0 | G8: =SUMIF($B$19:$B$85,$A8,$F$19:$F$85) -> 0
A9: HEFD | B9: 2 | C9: 6147.641667 | D9: =SUMIF($B$19:$B$85,$A9,$E$19:$E$85) -> 0 | E9: 0 | G9: =SUMIF($B$19:$B$85,$A9,$F$19:$F$85) -> 0
A10: HEFN | B10: 2.5 | C10: 7684.552083 | D10: =SUMIF($B$19:$B$85,$A10,$E$19:$E$85) -> 0 | E10: 0 | G10: =SUMIF($B$19:$B$85,$A10,$F$19:$F$85) -> 0
A11: RON | B11: 0.35 | C11: 1075.837292 | D11: =SUMIF($B$19:$B$85,$A11,$E$19:$E$85) -> 0 | E11: 0 | G11: =SUMIF($B$19:$B$84,$A11,$F$19:$F$84) -> 0
A12: RFD | B12: 0.75 | C12: 2305.365625 | D12: =SUMIF($B$19:$B$84,$A12,$E$19:$E$84) -> 0 | E12: 0 | G12: =SUMIF($B$19:$B$84,$A12,$F$19:$F$84) -> 0
A13: RFN | B13: 1.1 | C13: 3381.202917 | D13: =SUMIF($B$19:$B$84,$A13,$E$19:$E$84) -> 0 | E13: 0 | G13: =SUMIF($B$20:$B$84,$A13,$F$20:$F$84) -> 0
A14: Total | E14: =SUM(E7:E13) -> 0 | G14: =SUM(G7:G13) -> 0
A16: Periodo del 1 al 15 Octubre de 2016
A17: Fecha | B17: TIPO HE | C17: ENTRA | D17: SALE | E17: TOTAL | F17: DEVENGADO
A18: Columna1 | B18: Columna2 | C18: Columna3 | D18: Columna4 | E18: Columna5 | F18: Columna6 | G18: Columna7
A19: 2017-04-01 | E19: =+IF(Tabla11122[[#This Row],[Columna7]]<0,Tabla11122[[#This Row],[Columna7]]*-1,Tabla11122[[#This Row],[Columna7]]) -> 0 | F19: =IF(B19=$A$7,SUM(E19*$C$4*$B$7),(IF(B19=$A$8,SUM(E19*$C$4*$B$8),IF(B19=$A$9,SUM(E19*$C$4*$B$9),IF(B19=$A$10,SUM(E19*$C$4*$B$10),IF(B19=$A$11,SUM(E19*$C$4*$B$11),IF(B19=$A$12,SUM(E19*$C$4*$B$12),IF(B19=$A$13,SUM(E19*$C$4*$B$13))))))))) -> FALSE | G19: =+(Tabla11122[[#This Row],[Columna4]]-Tabla11122[[#This Row],[Columna3]])*24 -> 0 | I19: DESCANSO
A20: 2017-04-02 | E20: =+IF(Tabla11122[[#This Row],[Columna7]]<0,Tabla11122[[#This Row],[Columna7]]*-1,Tabla11122[[#This Row],[Columna7]]) -> 0 | F20: FALSE | G20: =+(Tabla11122[[#This Row],[Columna4]]-Tabla11122[[#This Row],[Columna3]])*24 -> 0 | I20: DOMINGO
A21: 2017-04-02 | E21: =+IF(Tabla11122[[#This Row],[Columna7]]<0,Tabla11122[[#This Row],[Columna7]]*-1,Tabla11122[[#This Row],[Columna7]]) -> 0 | F21: FALSE | G21: =+(Tabla11122[[#This Row],[Columna4]]-Tabla11122[[#This Row],[Columna3]])*24 -> 0 | I21: FESTIVO
A22: 2017-04-03 | E22: =+IF(Tabla11122[[#This Row],[Columna7]]<0,Tabla11122[[#This Row],[Columna7]]*-1,Tabla11122[[#This Row],[Columna7]]) -> 0 | F22: =IF(B22=$A$7,SUM(E22*$C$4*$B$7),(IF(B22=$A$8,SUM(E22*$C$4*$B$8),IF(B22=$A$9,SUM(E22*$C$4*$B$9),IF(B22=$A$10,SUM(E22*$C$4*$B$10),IF(B22=$A$11,SUM(E22*$C$4*$B$11),IF(B22=$A$12,SUM(E22*$C$4*$B$12),IF(B22=$A$13,SUM(E22*$C$4*$B$13))))))))) -> FALSE | G22: =+(Tabla11122[[#This Row],[Columna4]]-Tabla11122[[#This Row],[Columna3]])*24 -> 0
A23: 2017-04-04 | E23: =+IF(Tabla11122[[#This Row],[Columna7]]<0,Tabla11122[[#This Row],[Columna7]]*-1,Tabla11122[[#This Row],[Columna7]]) -> 0 | F23: FALSE | G23: =+(Tabla11122[[#This Row],[Columna4]]-Tabla11122[[#This Row],[Columna3]])*24 -> 0
A24: 2017-04-05 | E24: =+IF(Tabla11122[[#This Row],[Columna7]]<0,Tabla11122[[#This Row],[Columna7]]*-1,Tabla11122[[#This Row],[Columna7]]) -> 0 | F24: =IF(B24=$A$7,SUM(E24*$C$4*$B$7),(IF(B24=$A$8,SUM(E24*$C$4*$B$8),IF(B24=$A$9,SUM(E24*$C$4*$B$9),IF(B24=$A$10,SUM(E24*$C$4*$B$10),IF(B24=$A$11,SUM(E24*$C$4*$B$11),IF(B24=$A$12,SUM(E24*$C$4*$B$12),IF(B24=$A$13,SUM(E24*$C$4*$B$13))))))))) -> FALSE | G24: =+(Tabla11122[[#This Row],[Columna4]]-Tabla11122[[#This Row],[Columna3]])*24 -> 0
A25: 2017-04-06 | E25: =+IF(Tabla11122[[#This Row],[Columna7]]<0,Tabla11122[[#This Row],[Columna7]]*-1,Tabla11122[[#This Row],[Columna7]]) -> 0 | F25: FALSE | G25: =+(Tabla11122[[#This Row],[Columna4]]-Tabla11122[[#This Row],[Columna3]])*24 -> 0
A26: 2017-04-07 | E26: =+IF(Tabla11122[[#This Row],[Columna7]]<0,Tabla11122[[#This Row],[Columna7]]*-1,Tabla11122[[#This Row],[Columna7]]) -> 0 | F26: FALSE | G26: =+(Tabla11122[[#This Row],[Columna4]]-Tabla11122[[#This Row],[Columna3]])*24 -> 0
A27: 2017-04-08 | E27: =+IF(Tabla11122[[#This Row],[Columna7]]<0,Tabla11122[[#This Row],[Columna7]]*-1,Tabla11122[[#This Row],[Columna7]]) -> 0 | F27: FALSE | G27: =+(Tabla11122[[#This Row],[Columna4]]-Tabla11122[[#This Row],[Columna3]])*24 -> 0
A28: 2017-04-09 | E28: =+IF(Tabla11122[[#This Row],[Columna7]]<0,Tabla11122[[#This Row],[Columna7]]*-1,Tabla11122[[#This Row],[Columna7]]) -> 0 | F28: =IF(B28=$A$7,SUM(E28*$C$4*$B$7),(IF(B28=$A$8,SUM(E28*$C$4*$B$8),IF(B28=$A$9,SUM(E28*$C$4*$B$9),IF(B28=$A$10,SUM(E28*$C$4*$B$10),IF(B28=$A$11,SUM(E28*$C$4*$B$11),IF(B28=$A$12,SUM(E28*$C$4*$B$12),IF(B28=$A$13,SUM(E28*$C$4*$B$13))))))))) -> FALSE | G28: =+(Tabla11122[[#This Row],[Columna4]]-Tabla11122[[#This Row],[Columna3]])*24 -> 0
A29: 2017-04-09 | E29: =+IF(Tabla11122[[#This Row],[Columna7]]<0,Tabla11122[[#This Row],[Columna7]]*-1,Tabla11122[[#This Row],[Columna7]]) -> 0 | F29: FALSE | G29: =+(Tabla11122[[#This Row],[Columna4]]-Tabla11122[[#This Row],[Columna3]])*24 -> 0
A30: 2017-04-10 | E30: =+IF(Tabla11122[[#This Row],[Columna7]]<0,Tabla11122[[#This Row],[Columna7]]*-1,Tabla11122[[#This Row],[Columna7]]) -> 0 | F30: =IF(B30=$A$7,SUM(E30*$C$4*$B$7),(IF(B30=$A$8,SUM(E30*$C$4*$B$8),IF(B30=$A$9,SUM(E30*$C$4*$B$9),IF(B30=$A$10,SUM(E30*$C$4*$B$10),IF(B30=$A$11,SUM(E30*$C$4*$B$11),IF(B30=$A$12,SUM(E30*$C$4*$B$12),IF(B30=$A$13,SUM(E30*$C$4*$B$13))))))))) -> FALSE | G30: =+(Tabla11122[[#This Row],[Columna4]]-Tabla11122[[#This Row],[Columna3]])*24 -> 0
A31: 2017-04-11 | E31: =+IF(Tabla11122[[#This Row],[Columna7]]<0,Tabla11122[[#This Row],[Columna7]]*-1,Tabla11122[[#This Row],[Columna7]]) -> 0 | F31: =IF(B31=$A$7,SUM(E31*$C$4*$B$7),(IF(B31=$A$8,SUM(E31*$C$4*$B$8),IF(B31=$A$9,SUM(E31*$C$4*$B$9),IF(B31=$A$10,SUM(E31*$C$4*$B$10),IF(B31=$A$11,SUM(E31*$C$4*$B$11),IF(B31=$A$12,SUM(E31*$C$4*$B$12),IF(B31=$A$13,SUM(E31*$C$4*$B$13))))))))) -> FALSE | G31: =+(Tabla11122[[#This Row],[Columna4]]-Tabla11122[[#This Row],[Columna3]])*24 -> 0
A32: 2017-04-12 | E32: =+IF(Tabla11122[[#This Row],[Columna7]]<0,Tabla11122[[#This Row],[Columna7]]*-1,Tabla11122[[#This Row],[Columna7]]) -> 0 | F32: =IF(B32=$A$7,SUM(E32*$C$4*$B$7),(IF(B32=$A$8,SUM(E32*$C$4*$B$8),IF(B32=$A$9,SUM(E32*$C$4*$B$9),IF(B32=$A$10,SUM(E32*$C$4*$B$10),IF(B32=$A$11,SUM(E32*$C$4*$B$11),IF(B32=$A$12,SUM(E32*$C$4*$B$12),IF(B32=$A$13,SUM(E32*$C$4*$B$13))))))))) -> FALSE | G32: =+(Tabla11122[[#This Row],[Columna4]]-Tabla11122[[#This Row],[Columna3]])*24 -> 0
A33: 2017-04-13 | E33: =+IF(Tabla11122[[#This Row],[Columna7]]<0,Tabla11122[[#This Row],[Columna7]]*-1,Tabla11122[[#This Row],[Columna7]]) -> 0 | F33: FALSE | G33: =+(Tabla11122[[#This Row],[Columna4]]-Tabla11122[[#This Row],[Columna3]])*24 -> 0
A34: 2017-04-13 | E34: =+IF(Tabla11122[[#This Row],[Columna7]]<0,Tabla11122[[#This Row],[Columna7]]*-1,Tabla11122[[#This Row],[Columna7]]) -> 0 | F34: FALSE | G34: =+(Tabla11122[[#This Row],[Columna4]]-Tabla11122[[#This Row],[Columna3]])*24 -> 0
A35: 2017-04-14 | E35: =+IF(Tabla11122[[#This Row],[Columna7]]<0,Tabla11122[[#This Row],[Columna7]]*-1,Tabla11122[[#This Row],[Columna7]]) -> 0 | F35: FALSE | G35: =+(Tabla11122[[#This Row],[Columna4]]-Tabla11122[[#This Row],[Columna3]])*24 -> 0
A36: 2017-04-14 | E36: =+IF(Tabla11122[[#This Row],[Columna7]]<0,Tabla11122[[#This Row],[Columna7]]*-1,Tabla11122[[#This Row],[Columna7]]) -> 0 | F36: =IF(B36=$A$7,SUM(E36*$C$4*$B$7),(IF(B36=$A$8,SUM(E36*$C$4*$B$8),IF(B36=$A$9,SUM(E36*$C$4*$B$9),IF(B36=$A$10,SUM(E36*$C$4*$B$10),IF(B36=$A$11,SUM(E36*$C$4*$B$11),IF(B36=$A$12,SUM(E36*$C$4*$B$12),IF(B36=$A$13,SUM(E36*$C$4*$B$13))))))))) -> FALSE | G36: =+(Tabla11122[[#This Row],[Columna4]]-Tabla11122[[#This Row],[Columna3]])*24 -> 0
A37: 2017-04-15 | E37: =+IF(Tabla11122[[#This Row],[Columna7]]<0,Tabla11122[[#This Row],[Columna7]]*-1,Tabla11122[[#This Row],[Columna7]]) -> 0 | F37: FALSE | G37: =+(Tabla11122[[#This Row],[Columna4]]-Tabla11122[[#This Row],[Columna3]])*24 -> 0
E38: =+IF(Tabla11122[[#This Row],[Columna7]]<0,Tabla11122[[#This Row],[Columna7]]*-1,Tabla11122[[#This Row],[Columna7]]) -> 0 | F38: =IF(B38=$A$7,SUM(E38*$C$4*$B$7),(IF(B38=$A$8,SUM(E38*$C$4*$B$8),IF(B38=$A$9,SUM(E38*$C$4*$B$9),IF(B38=$A$10,SUM(E38*$C$4*$B$10),IF(B38=$A$11,SUM(E38*$C$4*$B$11),IF(B38=$A$12,SUM(E38*$C$4*$B$12),IF(B38=$A$13,SUM(E38*$C$4*$B$13))))))))) -> FALSE | G38: =+(Tabla11122[[#This Row],[Columna4]]-Tabla11122[[#This Row],[Columna3]])*24 -> 0
E39: =+IF(Tabla11122[[#This Row],[Columna7]]<0,Tabla11122[[#This Row],[Columna7]]*-1,Tabla11122[[#This Row],[Columna7]]) -> 0 | F39: FALSE | G39: =+(Tabla11122[[#This Row],[Columna4]]-Tabla11122[[#This Row],[Columna3]])*24 -> 0
E40: =+IF(Tabla11122[[#This Row],[Columna7]]<0,Tabla11122[[#This Row],[Columna7]]*-1,Tabla11122[[#This Row],[Columna7]]) -> 0 | F40: FALSE | G40: =+(Tabla11122[[#This Row],[Columna4]]-Tabla11122[[#This Row],[Columna3]])*24 -> 0
E41: =+IF(Tabla11122[[#This Row],[Columna7]]<0,Tabla11122[[#This Row],[Columna7]]*-1,Tabla11122[[#This Row],[Columna7]]) -> 0 | F41: FALSE | G41: =+(Tabla11122[[#This Row],[Columna4]]-Tabla11122[[#This Row],[Columna3]])*24 -> 0
E42: =+IF(Tabla11122[[#This Row],[Columna7]]<0,Tabla11122[[#This Row],[Columna7]]*-1,Tabla11122[[#This Row],[Columna7]]) -> 0 | F42: FALSE | G42: =+(Tabla11122[[#This Row],[Columna4]]-Tabla11122[[#This Row],[Columna3]])*24 -> 0
E43: =+IF(Tabla11122[[#This Row],[Columna7]]<0,Tabla11122[[#This Row],[Columna7]]*-1,Tabla11122[[#This Row],[Columna7]]) -> 0 | F43: FALSE | G43: =+(Tabla11122[[#This Row],[Columna4]]-Tabla11122[[#This Row],[Columna3]])*24 -> 0
E44: =+IF(Tabla11122[[#This Row],[Columna7]]<0,Tabla11122[[#This Row],[Columna7]]*-1,Tabla11122[[#This Row],[Columna7]]) -> 0 | F44: FALSE | G44: =+(Tabla11122[[#This Row],[Columna4]]-Tabla11122[[#This Row],[Columna3]])*24 -> 0
E45: =+IF(Tabla11122[[#This Row],[Columna7]]<0,Tabla11122[[#This Row],[Columna7]]*-1,Tabla11122[[#This Row],[Columna7]]) -> 0 | F45: FALSE | G45: =+(Tabla11122[[#This Row],[Columna4]]-Tabla11122[[#This Row],[Columna3]])*24 -> 0
E46: =+IF(Tabla11122[[#This Row],[Columna7]]<0,Tabla11122[[#This Row],[Columna7]]*-1,Tabla11122[[#This Row],[Columna7]]) -> 0 | F46: =IF(B46=$A$7,SUM(E46*$C$4*$B$7),(IF(B46=$A$8,SUM(E46*$C$4*$B$8),IF(B46=$A$9,SUM(E46*$C$4*$B$9),IF(B46=$A$10,SUM(E46*$C$4*$B$10),IF(B46=$A$11,SUM(E46*$C$4*$B$11),IF(B46=$A$12,SUM(E46*$C$4*$B$12),IF(B46=$A$13,SUM(E46*$C$4*$B$13))))))))) -> FALSE | G46: =+(Tabla11122[[#This Row],[Columna4]]-Tabla11122[[#This Row],[Columna3]])*24 -> 0
E47: =+IF(Tabla11122[[#This Row],[Columna7]]<0,Tabla11122[[#This Row],[Columna7]]*-1,Tabla11122[[#This Row],[Columna7]]) -> 0 | F47: =IF(B47=$A$7,SUM(E47*$C$4*$B$7),(IF(B47=$A$8,SUM(E47*$C$4*$B$8),IF(B47=$A$9,SUM(E47*$C$4*$B$9),IF(B47=$A$10,SUM(E47*$C$4*$B$10),IF(B47=$A$11,SUM(E47*$C$4*$B$11),IF(B47=$A$12,SUM(E47*$C$4*$B$12),IF(B47=$A$13,SUM(E47*$C$4*$B$13))))))))) -> FALSE | G47: =+(Tabla11122[[#This Row],[Columna4]]-Tabla11122[[#This Row],[Columna3]])*24 -> 0
E48: =+IF(Tabla11122[[#This Row],[Columna7]]<0,Tabla11122[[#This Row],[Columna7]]*-1,Tabla11122[[#This Row],[Columna7]]) -> 0 | F48: FALSE | G48: =+(Tabla11122[[#This Row],[Columna4]]-Tabla11122[[#This Row],[Columna3]])*24 -> 0
E49: =+IF(Tabla11122[[#This Row],[Columna7]]<0,Tabla11122[[#This Row],[Columna7]]*-1,Tabla11122[[#This Row],[Columna7]]) -> 0 | F49: FALSE | G49: =+(Tabla11122[[#This Row],[Columna4]]-Tabla11122[[#This Row],[Columna3]])*24 -> 0
E50: =+IF(Tabla11122[[#This Row],[Columna7]]<0,Tabla11122[[#This Row],[Columna7]]*-1,Tabla11122[[#This Row],[Columna7]]) -> 0 | F50: FALSE | G50: =+(Tabla11122[[#This Row],[Columna4]]-Tabla11122[[#This Row],[Columna3]])*24 -> 0
E51: =+IF(Tabla11122[[#This Row],[Columna7]]<0,Tabla11122[[#This Row],[Columna7]]*-1,Tabla11122[[#This Row],[Columna7]]) -> 0 | F51: FALSE | G51: =+(Tabla11122[[#This Row],[Columna4]]-Tabla11122[[#This Row],[Columna3]])*24 -> 0
E52: =+IF(Tabla11122[[#This Row],[Columna7]]<0,Tabla11122[[#This Row],[Columna7]]*-1,Tabla11122[[#This Row],[Columna7]]) -> 0 | F52: FALSE | G52: =+(Tabla11122[[#This Row],[Columna4]]-Tabla11122[[#This Row],[Columna3]])*24 -> 0
E53: =+IF(Tabla11122[[#This Row],[Columna7]]<0,Tabla11122[[#This Row],[Columna7]]*-1,Tabla11122[[#This Row],[Columna7]]) -> 0 | F53: FALSE | G53: =+(Tabla11122[[#This Row],[Columna4]]-Tabla11122[[#This Row],[Columna3]])*24 -> 0
E54: =+IF(Tabla11122[[#This Row],[Columna7]]<0,Tabla11122[[#This Row],[Columna7]]*-1,Tabla11122[[#This Row],[Columna7]]) -> 0 | F54: FALSE | G54: =+(Tabla11122[[#This Row],[Columna4]]-Tabla11122[[#This Row],[Columna3]])*24 -> 0
E55: =+IF(Tabla11122[[#This Row],[Columna7]]<0,Tabla11122[[#This Row],[Columna7]]*-1,Tabla11122[[#This Row],[Columna7]]) -> 0 | F55: =IF(B55=$A$7,SUM(E55*$C$4*$B$7),(IF(B55=$A$8,SUM(E55*$C$4*$B$8),IF(B55=$A$9,SUM(E55*$C$4*$B$9),IF(B55=$A$10,SUM(E55*$C$4*$B$10),IF(B55=$A$11,SUM(E55*$C$4*$B$11),IF(B55=$A$12,SUM(E55*$C$4*$B$12),IF(B55=$A$13,SUM(E55*$C$4*$B$13))))))))) -> FALSE | G55: =+(Tabla11122[[#This Row],[Columna4]]-Tabla11122[[#This Row],[Columna3]])*24 -> 0
E56: =+IF(Tabla11122[[#This Row],[Columna7]]<0,Tabla11122[[#This Row],[Columna7]]*-1,Tabla11122[[#This Row],[Columna7]]) -> 0 | F56: =IF(B56=$A$7,SUM(E56*$C$4*$B$7),(IF(B56=$A$8,SUM(E56*$C$4*$B$8),IF(B56=$A$9,SUM(E56*$C$4*$B$9),IF(B56=$A$10,SUM(E56*$C$4*$B$10),IF(B56=$A$11,SUM(E56*$C$4*$B$11),IF(B56=$A$12,SUM(E56*$C$4*$B$12),IF(B56=$A$13,SUM(E56*$C$4*$B$13))))))))) -> FALSE | G56: =+(Tabla11122[[#This Row],[Columna4]]-Tabla11122[[#This Row],[Columna3]])*24 -> 0
E57: =+IF(Tabla11122[[#This Row],[Columna7]]<0,Tabla11122[[#This Row],[Columna7]]*-1,Tabla11122[[#This Row],[Columna7]]) -> 0 | F57: =IF(B57=$A$7,SUM(E57*$C$4*$B$7),(IF(B57=$A$8,SUM(E57*$C$4*$B$8),IF(B57=$A$9,SUM(E57*$C$4*$B$9),IF(B57=$A$10,SUM(E57*$C$4*$B$10),IF(B57=$A$11,SUM(E57*$C$4*$B$11),IF(B57=$A$12,SUM(E57*$C$4*$B$12),IF(B57=$A$13,SUM(E57*$C$4*$B$13))))))))) -> FALSE | G57: =+(Tabla11122[[#This Row],[Columna4]]-Tabla11122[[#This Row],[Columna3]])*24 -> 0
E58: =+IF(Tabla11122[[#This Row],[Columna7]]<0,Tabla11122[[#This Row],[Columna7]]*-1,Tabla11122[[#This Row],[Columna7]]) -> 0 | F58: =IF(B58=$A$7,SUM(E58*$C$4*$B$7),(IF(B58=$A$8,SUM(E58*$C$4*$B$8),IF(B58=$A$9,SUM(E58*$C$4*$B$9),IF(B58=$A$10,SUM(E58*$C$4*$B$10),IF(B58=$A$11,SUM(E58*$C$4*$B$11),IF(B58=$A$12,SUM(E58*$C$4*$B$12),IF(B58=$A$13,SUM(E58*$C$4*$B$13))))))))) -> FALSE | G58: =+(Tabla11122[[#This Row],[Columna4]]-Tabla11122[[#This Row],[Columna3]])*24 -> 0
E59: =+IF(Tabla11122[[#This Row],[Columna7]]<0,Tabla11122[[#This Row],[Columna7]]*-1,Tabla11122[[#This Row],[Columna7]]) -> 0 | F59: FALSE | G59: =+(Tabla11122[[#This Row],[Columna4]]-Tabla11122[[#This Row],[Columna3]])*24 -> 0
E60: =+IF(Tabla11122[[#This Row],[Columna7]]<0,Tabla11122[[#This Row],[Columna7]]*-1,Tabla11122[[#This Row],[Columna7]]) -> 0 | F60: FALSE | G60: =+(Tabla11122[[#This Row],[Columna4]]-Tabla11122[[#This Row],[Columna3]])*24 -> 0
E61: =+IF(Tabla11122[[#This Row],[Columna7]]<0,Tabla11122[[#This Row],[Columna7]]*-1,Tabla11122[[#This Row],[Columna7]]) -> 0 | F61: FALSE | G61: =+(Tabla11122[[#This Row],[Columna4]]-Tabla11122[[#This Row],[Columna3]])*24 -> 0
E62: =+IF(Tabla11122[[#This Row],[Columna7]]<0,Tabla11122[[#This Row],[Columna7]]*-1,Tabla11122[[#This Row],[Columna7]]) -> 0 | F62: FALSE | G62: =+(Tabla11122[[#This Row],[Columna4]]-Tabla11122[[#This Row],[Columna3]])*24 -> 0
E63: =+IF(Tabla11122[[#This Row],[Columna7]]<0,Tabla11122[[#This Row],[Columna7]]*-1,Tabla11122[[#This Row],[Columna7]]) -> 0 | F63: FALSE | G63: =+(Tabla11122[[#This Row],[Columna4]]-Tabla11122[[#This Row],[Columna3]])*24 -> 0
E64: =+IF(Tabla11122[[#This Row],[Columna7]]<0,Tabla11122[[#This Row],[Columna7]]*-1,Tabla11122[[#This Row],[Columna7]]) -> 0 | F64: FALSE | G64: =+(Tabla11122[[#This Row],[Columna4]]-Tabla11122[[#This Row],[Columna3]])*24 -> 0
E65: =+IF(Tabla11122[[#This Row],[Columna7]]<0,Tabla11122[[#This Row],[Columna7]]*-1,Tabla11122[[#This Row],[Columna7]]) -> 0 | F65: FALSE | G65: =+(Tabla11122[[#This Row],[Columna4]]-Tabla11122[[#This Row],[Columna3]])*24 -> 0
E66: =+IF(Tabla11122[[#This Row],[Columna7]]<0,Tabla11122[[#This Row],[Columna7]]*-1,Tabla11122[[#This Row],[Columna7]]) -> 0 | F66: FALSE | G66: =+(Tabla11122[[#This Row],[Columna4]]-Tabla11122[[#This Row],[Columna3]])*24 -> 0
E67: =+IF(Tabla11122[[#This Row],[Columna7]]<0,Tabla11122[[#This Row],[Columna7]]*-1,Tabla11122[[#This Row],[Columna7]]) -> 0 | F67: FALSE | G67: =+(Tabla11122[[#This Row],[Columna4]]-Tabla11122[[#This Row],[Columna3]])*24 -> 0
E68: =+IF(Tabla11122[[#This Row],[Columna7]]<0,Tabla11122[[#This Row],[Columna7]]*-1,Tabla11122[[#This Row],[Columna7]]) -> 0 | F68: FALSE | G68: =+(Tabla11122[[#This Row],[Columna4]]-Tabla11122[[#This Row],[Columna3]])*24 -> 0
E69: =+IF(Tabla11122[[#This Row],[Columna7]]<0,Tabla11122[[#This Row],[Columna7]]*-1,Tabla11122[[#This Row],[Columna7]]) -> 0 | F69: FALSE | G69: =+(Tabla11122[[#This Row],[Columna4]]-Tabla11122[[#This Row],[Columna3]])*24 -> 0
E70: =+IF(Tabla11122[[#This Row],[Columna7]]<0,Tabla11122[[#This Row],[Columna7]]*-1,Tabla11122[[#This Row],[Columna7]]) -> 0 | F70: FALSE | G70: =+(Tabla11122[[#This Row],[Columna4]]-Tabla11122[[#This Row],[Columna3]])*24 -> 0
E71: =+IF(Tabla11122[[#This Row],[Columna7]]<0,Tabla11122[[#This Row],[Columna7]]*-1,Tabla11122[[#This Row],[Columna7]]) -> 0 | F71: FALSE | G71: =+(Tabla11122[[#This Row],[Columna4]]-Tabla11122[[#This Row],[Columna3]])*24 -> 0
E72: =+IF(Tabla11122[[#This Row],[Columna7]]<0,Tabla11122[[#This Row],[Columna7]]*-1,Tabla11122[[#This Row],[Columna7]]) -> 0 | F72: FALSE | G72: =+(Tabla11122[[#This Row],[Columna4]]-Tabla11122[[#This Row],[Columna3]])*24 -> 0
E73: =+IF(Tabla11122[[#This Row],[Columna7]]<0,Tabla11122[[#This Row],[Columna7]]*-1,Tabla11122[[#This Row],[Columna7]]) -> 0 | F73: FALSE | G73: =+(Tabla11122[[#This Row],[Columna4]]-Tabla11122[[#This Row],[Columna3]])*24 -> 0
E74: =+IF(Tabla11122[[#This Row],[Columna7]]<0,Tabla11122[[#This Row],[Columna7]]*-1,Tabla11122[[#This Row],[Columna7]]) -> 0 | F74: FALSE | G74: =+(Tabla11122[[#This Row],[Columna4]]-Tabla11122[[#This Row],[Columna3]])*24 -> 0
E75: =+IF(Tabla11122[[#This Row],[Columna7]]<0,Tabla11122[[#This Row],[Columna7]]*-1,Tabla11122[[#This Row],[Columna7]]) -> 0 | F75: FALSE | G75: =+(Tabla11122[[#This Row],[Columna4]]-Tabla11122[[#This Row],[Columna3]])*24 -> 0
E76: =+IF(Tabla11122[[#This Row],[Columna7]]<0,Tabla11122[[#This Row],[Columna7]]*-1,Tabla11122[[#This Row],[Columna7]]) -> 0 | F76: FALSE | G76: =+(Tabla11122[[#This Row],[Columna4]]-Tabla11122[[#This Row],[Columna3]])*24 -> 0
E77: =+IF(Tabla11122[[#This Row],[Columna7]]<0,Tabla11122[[#This Row],[Columna7]]*-1,Tabla11122[[#This Row],[Columna7]]) -> 0 | F77: FALSE | G77: =+(Tabla11122[[#This Row],[Columna4]]-Tabla11122[[#This Row],[Columna3]])*24 -> 0
E78: =+IF(Tabla11122[[#This Row],[Columna7]]<0,Tabla11122[[#This Row],[Columna7]]*-1,Tabla11122[[#This Row],[Columna7]]) -> 0 | F78: FALSE | G78: =+(Tabla11122[[#This Row],[Columna4]]-Tabla11122[[#This Row],[Columna3]])*24 -> 0
E79: =+IF(Tabla11122[[#This Row],[Columna7]]<0,Tabla11122[[#This Row],[Columna7]]*-1,Tabla11122[[#This Row],[Columna7]]) -> 0 | F79: FALSE | G79: =+(Tabla11122[[#This Row],[Columna4]]-Tabla11122[[#This Row],[Columna3]])*24 -> 0
E80: =+IF(Tabla11122[[#This Row],[Columna7]]<0,Tabla11122[[#This Row],[Columna7]]*-1,Tabla11122[[#This Row],[Columna7]]) -> 0 | F80: FALSE | G80: =+(Tabla11122[[#This Row],[Columna4]]-Tabla11122[[#This Row],[Columna3]])*24 -> 0
E81: =+IF(Tabla11122[[#This Row],[Columna7]]<0,Tabla11122[[#This Row],[Columna7]]*-1,Tabla11122[[#This Row],[Columna7]]) -> 0 | F81: FALSE | G81: =+(Tabla11122[[#This Row],[Columna4]]-Tabla11122[[#This Row],[Columna3]])*24 -> 0
E82: =+IF(Tabla11122[[#This Row],[Columna7]]<0,Tabla11122[[#This Row],[Columna7]]*-1,Tabla11122[[#This Row],[Columna7]]) -> 0 | F82: FALSE | G82: =+(Tabla11122[[#This Row],[Columna4]]-Tabla11122[[#This Row],[Columna3]])*24 -> 0
E83: =+IF(Tabla11122[[#This Row],[Columna7]]<0,Tabla11122[[#This Row],[Columna7]]*-1,Tabla11122[[#This Row],[Columna7]]) -> 0 | F83: FALSE | G83: =+(Tabla11122[[#This Row],[Columna4]]-Tabla11122[[#This Row],[Columna3]])*24 -> 0
E84: =+IF(Tabla11122[[#This Row],[Columna7]]<0,Tabla11122[[#This Row],[Columna7]]*-1,Tabla11122[[#This Row],[Columna7]]) -> 0 | F84: FALSE | G84: =+(Tabla11122[[#This Row],[Columna4]]-Tabla11122[[#This Row],[Columna3]])*24 -> 0

Sheet MIRALBA RIVERA (hidden)
A1: EMPLEADO
A2: SALARIO BÁSICO | C2: 368858
A3: AUX. TRANSPORTE | C3: 83140
A4: HORA BÁSICA | C4: =+C2/240 -> 1536.908333
A6: CLASE | B6: FACTOR | C6: VR. HORA | D6: Total Horas | E6: Vr. Horas
A7: HEOD | B7: 1.25 | C7: =+$C$4*B7 -> 1921.135417 | D7: =SUMIF($B$41:$B$80,$A7,$E$41:$E$80) -> 0 | E7: =+IF(G7<0,G7*-1,G7) -> 0 | G7: =SUMIF($B$41:$B$80,$A7,$F$41:$F$80) -> 0
A8: HEON | B8: 1.75 | C8: =+$C$4*B8 -> 2689.589583 | D8: =SUMIF($B$19:$B$80,$A8,$E$19:$E$80) -> 0 | E8: =+IF(G8<0,G8*-1,G8) -> 0 | G8: =SUMIF($B$19:$B$80,$A8,$F$19:$F$80) -> 0
A9: HEFD | B9: 2 | C9: 3073.816667 | D9: =SUMIF($B$19:$B$80,$A9,$E$19:$E$80) -> 0 | E9: 0 | G9: =SUMIF($B$19:$B$80,$A9,$F$19:$F$80) -> 0
A10: HEFN | B10: 2.5 | C10: 3842.270833 | D10: =SUMIF($B$19:$B$80,$A10,$E$19:$E$80) -> 0 | E10: 0 | G10: =SUMIF($B$19:$B$80,$A10,$F$19:$F$80) -> 0
A11: RON | B11: 0.35 | C11: 537.9179167 | D11: =SUMIF($B$19:$B$80,$A11,$E$19:$E$80) -> 0 | E11: 0 | G11: =SUMIF($B$19:$B$79,$A11,$F$19:$F$79) -> 0
A12: RFD | B12: 0.75 | C12: 1152.68125 | D12: =SUMIF($B$19:$B$79,$A12,$E$19:$E$79) -> 0 | E12: 0 | G12: =SUMIF($B$19:$B$79,$A12,$F$19:$F$79) -> 0
A13: RFN | B13: 1.1 | C13: 1690.599167 | D13: =SUMIF($B$19:$B$79,$A13,$E$19:$E$79) -> 0 | E13: 0 | G13: =SUMIF($B$20:$B$79,$A13,$F$20:$F$79) -> 0
A14: Total | E14: =SUM(E7:E13) -> 0 | G14: =SUM(G7:G13) -> 0
A16: Periodo del 1 al 15 Octubre de 2016
A17: Fecha | B17: TIPO HE | C17: ENTRA | D17: SALE | E17: TOTAL | F17: DEVENGADO
A18: Columna1 | B18: Columna2 | C18: Columna3 | D18: Columna4 | E18: Columna5 | F18: Columna6 | G18: Columna7
A19: 2017-04-01 | E19: =+IF(Tabla11112131420[[#This Row],[Columna7]]<0,Tabla11112131420[[#This Row],[Columna7]]*-1,Tabla11112131420[[#This Row],[Columna7]]) -> 0 | F19: =IF(B19=$A$7,SUM(E19*$C$4*$B$7),(IF(B19=$A$8,SUM(E19*$C$4*$B$8),IF(B19=$A$9,SUM(E19*$C$4*$B$9),IF(B19=$A$10,SUM(E19*$C$4*$B$10),IF(B19=$A$11,SUM(E19*$C$4*$B$11),IF(B19=$A$12,SUM(E19*$C$4*$B$12),IF(B19=$A$13,SUM(E19*$C$4*$B$13))))))))) -> FALSE | G19: =+(Tabla11112131420[[#This Row],[Columna4]]-Tabla11112131420[[#This Row],[Columna3]])*24 -> 0 | I19: DESCANSO
A20: 2017-04-02 | E20: =+IF(Tabla11112131420[[#This Row],[Columna7]]<0,Tabla11112131420[[#This Row],[Columna7]]*-1,Tabla11112131420[[#This Row],[Columna7]]) -> 0 | F20: FALSE | G20: =+(Tabla11112131420[[#This Row],[Columna4]]-Tabla11112131420[[#This Row],[Columna3]])*24 -> 0 | I20: DOMINGO
A21: 2017-04-03 | E21: =+IF(Tabla11112131420[[#This Row],[Columna7]]<0,Tabla11112131420[[#This Row],[Columna7]]*-1,Tabla11112131420[[#This Row],[Columna7]]) -> 0 | F21: FALSE | G21: =+(Tabla11112131420[[#This Row],[Columna4]]-Tabla11112131420[[#This Row],[Columna3]])*24 -> 0 | I21: FESTIVO
A22: 2017-04-04 | E22: =+IF(Tabla11112131420[[#This Row],[Columna7]]<0,Tabla11112131420[[#This Row],[Columna7]]*-1,Tabla11112131420[[#This Row],[Columna7]]) -> 0 | F22: =IF(B22=$A$7,SUM(E22*$C$4*$B$7),(IF(B22=$A$8,SUM(E22*$C$4*$B$8),IF(B22=$A$9,SUM(E22*$C$4*$B$9),IF(B22=$A$10,SUM(E22*$C$4*$B$10),IF(B22=$A$11,SUM(E22*$C$4*$B$11),IF(B22=$A$12,SUM(E22*$C$4*$B$12),IF(B22=$A$13,SUM(E22*$C$4*$B$13))))))))) -> FALSE | G22: =+(Tabla11112131420[[#This Row],[Columna4]]-Tabla11112131420[[#This Row],[Columna3]])*24 -> 0 | I22: INCAPACIDAD
A23: 2017-04-05 | E23: =+IF(Tabla11112131420[[#This Row],[Columna7]]<0,Tabla11112131420[[#This Row],[Columna7]]*-1,Tabla11112131420[[#This Row],[Columna7]]) -> 0 | F23: FALSE | G23: =+(Tabla11112131420[[#This Row],[Columna4]]-Tabla11112131420[[#This Row],[Columna3]])*24 -> 0
A24: 2017-04-06 | E24: =+IF(Tabla11112131420[[#This Row],[Columna7]]<0,Tabla11112131420[[#This Row],[Columna7]]*-1,Tabla11112131420[[#This Row],[Columna7]]) -> 0 | F24: =IF(B24=$A$7,SUM(E24*$C$4*$B$7),(IF(B24=$A$8,SUM(E24*$C$4*$B$8),IF(B24=$A$9,SUM(E24*$C$4*$B$9),IF(B24=$A$10,SUM(E24*$C$4*$B$10),IF(B24=$A$11,SUM(E24*$C$4*$B$11),IF(B24=$A$12,SUM(E24*$C$4*$B$12),IF(B24=$A$13,SUM(E24*$C$4*$B$13))))))))) -> FALSE | G24: =+(Tabla11112131420[[#This Row],[Columna4]]-Tabla11112131420[[#This Row],[Columna3]])*24 -> 0
A25: 2017-04-07 | E25: =+IF(Tabla11112131420[[#This Row],[Columna7]]<0,Tabla11112131420[[#This Row],[Columna7]]*-1,Tabla11112131420[[#This Row],[Columna7]]) -> 0 | F25: FALSE | G25: =+(Tabla11112131420[[#This Row],[Columna4]]-Tabla11112131420[[#This Row],[Columna3]])*24 -> 0
A26: 2017-04-08 | E26: =+IF(Tabla11112131420[[#This Row],[Columna7]]<0,Tabla11112131420[[#This Row],[Columna7]]*-1,Tabla11112131420[[#This Row],[Columna7]]) -> 0 | F26: FALSE | G26: =+(Tabla11112131420[[#This Row],[Columna4]]-Tabla11112131420[[#This Row],[Columna3]])*24 -> 0
A27: 2017-04-09 | E27: =+IF(Tabla11112131420[[#This Row],[Columna7]]<0,Tabla11112131420[[#This Row],[Columna7]]*-1,Tabla11112131420[[#This Row],[Columna7]]) -> 0 | F27: FALSE | G27: =+(Tabla11112131420[[#This Row],[Columna4]]-Tabla11112131420[[#This Row],[Columna3]])*24 -> 0
A28: 2017-04-10 | E28: =+IF(Tabla11112131420[[#This Row],[Columna7]]<0,Tabla11112131420[[#This Row],[Columna7]]*-1,Tabla11112131420[[#This Row],[Columna7]]) -> 0 | F28: FALSE | G28: =+(Tabla11112131420[[#This Row],[Columna4]]-Tabla11112131420[[#This Row],[Columna3]])*24 -> 0
A29: 2017-04-11 | E29: =+IF(Tabla11112131420[[#This Row],[Columna7]]<0,Tabla11112131420[[#This Row],[Columna7]]*-1,Tabla11112131420[[#This Row],[Columna7]]) -> 0 | F29: FALSE | G29: =+(Tabla11112131420[[#This Row],[Columna4]]-Tabla11112131420[[#This Row],[Columna3]])*24 -> 0
A30: 2017-04-12 | E30: =+IF(Tabla11112131420[[#This Row],[Columna7]]<0,Tabla11112131420[[#This Row],[Columna7]]*-1,Tabla11112131420[[#This Row],[Columna7]]) -> 0 | F30: FALSE | G30: =+(Tabla11112131420[[#This Row],[Columna4]]-Tabla11112131420[[#This Row],[Columna3]])*24 -> 0
A31: 2017-04-13 | E31: =+IF(Tabla11112131420[[#This Row],[Columna7]]<0,Tabla11112131420[[#This Row],[Columna7]]*-1,Tabla11112131420[[#This Row],[Columna7]]) -> 0 | F31: =IF(B31=$A$7,SUM(E31*$C$4*$B$7),(IF(B31=$A$8,SUM(E31*$C$4*$B$8),IF(B31=$A$9,SUM(E31*$C$4*$B$9),IF(B31=$A$10,SUM(E31*$C$4*$B$10),IF(B31=$A$11,SUM(E31*$C$4*$B$11),IF(B31=$A$12,SUM(E31*$C$4*$B$12),IF(B31=$A$13,SUM(E31*$C$4*$B$13))))))))) -> FALSE | G31: =+(Tabla11112131420[[#This Row],[Columna4]]-Tabla11112131420[[#This Row],[Columna3]])*24 -> 0
A32: 2017-04-14 | E32: =+IF(Tabla11112131420[[#This Row],[Columna7]]<0,Tabla11112131420[[#This Row],[Columna7]]*-1,Tabla11112131420[[#This Row],[Columna7]]) -> 0 | F32: =IF(B32=$A$7,SUM(E32*$C$4*$B$7),(IF(B32=$A$8,SUM(E32*$C$4*$B$8),IF(B32=$A$9,SUM(E32*$C$4*$B$9),IF(B32=$A$10,SUM(E32*$C$4*$B$10),IF(B32=$A$11,SUM(E32*$C$4*$B$11),IF(B32=$A$12,SUM(E32*$C$4*$B$12),IF(B32=$A$13,SUM(E32*$C$4*$B$13))))))))) -> FALSE | G32: =+(Tabla11112131420[[#This Row],[Columna4]]-Tabla11112131420[[#This Row],[Columna3]])*24 -> 0
A33: 2017-04-15 | E33: =+IF(Tabla11112131420[[#This Row],[Columna7]]<0,Tabla11112131420[[#This Row],[Columna7]]*-1,Tabla11112131420[[#This Row],[Columna7]]) -> 0 | F33: FALSE | G33: =+(Tabla11112131420[[#This Row],[Columna4]]-Tabla11112131420[[#This Row],[Columna3]])*24 -> 0
E34: =+IF(Tabla11112131420[[#This Row],[Columna7]]<0,Tabla11112131420[[#This Row],[Columna7]]*-1,Tabla11112131420[[#This Row],[Columna7]]) -> 0 | F34: FALSE | G34: =+(Tabla11112131420[[#This Row],[Columna4]]-Tabla11112131420[[#This Row],[Columna3]])*24 -> 0
E35: =+IF(Tabla11112131420[[#This Row],[Columna7]]<0,Tabla11112131420[[#This Row],[Columna7]]*-1,Tabla11112131420[[#This Row],[Columna7]]) -> 0 | F35: FALSE | G35: =+(Tabla11112131420[[#This Row],[Columna4]]-Tabla11112131420[[#This Row],[Columna3]])*24 -> 0
E36: =+IF(Tabla11112131420[[#This Row],[Columna7]]<0,Tabla11112131420[[#This Row],[Columna7]]*-1,Tabla11112131420[[#This Row],[Columna7]]) -> 0 | F36: FALSE | G36: =+(Tabla11112131420[[#This Row],[Columna4]]-Tabla11112131420[[#This Row],[Columna3]])*24 -> 0
E37: =+IF(Tabla11112131420[[#This Row],[Columna7]]<0,Tabla11112131420[[#This Row],[Columna7]]*-1,Tabla11112131420[[#This Row],[Columna7]]) -> 0 | F37: FALSE | G37: =+(Tabla11112131420[[#This Row],[Columna4]]-Tabla11112131420[[#This Row],[Columna3]])*24 -> 0
E38: =+IF(Tabla11112131420[[#This Row],[Columna7]]<0,Tabla11112131420[[#This Row],[Columna7]]*-1,Tabla11112131420[[#This Row],[Columna7]]) -> 0 | F38: FALSE | G38: =+(Tabla11112131420[[#This Row],[Columna4]]-Tabla11112131420[[#This Row],[Columna3]])*24 -> 0
E39: =+IF(Tabla11112131420[[#This Row],[Columna7]]<0,Tabla11112131420[[#This Row],[Columna7]]*-1,Tabla11112131420[[#This Row],[Columna7]]) -> 0 | F39: FALSE | G39: =+(Tabla11112131420[[#This Row],[Columna4]]-Tabla11112131420[[#This Row],[Columna3]])*24 -> 0
E40: =+IF(Tabla11112131420[[#This Row],[Columna7]]<0,Tabla11112131420[[#This Row],[Columna7]]*-1,Tabla11112131420[[#This Row],[Columna7]]) -> 0 | F40: FALSE | G40: =+(Tabla11112131420[[#This Row],[Columna4]]-Tabla11112131420[[#This Row],[Columna3]])*24 -> 0
E41: =+IF(Tabla11112131420[[#This Row],[Columna7]]<0,Tabla11112131420[[#This Row],[Columna7]]*-1,Tabla11112131420[[#This Row],[Columna7]]) -> 0 | F41: =IF(B41=$A$7,SUM(E41*$C$4*$B$7),(IF(B41=$A$8,SUM(E41*$C$4*$B$8),IF(B41=$A$9,SUM(E41*$C$4*$B$9),IF(B41=$A$10,SUM(E41*$C$4*$B$10),IF(B41=$A$11,SUM(E41*$C$4*$B$11),IF(B41=$A$12,SUM(E41*$C$4*$B$12),IF(B41=$A$13,SUM(E41*$C$4*$B$13))))))))) -> FALSE | G41: =+(Tabla11112131420[[#This Row],[Columna4]]-Tabla11112131420[[#This Row],[Columna3]])*24 -> 0
E42: =+IF(Tabla11112131420[[#This Row],[Columna7]]<0,Tabla11112131420[[#This Row],[Columna7]]*-1,Tabla11112131420[[#This Row],[Columna7]]) -> 0 | F42: =IF(B42=$A$7,SUM(E42*$C$4*$B$7),(IF(B42=$A$8,SUM(E42*$C$4*$B$8),IF(B42=$A$9,SUM(E42*$C$4*$B$9),IF(B42=$A$10,SUM(E42*$C$4*$B$10),IF(B42=$A$11,SUM(E42*$C$4*$B$11),IF(B42=$A$12,SUM(E42*$C$4*$B$12),IF(B42=$A$13,SUM(E42*$C$4*$B$13))))))))) -> FALSE | G42: =+(Tabla11112131420[[#This Row],[Columna4]]-Tabla11112131420[[#This Row],[Columna3]])*24 -> 0
E43: =+IF(Tabla11112131420[[#This Row],[Columna7]]<0,Tabla11112131420[[#This Row],[Columna7]]*-1,Tabla11112131420[[#This Row],[Columna7]]) -> 0 | F43: FALSE | G43: =+(Tabla11112131420[[#This Row],[Columna4]]-Tabla11112131420[[#This Row],[Columna3]])*24 -> 0
E44: =+IF(Tabla11112131420[[#This Row],[Columna7]]<0,Tabla11112131420[[#This Row],[Columna7]]*-1,Tabla11112131420[[#This Row],[Columna7]]) -> 0 | F44: FALSE | G44: =+(Tabla11112131420[[#This Row],[Columna4]]-Tabla11112131420[[#This Row],[Columna3]])*24 -> 0
E45: =+IF(Tabla11112131420[[#This Row],[Columna7]]<0,Tabla11112131420[[#This Row],[Columna7]]*-1,Tabla11112131420[[#This Row],[Columna7]]) -> 0 | F45: FALSE | G45: =+(Tabla11112131420[[#This Row],[Columna4]]-Tabla11112131420[[#This Row],[Columna3]])*24 -> 0
E46: =+IF(Tabla11112131420[[#This Row],[Columna7]]<0,Tabla11112131420[[#This Row],[Columna7]]*-1,Tabla11112131420[[#This Row],[Columna7]]) -> 0 | F46: FALSE | G46: =+(Tabla11112131420[[#This Row],[Columna4]]-Tabla11112131420[[#This Row],[Columna3]])*24 -> 0
E47: =+IF(Tabla11112131420[[#This Row],[Columna7]]<0,Tabla11112131420[[#This Row],[Columna7]]*-1,Tabla11112131420[[#This Row],[Columna7]]) -> 0 | F47: FALSE | G47: =+(Tabla11112131420[[#This Row],[Columna4]]-Tabla11112131420[[#This Row],[Columna3]])*24 -> 0
E48: =+IF(Tabla11112131420[[#This Row],[Columna7]]<0,Tabla11112131420[[#This Row],[Columna7]]*-1,Tabla11112131420[[#This Row],[Columna7]]) -> 0 | F48: FALSE | G48: =+(Tabla11112131420[[#This Row],[Columna4]]-Tabla11112131420[[#This Row],[Columna3]])*24 -> 0
E49: =+IF(Tabla11112131420[[#This Row],[Columna7]]<0,Tabla11112131420[[#This Row],[Columna7]]*-1,Tabla11112131420[[#This Row],[Columna7]]) -> 0 | F49: FALSE | G49: =+(Tabla11112131420[[#This Row],[Columna4]]-Tabla11112131420[[#This Row],[Columna3]])*24 -> 0
E50: =+IF(Tabla11112131420[[#This Row],[Columna7]]<0,Tabla11112131420[[#This Row],[Columna7]]*-1,Tabla11112131420[[#This Row],[Columna7]]) -> 0 | F50: =IF(B50=$A$7,SUM(E50*$C$4*$B$7),(IF(B50=$A$8,SUM(E50*$C$4*$B$8),IF(B50=$A$9,SUM(E50*$C$4*$B$9),IF(B50=$A$10,SUM(E50*$C$4*$B$10),IF(B50=$A$11,SUM(E50*$C$4*$B$11),IF(B50=$A$12,SUM(E50*$C$4*$B$12),IF(B50=$A$13,SUM(E50*$C$4*$B$13))))))))) -> FALSE | G50: =+(Tabla11112131420[[#This Row],[Columna4]]-Tabla11112131420[[#This Row],[Columna3]])*24 -> 0
E51: =+IF(Tabla11112131420[[#This Row],[Columna7]]<0,Tabla11112131420[[#This Row],[Columna7]]*-1,Tabla11112131420[[#This Row],[Columna7]]) -> 0 | F51: =IF(B51=$A$7,SUM(E51*$C$4*$B$7),(IF(B51=$A$8,SUM(E51*$C$4*$B$8),IF(B51=$A$9,SUM(E51*$C$4*$B$9),IF(B51=$A$10,SUM(E51*$C$4*$B$10),IF(B51=$A$11,SUM(E51*$C$4*$B$11),IF(B51=$A$12,SUM(E51*$C$4*$B$12),IF(B51=$A$13,SUM(E51*$C$4*$B$13))))))))) -> FALSE | G51: =+(Tabla11112131420[[#This Row],[Columna4]]-Tabla11112131420[[#This Row],[Columna3]])*24 -> 0
E52: =+IF(Tabla11112131420[[#This Row],[Columna7]]<0,Tabla11112131420[[#This Row],[Columna7]]*-1,Tabla11112131420[[#This Row],[Columna7]]) -> 0 | F52: =IF(B52=$A$7,SUM(E52*$C$4*$B$7),(IF(B52=$A$8,SUM(E52*$C$4*$B$8),IF(B52=$A$9,SUM(E52*$C$4*$B$9),IF(B52=$A$10,SUM(E52*$C$4*$B$10),IF(B52=$A$11,SUM(E52*$C$4*$B$11),IF(B52=$A$12,SUM(E52*$C$4*$B$12),IF(B52=$A$13,SUM(E52*$C$4*$B$13))))))))) -> FALSE | G52: =+(Tabla11112131420[[#This Row],[Columna4]]-Tabla11112131420[[#This Row],[Columna3]])*24 -> 0
E53: =+IF(Tabla11112131420[[#This Row],[Columna7]]<0,Tabla11112131420[[#This Row],[Columna7]]*-1,Tabla11112131420[[#This Row],[Columna7]]) -> 0 | F53: =IF(B53=$A$7,SUM(E53*$C$4*$B$7),(IF(B53=$A$8,SUM(E53*$C$4*$B$8),IF(B53=$A$9,SUM(E53*$C$4*$B$9),IF(B53=$A$10,SUM(E53*$C$4*$B$10),IF(B53=$A$11,SUM(E53*$C$4*$B$11),IF(B53=$A$12,SUM(E53*$C$4*$B$12),IF(B53=$A$13,SUM(E53*$C$4*$B$13))))))))) -> FALSE | G53: =+(Tabla11112131420[[#This Row],[Columna4]]-Tabla11112131420[[#This Row],[Columna3]])*24 -> 0
E54: =+IF(Tabla11112131420[[#This Row],[Columna7]]<0,Tabla11112131420[[#This Row],[Columna7]]*-1,Tabla11112131420[[#This Row],[Columna7]]) -> 0 | F54: FALSE | G54: =+(Tabla11112131420[[#This Row],[Columna4]]-Tabla11112131420[[#This Row],[Columna3]])*24 -> 0
E55: =+IF(Tabla11112131420[[#This Row],[Columna7]]<0,Tabla11112131420[[#This Row],[Columna7]]*-1,Tabla11112131420[[#This Row],[Columna7]]) -> 0 | F55: FALSE | G55: =+(Tabla11112131420[[#This Row],[Columna4]]-Tabla11112131420[[#This Row],[Columna3]])*24 -> 0
E56: =+IF(Tabla11112131420[[#This Row],[Columna7]]<0,Tabla11112131420[[#This Row],[Columna7]]*-1,Tabla11112131420[[#This Row],[Columna7]]) -> 0 | F56: FALSE | G56: =+(Tabla11112131420[[#This Row],[Columna4]]-Tabla11112131420[[#This Row],[Columna3]])*24 -> 0
E57: =+IF(Tabla11112131420[[#This Row],[Columna7]]<0,Tabla11112131420[[#This Row],[Columna7]]*-1,Tabla11112131420[[#This Row],[Columna7]]) -> 0 | F57: FALSE | G57: =+(Tabla11112131420[[#This Row],[Columna4]]-Tabla11112131420[[#This Row],[Columna3]])*24 -> 0
E58: =+IF(Tabla11112131420[[#This Row],[Columna7]]<0,Tabla11112131420[[#This Row],[Columna7]]*-1,Tabla11112131420[[#This Row],[Columna7]]) -> 0 | F58: FALSE | G58: =+(Tabla11112131420[[#This Row],[Columna4]]-Tabla11112131420[[#This Row],[Columna3]])*24 -> 0
E59: =+IF(Tabla11112131420[[#This Row],[Columna7]]<0,Tabla11112131420[[#This Row],[Columna7]]*-1,Tabla11112131420[[#This Row],[Columna7]]) -> 0 | F59: FALSE | G59: =+(Tabla11112131420[[#This Row],[Columna4]]-Tabla11112131420[[#This Row],[Columna3]])*24 -> 0
E60: =+IF(Tabla11112131420[[#This Row],[Columna7]]<0,Tabla11112131420[[#This Row],[Columna7]]*-1,Tabla11112131420[[#This Row],[Columna7]]) -> 0 | F60: FALSE | G60: =+(Tabla11112131420[[#This Row],[Columna4]]-Tabla11112131420[[#This Row],[Columna3]])*24 -> 0
E61: =+IF(Tabla11112131420[[#This Row],[Columna7]]<0,Tabla11112131420[[#This Row],[Columna7]]*-1,Tabla11112131420[[#This Row],[Columna7]]) -> 0 | F61: FALSE | G61: =+(Tabla11112131420[[#This Row],[Columna4]]-Tabla11112131420[[#This Row],[Columna3]])*24 -> 0
E62: =+IF(Tabla11112131420[[#This Row],[Columna7]]<0,Tabla11112131420[[#This Row],[Columna7]]*-1,Tabla11112131420[[#This Row],[Columna7]]) -> 0 | F62: FALSE | G62: =+(Tabla11112131420[[#This Row],[Columna4]]-Tabla11112131420[[#This Row],[Columna3]])*24 -> 0
E63: =+IF(Tabla11112131420[[#This Row],[Columna7]]<0,Tabla11112131420[[#This Row],[Columna7]]*-1,Tabla11112131420[[#This Row],[Columna7]]) -> 0 | F63: FALSE | G63: =+(Tabla11112131420[[#This Row],[Columna4]]-Tabla11112131420[[#This Row],[Columna3]])*24 -> 0
E64: =+IF(Tabla11112131420[[#This Row],[Columna7]]<0,Tabla11112131420[[#This Row],[Columna7]]*-1,Tabla11112131420[[#This Row],[Columna7]]) -> 0 | F64: FALSE | G64: =+(Tabla11112131420[[#This Row],[Columna4]]-Tabla11112131420[[#This Row],[Columna3]])*24 -> 0
E65: =+IF(Tabla11112131420[[#This Row],[Columna7]]<0,Tabla11112131420[[#This Row],[Columna7]]*-1,Tabla11112131420[[#This Row],[Columna7]]) -> 0 | F65: FALSE | G65: =+(Tabla11112131420[[#This Row],[Columna4]]-Tabla11112131420[[#This Row],[Columna3]])*24 -> 0
E66: =+IF(Tabla11112131420[[#This Row],[Columna7]]<0,Tabla11112131420[[#This Row],[Columna7]]*-1,Tabla11112131420[[#This Row],[Columna7]]) -> 0 | F66: FALSE | G66: =+(Tabla11112131420[[#This Row],[Columna4]]-Tabla11112131420[[#This Row],[Columna3]])*24 -> 0
E67: =+IF(Tabla11112131420[[#This Row],[Columna7]]<0,Tabla11112131420[[#This Row],[Columna7]]*-1,Tabla11112131420[[#This Row],[Columna7]]) -> 0 | F67: FALSE | G67: =+(Tabla11112131420[[#This Row],[Columna4]]-Tabla11112131420[[#This Row],[Columna3]])*24 -> 0
E68: =+IF(Tabla11112131420[[#This Row],[Columna7]]<0,Tabla11112131420[[#This Row],[Columna7]]*-1,Tabla11112131420[[#This Row],[Columna7]]) -> 0 | F68: FALSE | G68: =+(Tabla11112131420[[#This Row],[Columna4]]-Tabla11112131420[[#This Row],[Columna3]])*24 -> 0
E69: =+IF(Tabla11112131420[[#This Row],[Columna7]]<0,Tabla11112131420[[#This Row],[Columna7]]*-1,Tabla11112131420[[#This Row],[Columna7]]) -> 0 | F69: FALSE | G69: =+(Tabla11112131420[[#This Row],[Columna4]]-Tabla11112131420[[#This Row],[Columna3]])*24 -> 0
E70: =+IF(Tabla11112131420[[#This Row],[Columna7]]<0,Tabla11112131420[[#This Row],[Columna7]]*-1,Tabla11112131420[[#This Row],[Columna7]]) -> 0 | F70: FALSE | G70: =+(Tabla11112131420[[#This Row],[Columna4]]-Tabla11112131420[[#This Row],[Columna3]])*24 -> 0
E71: =+IF(Tabla11112131420[[#This Row],[Columna7]]<0,Tabla11112131420[[#This Row],[Columna7]]*-1,Tabla11112131420[[#This Row],[Columna7]]) -> 0 | F71: FALSE | G71: =+(Tabla11112131420[[#This Row],[Columna4]]-Tabla11112131420[[#This Row],[Columna3]])*24 -> 0
E72: =+IF(Tabla11112131420[[#This Row],[Columna7]]<0,Tabla11112131420[[#This Row],[Columna7]]*-1,Tabla11112131420[[#This Row],[Columna7]]) -> 0 | F72: FALSE | G72: =+(Tabla11112131420[[#This Row],[Columna4]]-Tabla11112131420[[#This Row],[Columna3]])*24 -> 0
E73: =+IF(Tabla11112131420[[#This Row],[Columna7]]<0,Tabla11112131420[[#This Row],[Columna7]]*-1,Tabla11112131420[[#This Row],[Columna7]]) -> 0 | F73: FALSE | G73: =+(Tabla11112131420[[#This Row],[Columna4]]-Tabla11112131420[[#This Row],[Columna3]])*24 -> 0
E74: =+IF(Tabla11112131420[[#This Row],[Columna7]]<0,Tabla11112131420[[#This Row],[Columna7]]*-1,Tabla11112131420[[#This Row],[Columna7]]) -> 0 | F74: FALSE | G74: =+(Tabla11112131420[[#This Row],[Columna4]]-Tabla11112131420[[#This Row],[Columna3]])*24 -> 0
E75: =+IF(Tabla11112131420[[#This Row],[Columna7]]<0,Tabla11112131420[[#This Row],[Columna7]]*-1,Tabla11112131420[[#This Row],[Columna7]]) -> 0 | F75: FALSE | G75: =+(Tabla11112131420[[#This Row],[Columna4]]-Tabla11112131420[[#This Row],[Columna3]])*24 -> 0
E76: =+IF(Tabla11112131420[[#This Row],[Columna7]]<0,Tabla11112131420[[#This Row],[Columna7]]*-1,Tabla11112131420[[#This Row],[Columna7]]) -> 0 | F76: FALSE | G76: =+(Tabla11112131420[[#This Row],[Columna4]]-Tabla11112131420[[#This Row],[Columna3]])*24 -> 0
E77: =+IF(Tabla11112131420[[#This Row],[Columna7]]<0,Tabla11112131420[[#This Row],[Columna7]]*-1,Tabla11112131420[[#This Row],[Columna7]]) -> 0 | F77: FALSE | G77: =+(Tabla11112131420[[#This Row],[Columna4]]-Tabla11112131420[[#This Row],[Columna3]])*24 -> 0
E78: =+IF(Tabla11112131420[[#This Row],[Columna7]]<0,Tabla11112131420[[#This Row],[Columna7]]*-1,Tabla11112131420[[#This Row],[Columna7]]) -> 0 | F78: FALSE | G78: =+(Tabla11112131420[[#This Row],[Columna4]]-Tabla11112131420[[#This Row],[Columna3]])*24 -> 0
E79: =+IF(Tabla11112131420[[#This Row],[Columna7]]<0,Tabla11112131420[[#This Row],[Columna7]]*-1,Tabla11112131420[[#This Row],[Columna7]]) -> 0 | F79: FALSE | G79: =+(Tabla11112131420[[#This Row],[Columna4]]-Tabla11112131420[[#This Row],[Columna3]])*24 -> 0

Sheet MARIA (hidden)
A1: EMPLEADO
A2: SALARIO BÁSICO | C2: 368858
A3: AUX. TRANSPORTE | C3: 83140
A4: HORA BÁSICA | C4: =+C2/240 -> 1536.908333
A6: CLASE | B6: FACTOR | C6: VR. HORA | D6: Total Horas | E6: Vr. Horas
A7: HEOD | B7: 1.25 | C7: =+$C$4*B7 -> 1921.135417 | D7: =SUMIF($B$41:$B$80,$A7,$E$41:$E$80) -> 0 | E7: =+IF(G7<0,G7*-1,G7) -> 0 | G7: =SUMIF($B$41:$B$80,$A7,$F$41:$F$80) -> 0
A8: HEON | B8: 1.75 | C8: =+$C$4*B8 -> 2689.589583 | D8: =SUMIF($B$19:$B$80,$A8,$E$19:$E$80) -> 0 | E8: =+IF(G8<0,G8*-1,G8) -> 0 | G8: =SUMIF($B$19:$B$80,$A8,$F$19:$F$80) -> 0
A9: HEFD | B9: 2 | C9: 3073.816667 | D9: =SUMIF($B$19:$B$80,$A9,$E$19:$E$80) -> 0 | E9: 0 | G9: =SUMIF($B$19:$B$80,$A9,$F$19:$F$80) -> 0
A10: HEFN | B10: 2.5 | C10: 3842.270833 | D10: =SUMIF($B$19:$B$80,$A10,$E$19:$E$80) -> 0 | E10: 0 | G10: =SUMIF($B$19:$B$80,$A10,$F$19:$F$80) -> 0
A11: RON | B11: 0.35 | C11: 537.9179167 | D11: =SUMIF($B$19:$B$80,$A11,$E$19:$E$80) -> 0 | E11: 0 | G11: =SUMIF($B$19:$B$79,$A11,$F$19:$F$79) -> 0
A12: RFD | B12: 0.75 | C12: 1152.68125 | D12: =SUMIF($B$19:$B$79,$A12,$E$19:$E$79) -> 0 | E12: 0 | G12: =SUMIF($B$19:$B$79,$A12,$F$19:$F$79) -> 0
A13: RFN | B13: 1.1 | C13: 1690.599167 | D13: =SUMIF($B$19:$B$79,$A13,$E$19:$E$79) -> 0 | E13: 0 | G13: =SUMIF($B$20:$B$79,$A13,$F$20:$F$79) -> 0
A14: Total | E14: =SUM(E7:E13) -> 0 | G14: =SUM(G7:G13) -> 0
A16: Periodo del 1 al 15 Octubre de 2016
A17: Fecha | B17: TIPO HE | C17: ENTRA | D17: SALE | E17: TOTAL | F17: DEVENGADO
A18: Columna1 | B18: Columna2 | C18: Columna3 | D18: Columna4 | E18: Columna5 | F18: Columna6 | G18: Columna7
A19: 2017-04-01 | E19: =+IF(Tabla111121314202[[#This Row],[Columna7]]<0,Tabla111121314202[[#This Row],[Columna7]]*-1,Tabla111121314202[[#This Row],[Columna7]]) -> 0 | F19: =IF(B19=$A$7,SUM(E19*$C$4*$B$7),(IF(B19=$A$8,SUM(E19*$C$4*$B$8),IF(B19=$A$9,SUM(E19*$C$4*$B$9),IF(B19=$A$10,SUM(E19*$C$4*$B$10),IF(B19=$A$11,SUM(E19*$C$4*$B$11),IF(B19=$A$12,SUM(E19*$C$4*$B$12),IF(B19=$A$13,SUM(E19*$C$4*$B$13))))))))) -> FALSE | G19: =+(Tabla111121314202[[#This Row],[Columna4]]-Tabla111121314202[[#This Row],[Columna3]])*24 -> 0 | I19: DESCANSO
A20: 2017-04-02 | E20: =+IF(Tabla111121314202[[#This Row],[Columna7]]<0,Tabla111121314202[[#This Row],[Columna7]]*-1,Tabla111121314202[[#This Row],[Columna7]]) -> 0 | F20: FALSE | G20: =+(Tabla111121314202[[#This Row],[Columna4]]-Tabla111121314202[[#This Row],[Columna3]])*24 -> 0 | I20: DOMINGO
A21: 2017-04-03 | E21: =+IF(Tabla111121314202[[#This Row],[Columna7]]<0,Tabla111121314202[[#This Row],[Columna7]]*-1,Tabla111121314202[[#This Row],[Columna7]]) -> 0 | F21: FALSE | G21: =+(Tabla111121314202[[#This Row],[Columna4]]-Tabla111121314202[[#This Row],[Columna3]])*24 -> 0 | I21: FESTIVO
A22: 2017-04-04 | E22: =+IF(Tabla111121314202[[#This Row],[Columna7]]<0,Tabla111121314202[[#This Row],[Columna7]]*-1,Tabla111121314202[[#This Row],[Columna7]]) -> 0 | F22: =IF(B22=$A$7,SUM(E22*$C$4*$B$7),(IF(B22=$A$8,SUM(E22*$C$4*$B$8),IF(B22=$A$9,SUM(E22*$C$4*$B$9),IF(B22=$A$10,SUM(E22*$C$4*$B$10),IF(B22=$A$11,SUM(E22*$C$4*$B$11),IF(B22=$A$12,SUM(E22*$C$4*$B$12),IF(B22=$A$13,SUM(E22*$C$4*$B$13))))))))) -> FALSE | G22: =+(Tabla111121314202[[#This Row],[Columna4]]-Tabla111121314202[[#This Row],[Columna3]])*24 -> 0
A23: 2017-04-05 | E23: =+IF(Tabla111121314202[[#This Row],[Columna7]]<0,Tabla111121314202[[#This Row],[Columna7]]*-1,Tabla111121314202[[#This Row],[Columna7]]) -> 0 | F23: FALSE | G23: =+(Tabla111121314202[[#This Row],[Columna4]]-Tabla111121314202[[#This Row],[Columna3]])*24 -> 0
A24: 2017-04-06 | E24: =+IF(Tabla111121314202[[#This Row],[Columna7]]<0,Tabla111121314202[[#This Row],[Columna7]]*-1,Tabla111121314202[[#This Row],[Columna7]]) -> 0 | F24: =IF(B24=$A$7,SUM(E24*$C$4*$B$7),(IF(B24=$A$8,SUM(E24*$C$4*$B$8),IF(B24=$A$9,SUM(E24*$C$4*$B$9),IF(B24=$A$10,SUM(E24*$C$4*$B$10),IF(B24=$A$11,SUM(E24*$C$4*$B$11),IF(B24=$A$12,SUM(E24*$C$4*$B$12),IF(B24=$A$13,SUM(E24*$C$4*$B$13))))))))) -> FALSE | G24: =+(Tabla111121314202[[#This Row],[Columna4]]-Tabla111121314202[[#This Row],[Columna3]])*24 -> 0
A25: 2017-04-07 | E25: =+IF(Tabla111121314202[[#This Row],[Columna7]]<0,Tabla111121314202[[#This Row],[Columna7]]*-1,Tabla111121314202[[#This Row],[Columna7]]) -> 0 | F25: FALSE | G25: =+(Tabla111121314202[[#This Row],[Columna4]]-Tabla111121314202[[#This Row],[Columna3]])*24 -> 0
A26: 2017-04-08 | E26: =+IF(Tabla111121314202[[#This Row],[Columna7]]<0,Tabla111121314202[[#This Row],[Columna7]]*-1,Tabla111121314202[[#This Row],[Columna7]]) -> 0 | F26: FALSE | G26: =+(Tabla111121314202[[#This Row],[Columna4]]-Tabla111121314202[[#This Row],[Columna3]])*24 -> 0
A27: 2017-04-09 | E27: =+IF(Tabla111121314202[[#This Row],[Columna7]]<0,Tabla111121314202[[#This Row],[Columna7]]*-1,Tabla111121314202[[#This Row],[Columna7]]) -> 0 | F27: FALSE | G27: =+(Tabla111121314202[[#This Row],[Columna4]]-Tabla111121314202[[#This Row],[Columna3]])*24 -> 0
A28: 2017-04-10 | E28: =+IF(Tabla111121314202[[#This Row],[Columna7]]<0,Tabla111121314202[[#This Row],[Columna7]]*-1,Tabla111121314202[[#This Row],[Columna7]]) -> 0 | F28: FALSE | G28: =+(Tabla111121314202[[#This Row],[Columna4]]-Tabla111121314202[[#This Row],[Columna3]])*24 -> 0
A29: 2017-04-11 | E29: =+IF(Tabla111121314202[[#This Row],[Columna7]]<0,Tabla111121314202[[#This Row],[Columna7]]*-1,Tabla111121314202[[#This Row],[Columna7]]) -> 0 | F29: FALSE | G29: =+(Tabla111121314202[[#This Row],[Columna4]]-Tabla111121314202[[#This Row],[Columna3]])*24 -> 0
A30: 2017-04-12 | E30: =+IF(Tabla111121314202[[#This Row],[Columna7]]<0,Tabla111121314202[[#This Row],[Columna7]]*-1,Tabla111121314202[[#This Row],[Columna7]]) -> 0 | F30: FALSE | G30: =+(Tabla111121314202[[#This Row],[Columna4]]-Tabla111121314202[[#This Row],[Columna3]])*24 -> 0
A31: 2017-04-13 | E31: =+IF(Tabla111121314202[[#This Row],[Columna7]]<0,Tabla111121314202[[#This Row],[Columna7]]*-1,Tabla111121314202[[#This Row],[Columna7]]) -> 0 | F31: =IF(B31=$A$7,SUM(E31*$C$4*$B$7),(IF(B31=$A$8,SUM(E31*$C$4*$B$8),IF(B31=$A$9,SUM(E31*$C$4*$B$9),IF(B31=$A$10,SUM(E31*$C$4*$B$10),IF(B31=$A$11,SUM(E31*$C$4*$B$11),IF(B31=$A$12,SUM(E31*$C$4*$B$12),IF(B31=$A$13,SUM(E31*$C$4*$B$13))))))))) -> FALSE | G31: =+(Tabla111121314202[[#This Row],[Columna4]]-Tabla111121314202[[#This Row],[Columna3]])*24 -> 0
A32: 2017-04-14 | E32: =+IF(Tabla111121314202[[#This Row],[Columna7]]<0,Tabla111121314202[[#This Row],[Columna7]]*-1,Tabla111121314202[[#This Row],[Columna7]]) -> 0 | F32: =IF(B32=$A$7,SUM(E32*$C$4*$B$7),(IF(B32=$A$8,SUM(E32*$C$4*$B$8),IF(B32=$A$9,SUM(E32*$C$4*$B$9),IF(B32=$A$10,SUM(E32*$C$4*$B$10),IF(B32=$A$11,SUM(E32*$C$4*$B$11),IF(B32=$A$12,SUM(E32*$C$4*$B$12),IF(B32=$A$13,SUM(E32*$C$4*$B$13))))))))) -> FALSE | G32: =+(Tabla111121314202[[#This Row],[Columna4]]-Tabla111121314202[[#This Row],[Columna3]])*24 -> 0
A33: 2017-04-15 | E33: =+IF(Tabla111121314202[[#This Row],[Columna7]]<0,Tabla111121314202[[#This Row],[Columna7]]*-1,Tabla111121314202[[#This Row],[Columna7]]) -> 0 | F33: FALSE | G33: =+(Tabla111121314202[[#This Row],[Columna4]]-Tabla111121314202[[#This Row],[Columna3]])*24 -> 0
E34: =+IF(Tabla111121314202[[#This Row],[Columna7]]<0,Tabla111121314202[[#This Row],[Columna7]]*-1,Tabla111121314202[[#This Row],[Columna7]]) -> 0 | F34: FALSE | G34: =+(Tabla111121314202[[#This Row],[Columna4]]-Tabla111121314202[[#This Row],[Columna3]])*24 -> 0
E35: =+IF(Tabla111121314202[[#This Row],[Columna7]]<0,Tabla111121314202[[#This Row],[Columna7]]*-1,Tabla111121314202[[#This Row],[Columna7]]) -> 0 | F35: FALSE | G35: =+(Tabla111121314202[[#This Row],[Columna4]]-Tabla111121314202[[#This Row],[Columna3]])*24 -> 0
E36: =+IF(Tabla111121314202[[#This Row],[Columna7]]<0,Tabla111121314202[[#This Row],[Columna7]]*-1,Tabla111121314202[[#This Row],[Columna7]]) -> 0 | F36: FALSE | G36: =+(Tabla111121314202[[#This Row],[Columna4]]-Tabla111121314202[[#This Row],[Columna3]])*24 -> 0
E37: =+IF(Tabla111121314202[[#This Row],[Columna7]]<0,Tabla111121314202[[#This Row],[Columna7]]*-1,Tabla111121314202[[#This Row],[Columna7]]) -> 0 | F37: FALSE | G37: =+(Tabla111121314202[[#This Row],[Columna4]]-Tabla111121314202[[#This Row],[Columna3]])*24 -> 0
E38: =+IF(Tabla111121314202[[#This Row],[Columna7]]<0,Tabla111121314202[[#This Row],[Columna7]]*-1,Tabla111121314202[[#This Row],[Columna7]]) -> 0 | F38: FALSE | G38: =+(Tabla111121314202[[#This Row],[Columna4]]-Tabla111121314202[[#This Row],[Columna3]])*24 -> 0
E39: =+IF(Tabla111121314202[[#This Row],[Columna7]]<0,Tabla111121314202[[#This Row],[Columna7]]*-1,Tabla111121314202[[#This Row],[Columna7]]) -> 0 | F39: FALSE | G39: =+(Tabla111121314202[[#This Row],[Columna4]]-Tabla111121314202[[#This Row],[Columna3]])*24 -> 0
E40: =+IF(Tabla111121314202[[#This Row],[Columna7]]<0,Tabla111121314202[[#This Row],[Columna7]]*-1,Tabla111121314202[[#This Row],[Columna7]]) -> 0 | F40: FALSE | G40: =+(Tabla111121314202[[#This Row],[Columna4]]-Tabla111121314202[[#This Row],[Columna3]])*24 -> 0
E41: =+IF(Tabla111121314202[[#This Row],[Columna7]]<0,Tabla111121314202[[#This Row],[Columna7]]*-1,Tabla111121314202[[#This Row],[Columna7]]) -> 0 | F41: =IF(B41=$A$7,SUM(E41*$C$4*$B$7),(IF(B41=$A$8,SUM(E41*$C$4*$B$8),IF(B41=$A$9,SUM(E41*$C$4*$B$9),IF(B41=$A$10,SUM(E41*$C$4*$B$10),IF(B41=$A$11,SUM(E41*$C$4*$B$11),IF(B41=$A$12,SUM(E41*$C$4*$B$12),IF(B41=$A$13,SUM(E41*$C$4*$B$13))))))))) -> FALSE | G41: =+(Tabla111121314202[[#This Row],[Columna4]]-Tabla111121314202[[#This Row],[Columna3]])*24 -> 0
E42: =+IF(Tabla111121314202[[#This Row],[Columna7]]<0,Tabla111121314202[[#This Row],[Columna7]]*-1,Tabla111121314202[[#This Row],[Columna7]]) -> 0 | F42: =IF(B42=$A$7,SUM(E42*$C$4*$B$7),(IF(B42=$A$8,SUM(E42*$C$4*$B$8),IF(B42=$A$9,SUM(E42*$C$4*$B$9),IF(B42=$A$10,SUM(E42*$C$4*$B$10),IF(B42=$A$11,SUM(E42*$C$4*$B$11),IF(B42=$A$12,SUM(E42*$C$4*$B$12),IF(B42=$A$13,SUM(E42*$C$4*$B$13))))))))) -> FALSE | G42: =+(Tabla111121314202[[#This Row],[Columna4]]-Tabla111121314202[[#This Row],[Columna3]])*24 -> 0
E43: =+IF(Tabla111121314202[[#This Row],[Columna7]]<0,Tabla111121314202[[#This Row],[Columna7]]*-1,Tabla111121314202[[#This Row],[Columna7]]) -> 0 | F43: FALSE | G43: =+(Tabla111121314202[[#This Row],[Columna4]]-Tabla111121314202[[#This Row],[Columna3]])*24 -> 0
E44: =+IF(Tabla111121314202[[#This Row],[Columna7]]<0,Tabla111121314202[[#This Row],[Columna7]]*-1,Tabla111121314202[[#This Row],[Columna7]]) -> 0 | F44: FALSE | G44: =+(Tabla111121314202[[#This Row],[Columna4]]-Tabla111121314202[[#This Row],[Columna3]])*24 -> 0
E45: =+IF(Tabla111121314202[[#This Row],[Columna7]]<0,Tabla111121314202[[#This Row],[Columna7]]*-1,Tabla111121314202[[#This Row],[Columna7]]) -> 0 | F45: FALSE | G45: =+(Tabla111121314202[[#This Row],[Columna4]]-Tabla111121314202[[#This Row],[Columna3]])*24 -> 0
E46: =+IF(Tabla111121314202[[#This Row],[Columna7]]<0,Tabla111121314202[[#This Row],[Columna7]]*-1,Tabla111121314202[[#This Row],[Columna7]]) -> 0 | F46: FALSE | G46: =+(Tabla111121314202[[#This Row],[Columna4]]-Tabla111121314202[[#This Row],[Columna3]])*24 -> 0
E47: =+IF(Tabla111121314202[[#This Row],[Columna7]]<0,Tabla111121314202[[#This Row],[Columna7]]*-1,Tabla111121314202[[#This Row],[Columna7]]) -> 0 | F47: FALSE | G47: =+(Tabla111121314202[[#This Row],[Columna4]]-Tabla111121314202[[#This Row],[Columna3]])*24 -> 0
E48: =+IF(Tabla111121314202[[#This Row],[Columna7]]<0,Tabla111121314202[[#This Row],[Columna7]]*-1,Tabla111121314202[[#This Row],[Columna7]]) -> 0 | F48: FALSE | G48: =+(Tabla111121314202[[#This Row],[Columna4]]-Tabla111121314202[[#This Row],[Columna3]])*24 -> 0
E49: =+IF(Tabla111121314202[[#This Row],[Columna7]]<0,Tabla111121314202[[#This Row],[Columna7]]*-1,Tabla111121314202[[#This Row],[Columna7]]) -> 0 | F49: FALSE | G49: =+(Tabla111121314202[[#This Row],[Columna4]]-Tabla111121314202[[#This Row],[Columna3]])*24 -> 0
E50: =+IF(Tabla111121314202[[#This Row],[Columna7]]<0,Tabla111121314202[[#This Row],[Columna7]]*-1,Tabla111121314202[[#This Row],[Columna7]]) -> 0 | F50: =IF(B50=$A$7,SUM(E50*$C$4*$B$7),(IF(B50=$A$8,SUM(E50*$C$4*$B$8),IF(B50=$A$9,SUM(E50*$C$4*$B$9),IF(B50=$A$10,SUM(E50*$C$4*$B$10),IF(B50=$A$11,SUM(E50*$C$4*$B$11),IF(B50=$A$12,SUM(E50*$C$4*$B$12),IF(B50=$A$13,SUM(E50*$C$4*$B$13))))))))) -> FALSE | G50: =+(Tabla111121314202[[#This Row],[Columna4]]-Tabla111121314202[[#This Row],[Columna3]])*24 -> 0
E51: =+IF(Tabla111121314202[[#This Row],[Columna7]]<0,Tabla111121314202[[#This Row],[Columna7]]*-1,Tabla111121314202[[#This Row],[Columna7]]) -> 0 | F51: =IF(B51=$A$7,SUM(E51*$C$4*$B$7),(IF(B51=$A$8,SUM(E51*$C$4*$B$8),IF(B51=$A$9,SUM(E51*$C$4*$B$9),IF(B51=$A$10,SUM(E51*$C$4*$B$10),IF(B51=$A$11,SUM(E51*$C$4*$B$11),IF(B51=$A$12,SUM(E51*$C$4*$B$12),IF(B51=$A$13,SUM(E51*$C$4*$B$13))))))))) -> FALSE | G51: =+(Tabla111121314202[[#This Row],[Columna4]]-Tabla111121314202[[#This Row],[Columna3]])*24 -> 0
E52: =+IF(Tabla111121314202[[#This Row],[Columna7]]<0,Tabla111121314202[[#This Row],[Columna7]]*-1,Tabla111121314202[[#This Row],[Columna7]]) -> 0 | F52: =IF(B52=$A$7,SUM(E52*$C$4*$B$7),(IF(B52=$A$8,SUM(E52*$C$4*$B$8),IF(B52=$A$9,SUM(E52*$C$4*$B$9),IF(B52=$A$10,SUM(E52*$C$4*$B$10),IF(B52=$A$11,SUM(E52*$C$4*$B$11),IF(B52=$A$12,SUM(E52*$C$4*$B$12),IF(B52=$A$13,SUM(E52*$C$4*$B$13))))))))) -> FALSE | G52: =+(Tabla111121314202[[#This Row],[Columna4]]-Tabla111121314202[[#This Row],[Columna3]])*24 -> 0
E53: =+IF(Tabla111121314202[[#This Row],[Columna7]]<0,Tabla111121314202[[#This Row],[Columna7]]*-1,Tabla111121314202[[#This Row],[Columna7]]) -> 0 | F53: =IF(B53=$A$7,SUM(E53*$C$4*$B$7),(IF(B53=$A$8,SUM(E53*$C$4*$B$8),IF(B53=$A$9,SUM(E53*$C$4*$B$9),IF(B53=$A$10,SUM(E53*$C$4*$B$10),IF(B53=$A$11,SUM(E53*$C$4*$B$11),IF(B53=$A$12,SUM(E53*$C$4*$B$12),IF(B53=$A$13,SUM(E53*$C$4*$B$13))))))))) -> FALSE | G53: =+(Tabla111121314202[[#This Row],[Columna4]]-Tabla111121314202[[#This Row],[Columna3]])*24 -> 0
E54: =+IF(Tabla111121314202[[#This Row],[Columna7]]<0,Tabla111121314202[[#This Row],[Columna7]]*-1,Tabla111121314202[[#This Row],[Columna7]]) -> 0 | F54: FALSE | G54: =+(Tabla111121314202[[#This Row],[Columna4]]-Tabla111121314202[[#This Row],[Columna3]])*24 -> 0
E55: =+IF(Tabla111121314202[[#This Row],[Columna7]]<0,Tabla111121314202[[#This Row],[Columna7]]*-1,Tabla111121314202[[#This Row],[Columna7]]) -> 0 | F55: FALSE | G55: =+(Tabla111121314202[[#This Row],[Columna4]]-Tabla111121314202[[#This Row],[Columna3]])*24 -> 0
E56: =+IF(Tabla111121314202[[#This Row],[Columna7]]<0,Tabla111121314202[[#This Row],[Columna7]]*-1,Tabla111121314202[[#This Row],[Columna7]]) -> 0 | F56: FALSE | G56: =+(Tabla111121314202[[#This Row],[Columna4]]-Tabla111121314202[[#This Row],[Columna3]])*24 -> 0
E57: =+IF(Tabla111121314202[[#This Row],[Columna7]]<0,Tabla111121314202[[#This Row],[Columna7]]*-1,Tabla111121314202[[#This Row],[Columna7]]) -> 0 | F57: FALSE | G57: =+(Tabla111121314202[[#This Row],[Columna4]]-Tabla111121314202[[#This Row],[Columna3]])*24 -> 0
E58: =+IF(Tabla111121314202[[#This Row],[Columna7]]<0,Tabla111121314202[[#This Row],[Columna7]]*-1,Tabla111121314202[[#This Row],[Columna7]]) -> 0 | F58: FALSE | G58: =+(Tabla111121314202[[#This Row],[Columna4]]-Tabla111121314202[[#This Row],[Columna3]])*24 -> 0
E59: =+IF(Tabla111121314202[[#This Row],[Columna7]]<0,Tabla111121314202[[#This Row],[Columna7]]*-1,Tabla111121314202[[#This Row],[Columna7]]) -> 0 | F59: FALSE | G59: =+(Tabla111121314202[[#This Row],[Columna4]]-Tabla111121314202[[#This Row],[Columna3]])*24 -> 0
E60: =+IF(Tabla111121314202[[#This Row],[Columna7]]<0,Tabla111121314202[[#This Row],[Columna7]]*-1,Tabla111121314202[[#This Row],[Columna7]]) -> 0 | F60: FALSE | G60: =+(Tabla111121314202[[#This Row],[Columna4]]-Tabla111121314202[[#This Row],[Columna3]])*24 -> 0
E61: =+IF(Tabla111121314202[[#This Row],[Columna7]]<0,Tabla111121314202[[#This Row],[Columna7]]*-1,Tabla111121314202[[#This Row],[Columna7]]) -> 0 | F61: FALSE | G61: =+(Tabla111121314202[[#This Row],[Columna4]]-Tabla111121314202[[#This Row],[Columna3]])*24 -> 0
E62: =+IF(Tabla111121314202[[#This Row],[Columna7]]<0,Tabla111121314202[[#This Row],[Columna7]]*-1,Tabla111121314202[[#This Row],[Columna7]]) -> 0 | F62: FALSE | G62: =+(Tabla111121314202[[#This Row],[Columna4]]-Tabla111121314202[[#This Row],[Columna3]])*24 -> 0
E63: =+IF(Tabla111121314202[[#This Row],[Columna7]]<0,Tabla111121314202[[#This Row],[Columna7]]*-1,Tabla111121314202[[#This Row],[Columna7]]) -> 0 | F63: FALSE | G63: =+(Tabla111121314202[[#This Row],[Columna4]]-Tabla111121314202[[#This Row],[Columna3]])*24 -> 0
E64: =+IF(Tabla111121314202[[#This Row],[Columna7]]<0,Tabla111121314202[[#This Row],[Columna7]]*-1,Tabla111121314202[[#This Row],[Columna7]]) -> 0 | F64: FALSE | G64: =+(Tabla111121314202[[#This Row],[Columna4]]-Tabla111121314202[[#This Row],[Columna3]])*24 -> 0
E65: =+IF(Tabla111121314202[[#This Row],[Columna7]]<0,Tabla111121314202[[#This Row],[Columna7]]*-1,Tabla111121314202[[#This Row],[Columna7]]) -> 0 | F65: FALSE | G65: =+(Tabla111121314202[[#This Row],[Columna4]]-Tabla111121314202[[#This Row],[Columna3]])*24 -> 0
E66: =+IF(Tabla111121314202[[#This Row],[Columna7]]<0,Tabla111121314202[[#This Row],[Columna7]]*-1,Tabla111121314202[[#This Row],[Columna7]]) -> 0 | F66: FALSE | G66: =+(Tabla111121314202[[#This Row],[Columna4]]-Tabla111121314202[[#This Row],[Columna3]])*24 -> 0
E67: =+IF(Tabla111121314202[[#This Row],[Columna7]]<0,Tabla111121314202[[#This Row],[Columna7]]*-1,Tabla111121314202[[#This Row],[Columna7]]) -> 0 | F67: FALSE | G67: =+(Tabla111121314202[[#This Row],[Columna4]]-Tabla111121314202[[#This Row],[Columna3]])*24 -> 0
E68: =+IF(Tabla111121314202[[#This Row],[Columna7]]<0,Tabla111121314202[[#This Row],[Columna7]]*-1,Tabla111121314202[[#This Row],[Columna7]]) -> 0 | F68: FALSE | G68: =+(Tabla111121314202[[#This Row],[Columna4]]-Tabla111121314202[[#This Row],[Columna3]])*24 -> 0
E69: =+IF(Tabla111121314202[[#This Row],[Columna7]]<0,Tabla111121314202[[#This Row],[Columna7]]*-1,Tabla111121314202[[#This Row],[Columna7]]) -> 0 | F69: FALSE | G69: =+(Tabla111121314202[[#This Row],[Columna4]]-Tabla111121314202[[#This Row],[Columna3]])*24 -> 0
E70: =+IF(Tabla111121314202[[#This Row],[Columna7]]<0,Tabla111121314202[[#This Row],[Columna7]]*-1,Tabla111121314202[[#This Row],[Columna7]]) -> 0 | F70: FALSE | G70: =+(Tabla111121314202[[#This Row],[Columna4]]-Tabla111121314202[[#This Row],[Columna3]])*24 -> 0
E71: =+IF(Tabla111121314202[[#This Row],[Columna7]]<0,Tabla111121314202[[#This Row],[Columna7]]*-1,Tabla111121314202[[#This Row],[Columna7]]) -> 0 | F71: FALSE | G71: =+(Tabla111121314202[[#This Row],[Columna4]]-Tabla111121314202[[#This Row],[Columna3]])*24 -> 0
E72: =+IF(Tabla111121314202[[#This Row],[Columna7]]<0,Tabla111121314202[[#This Row],[Columna7]]*-1,Tabla111121314202[[#This Row],[Columna7]]) -> 0 | F72: FALSE | G72: =+(Tabla111121314202[[#This Row],[Columna4]]-Tabla111121314202[[#This Row],[Columna3]])*24 -> 0
E73: =+IF(Tabla111121314202[[#This Row],[Columna7]]<0,Tabla111121314202[[#This Row],[Columna7]]*-1,Tabla111121314202[[#This Row],[Columna7]]) -> 0 | F73: FALSE | G73: =+(Tabla111121314202[[#This Row],[Columna4]]-Tabla111121314202[[#This Row],[Columna3]])*24 -> 0
E74: =+IF(Tabla111121314202[[#This Row],[Columna7]]<0,Tabla111121314202[[#This Row],[Columna7]]*-1,Tabla111121314202[[#This Row],[Columna7]]) -> 0 | F74: FALSE | G74: =+(Tabla111121314202[[#This Row],[Columna4]]-Tabla111121314202[[#This Row],[Columna3]])*24 -> 0
E75: =+IF(Tabla111121314202[[#This Row],[Columna7]]<0,Tabla111121314202[[#This Row],[Columna7]]*-1,Tabla111121314202[[#This Row],[Columna7]]) -> 0 | F75: FALSE | G75: =+(Tabla111121314202[[#This Row],[Columna4]]-Tabla111121314202[[#This Row],[Columna3]])*24 -> 0
E76: =+IF(Tabla111121314202[[#This Row],[Columna7]]<0,Tabla111121314202[[#This Row],[Columna7]]*-1,Tabla111121314202[[#This Row],[Columna7]]) -> 0 | F76: FALSE | G76: =+(Tabla111121314202[[#This Row],[Columna4]]-Tabla111121314202[[#This Row],[Columna3]])*24 -> 0
E77: =+IF(Tabla111121314202[[#This Row],[Columna7]]<0,Tabla111121314202[[#This Row],[Columna7]]*-1,Tabla111121314202[[#This Row],[Columna7]]) -> 0 | F77: FALSE | G77: =+(Tabla111121314202[[#This Row],[Columna4]]-Tabla111121314202[[#This Row],[Columna3]])*24 -> 0
E78: =+IF(Tabla111121314202[[#This Row],[Columna7]]<0,Tabla111121314202[[#This Row],[Columna7]]*-1,Tabla111121314202[[#This Row],[Columna7]]) -> 0 | F78: FALSE | G78: =+(Tabla111121314202[[#This Row],[Columna4]]-Tabla111121314202[[#This Row],[Columna3]])*24 -> 0
E79: =+IF(Tabla111121314202[[#This Row],[Columna7]]<0,Tabla111121314202[[#This Row],[Columna7]]*-1,Tabla111121314202[[#This Row],[Columna7]]) -> 0 | F79: FALSE | G79: =+(Tabla111121314202[[#This Row],[Columna4]]-Tabla111121314202[[#This Row],[Columna3]])*24 -> 0

Sheet LINA MARIA (hidden)
A1: EMPLEADO
A2: SALARIO BÁSICO | C2: 737717
A3: AUX. TRANSPORTE | C3: 83140
A4: HORA BÁSICA | C4: =+C2/240 -> 3073.820833
A6: CLASE | B6: FACTOR | C6: VR. HORA | D6: Total Horas | E6: Vr. Horas
A7: HEOD | B7: 1.25 | C7: =+$C$4*B7 -> 3842.276042 | D7: =SUMIF($B$62:$B$101,$A7,$E$62:$E$101) -> 0 | E7: =+IF(G7<0,G7*-1,G7) -> 0 | G7: =SUMIF($B$62:$B$101,$A7,$F$62:$F$101) -> 0
A8: HEON | B8: 1.75 | C8: =+$C$4*B8 -> 5379.186458 | D8: =SUMIF($B$19:$B$101,$A8,$E$19:$E$101) -> 0 | E8: =+IF(G8<0,G8*-1,G8) -> 0 | G8: =SUMIF($B$19:$B$101,$A8,$F$19:$F$101) -> 0
A9: HEFD | B9: 2 | C9: 6147.641667 | D9: =SUMIF($B$19:$B$101,$A9,$E$19:$E$101) -> 0 | E9: 0 | G9: =SUMIF($B$19:$B$101,$A9,$F$19:$F$101) -> 0
A10: HEFN | B10: 2.5 | C10: 7684.552083 | D10: =SUMIF($B$19:$B$101,$A10,$E$19:$E$101) -> 0 | E10: 0 | G10: =SUMIF($B$19:$B$101,$A10,$F$19:$F$101) -> 0
A11: RON | B11: 0.35 | C11: 1075.837292 | D11: =SUMIF($B$19:$B$101,$A11,$E$19:$E$101) -> 0 | E11: 0 | G11: =SUMIF($B$19:$B$100,$A11,$F$19:$F$100) -> 0
A12: RFD | B12: 0.75 | C12: 2305.365625 | D12: =SUMIF($B$19:$B$100,$A12,$E$19:$E$100) -> 0 | E12: 0 | G12: =SUMIF($B$19:$B$100,$A12,$F$19:$F$100) -> 0
A13: RFN | B13: 1.1 | C13: 3381.202917 | D13: =SUMIF($B$19:$B$100,$A13,$E$19:$E$100) -> 0 | E13: 0 | G13: =SUMIF($B$19:$B$100,$A13,$F$19:$F$100) -> 0
A14: Total | E14: =SUM(E7:E13) -> 0 | G14: =SUM(G7:G13) -> 0
A16: Periodo del 1 al 15 Octubre de 2016
A17: Fecha | B17: TIPO HE | C17: ENTRA | D17: SALE | E17: TOTAL | F17: DEVENGADO
A18: Columna1 | B18: Columna2 | C18: Columna3 | D18: Columna4 | E18: Columna5 | F18: Columna6 | G18: Columna7
A19: 2017-04-01 | E19: =+IF(Tabla111121314151617[[#This Row],[Columna7]]<0,Tabla111121314151617[[#This Row],[Columna7]]*-1,Tabla111121314151617[[#This Row],[Columna7]]) -> 0 | F19: =IF(B19=$A$7,SUM(E19*$C$4*$B$7),(IF(B19=$A$8,SUM(E19*$C$4*$B$8),IF(B19=$A$9,SUM(E19*$C$4*$B$9),IF(B19=$A$10,SUM(E19*$C$4*$B$10),IF(B19=$A$11,SUM(E19*$C$4*$B$11),IF(B19=$A$12,SUM(E19*$C$4*$B$12),IF(B19=$A$13,SUM(E19*$C$4*$B$13))))))))) -> FALSE | G19: =+(Tabla111121314151617[[#This Row],[Columna4]]-Tabla111121314151617[[#This Row],[Columna3]])*24 -> 0 | I19: DESCANSO
A20: 2017-04-02 | E20: =+IF(Tabla111121314151617[[#This Row],[Columna7]]<0,Tabla111121314151617[[#This Row],[Columna7]]*-1,Tabla111121314151617[[#This Row],[Columna7]]) -> 0 | F20: =IF(B20=$A$7,SUM(E20*$C$4*$B$7),(IF(B20=$A$8,SUM(E20*$C$4*$B$8),IF(B20=$A$9,SUM(E20*$C$4*$B$9),IF(B20=$A$10,SUM(E20*$C$4*$B$10),IF(B20=$A$11,SUM(E20*$C$4*$B$11),IF(B20=$A$12,SUM(E20*$C$4*$B$12),IF(B20=$A$13,SUM(E20*$C$4*$B$13))))))))) -> FALSE | G20: =+(Tabla111121314151617[[#This Row],[Columna4]]-Tabla111121314151617[[#This Row],[Columna3]])*24 -> 0 | I20: DOMINGO
A21: 2017-04-03 | E21: =+IF(Tabla111121314151617[[#This Row],[Columna7]]<0,Tabla111121314151617[[#This Row],[Columna7]]*-1,Tabla111121314151617[[#This Row],[Columna7]]) -> 0 | F21: =IF(B21=$A$7,SUM(E21*$C$4*$B$7),(IF(B21=$A$8,SUM(E21*$C$4*$B$8),IF(B21=$A$9,SUM(E21*$C$4*$B$9),IF(B21=$A$10,SUM(E21*$C$4*$B$10),IF(B21=$A$11,SUM(E21*$C$4*$B$11),IF(B21=$A$12,SUM(E21*$C$4*$B$12),IF(B21=$A$13,SUM(E21*$C$4*$B$13))))))))) -> FALSE | G21: =+(Tabla111121314151617[[#This Row],[Columna4]]-Tabla111121314151617[[#This Row],[Columna3]])*24 -> 0 | I21: NCAPACIDAD
A22: 2017-04-04 | E22: =+IF(Tabla111121314151617[[#This Row],[Columna7]]<0,Tabla111121314151617[[#This Row],[Columna7]]*-1,Tabla111121314151617[[#This Row],[Columna7]]) -> 0 | F22: FALSE | G22: =+(Tabla111121314151617[[#This Row],[Columna4]]-Tabla111121314151617[[#This Row],[Columna3]])*24 -> 0
A23: 2017-04-05 | E23: =+IF(Tabla111121314151617[[#This Row],[Columna7]]<0,Tabla111121314151617[[#This Row],[Columna7]]*-1,Tabla111121314151617[[#This Row],[Columna7]]) -> 0 | F23: FALSE | G23: =+(Tabla111121314151617[[#This Row],[Columna4]]-Tabla111121314151617[[#This Row],[Columna3]])*24 -> 0
A24: 2017-04-06 | E24: =+IF(Tabla111121314151617[[#This Row],[Columna7]]<0,Tabla111121314151617[[#This Row],[Columna7]]*-1,Tabla111121314151617[[#This Row],[Columna7]]) -> 0 | F24: =IF(B24=$A$7,SUM(E24*$C$4*$B$7),(IF(B24=$A$8,SUM(E24*$C$4*$B$8),IF(B24=$A$9,SUM(E24*$C$4*$B$9),IF(B24=$A$10,SUM(E24*$C$4*$B$10),IF(B24=$A$11,SUM(E24*$C$4*$B$11),IF(B24=$A$12,SUM(E24*$C$4*$B$12),IF(B24=$A$13,SUM(E24*$C$4*$B$13))))))))) -> FALSE | G24: =+(Tabla111121314151617[[#This Row],[Columna4]]-Tabla111121314151617[[#This Row],[Columna3]])*24 -> 0
A25: 2017-04-07 | E25: =+IF(Tabla111121314151617[[#This Row],[Columna7]]<0,Tabla111121314151617[[#This Row],[Columna7]]*-1,Tabla111121314151617[[#This Row],[Columna7]]) -> 0 | F25: FALSE | G25: =+(Tabla111121314151617[[#This Row],[Columna4]]-Tabla111121314151617[[#This Row],[Columna3]])*24 -> 0
A26: 2017-04-08 | E26: =+IF(Tabla111121314151617[[#This Row],[Columna7]]<0,Tabla111121314151617[[#This Row],[Columna7]]*-1,Tabla111121314151617[[#This Row],[Columna7]]) -> 0 | F26: FALSE | G26: =+(Tabla111121314151617[[#This Row],[Columna4]]-Tabla111121314151617[[#This Row],[Columna3]])*24 -> 0
A27: 2017-04-09 | E27: =+IF(Tabla111121314151617[[#This Row],[Columna7]]<0,Tabla111121314151617[[#This Row],[Columna7]]*-1,Tabla111121314151617[[#This Row],[Columna7]]) -> 0 | F27: FALSE | G27: =+(Tabla111121314151617[[#This Row],[Columna4]]-Tabla111121314151617[[#This Row],[Columna3]])*24 -> 0
A28: 2017-04-10 | E28: =+IF(Tabla111121314151617[[#This Row],[Columna7]]<0,Tabla111121314151617[[#This Row],[Columna7]]*-1,Tabla111121314151617[[#This Row],[Columna7]]) -> 0 | F28: FALSE | G28: =+(Tabla111121314151617[[#This Row],[Columna4]]-Tabla111121314151617[[#This Row],[Columna3]])*24 -> 0
A29: 2017-04-11 | E29: =+IF(Tabla111121314151617[[#This Row],[Columna7]]<0,Tabla111121314151617[[#This Row],[Columna7]]*-1,Tabla111121314151617[[#This Row],[Columna7]]) -> 0 | F29: =IF(B29=$A$7,SUM(E29*$C$4*$B$7),(IF(B29=$A$8,SUM(E29*$C$4*$B$8),IF(B29=$A$9,SUM(E29*$C$4*$B$9),IF(B29=$A$10,SUM(E29*$C$4*$B$10),IF(B29=$A$11,SUM(E29*$C$4*$B$11),IF(B29=$A$12,SUM(E29*$C$4*$B$12),IF(B29=$A$13,SUM(E29*$C$4*$B$13))))))))) -> FALSE | G29: =+(Tabla111121314151617[[#This Row],[Columna4]]-Tabla111121314151617[[#This Row],[Columna3]])*24 -> 0
A30: 2017-04-12 | E30: =+IF(Tabla111121314151617[[#This Row],[Columna7]]<0,Tabla111121314151617[[#This Row],[Columna7]]*-1,Tabla111121314151617[[#This Row],[Columna7]]) -> 0 | F30: FALSE | G30: =+(Tabla111121314151617[[#This Row],[Columna4]]-Tabla111121314151617[[#This Row],[Columna3]])*24 -> 0
A31: 2017-04-13 | E31: =+IF(Tabla111121314151617[[#This Row],[Columna7]]<0,Tabla111121314151617[[#This Row],[Columna7]]*-1,Tabla111121314151617[[#This Row],[Columna7]]) -> 0 | F31: =IF(B31=$A$7,SUM(E31*$C$4*$B$7),(IF(B31=$A$8,SUM(E31*$C$4*$B$8),IF(B31=$A$9,SUM(E31*$C$4*$B$9),IF(B31=$A$10,SUM(E31*$C$4*$B$10),IF(B31=$A$11,SUM(E31*$C$4*$B$11),IF(B31=$A$12,SUM(E31*$C$4*$B$12),IF(B31=$A$13,SUM(E31*$C$4*$B$13))))))))) -> FALSE | G31: =+(Tabla111121314151617[[#This Row],[Columna4]]-Tabla111121314151617[[#This Row],[Columna3]])*24 -> 0
A32: 2017-04-14 | E32: =+IF(Tabla111121314151617[[#This Row],[Columna7]]<0,Tabla111121314151617[[#This Row],[Columna7]]*-1,Tabla111121314151617[[#This Row],[Columna7]]) -> 0 | F32: =IF(B32=$A$7,SUM(E32*$C$4*$B$7),(IF(B32=$A$8,SUM(E32*$C$4*$B$8),IF(B32=$A$9,SUM(E32*$C$4*$B$9),IF(B32=$A$10,SUM(E32*$C$4*$B$10),IF(B32=$A$11,SUM(E32*$C$4*$B$11),IF(B32=$A$12,SUM(E32*$C$4*$B$12),IF(B32=$A$13,SUM(E32*$C$4*$B$13))))))))) -> FALSE | G32: =+(Tabla111121314151617[[#This Row],[Columna4]]-Tabla111121314151617[[#This Row],[Columna3]])*24 -> 0
A33: 2017-04-15 | E33: =+IF(Tabla111121314151617[[#This Row],[Columna7]]<0,Tabla111121314151617[[#This Row],[Columna7]]*-1,Tabla111121314151617[[#This Row],[Columna7]]) -> 0 | F33: FALSE | G33: =+(Tabla111121314151617[[#This Row],[Columna4]]-Tabla111121314151617[[#This Row],[Columna3]])*24 -> 0
E34: =+IF(Tabla111121314151617[[#This Row],[Columna7]]<0,Tabla111121314151617[[#This Row],[Columna7]]*-1,Tabla111121314151617[[#This Row],[Columna7]]) -> 0 | F34: FALSE | G34: =+(Tabla111121314151617[[#This Row],[Columna4]]-Tabla111121314151617[[#This Row],[Columna3]])*24 -> 0
E35: =+IF(Tabla111121314151617[[#This Row],[Columna7]]<0,Tabla111121314151617[[#This Row],[Columna7]]*-1,Tabla111121314151617[[#This Row],[Columna7]]) -> 0 | F35: FALSE | G35: =+(Tabla111121314151617[[#This Row],[Columna4]]-Tabla111121314151617[[#This Row],[Columna3]])*24 -> 0
E36: =+IF(Tabla111121314151617[[#This Row],[Columna7]]<0,Tabla111121314151617[[#This Row],[Columna7]]*-1,Tabla111121314151617[[#This Row],[Columna7]]) -> 0 | F36: FALSE | G36: =+(Tabla111121314151617[[#This Row],[Columna4]]-Tabla111121314151617[[#This Row],[Columna3]])*24 -> 0
E37: =+IF(Tabla111121314151617[[#This Row],[Columna7]]<0,Tabla111121314151617[[#This Row],[Columna7]]*-1,Tabla111121314151617[[#This Row],[Columna7]]) -> 0 | F37: FALSE | G37: =+(Tabla111121314151617[[#This Row],[Columna4]]-Tabla111121314151617[[#This Row],[Columna3]])*24 -> 0
E38: =+IF(Tabla111121314151617[[#This Row],[Columna7]]<0,Tabla111121314151617[[#This Row],[Columna7]]*-1,Tabla111121314151617[[#This Row],[Columna7]]) -> 0 | F38: =IF(B38=$A$7,SUM(E38*$C$4*$B$7),(IF(B38=$A$8,SUM(E38*$C$4*$B$8),IF(B38=$A$9,SUM(E38*$C$4*$B$9),IF(B38=$A$10,SUM(E38*$C$4*$B$10),IF(B38=$A$11,SUM(E38*$C$4*$B$11),IF(B38=$A$12,SUM(E38*$C$4*$B$12),IF(B38=$A$13,SUM(E38*$C$4*$B$13))))))))) -> FALSE | G38: =+(Tabla111121314151617[[#This Row],[Columna4]]-Tabla111121314151617[[#This Row],[Columna3]])*24 -> 0
E39: =+IF(Tabla111121314151617[[#This Row],[Columna7]]<0,Tabla111121314151617[[#This Row],[Columna7]]*-1,Tabla111121314151617[[#This Row],[Columna7]]) -> 0 | F39: =IF(B39=$A$7,SUM(E39*$C$4*$B$7),(IF(B39=$A$8,SUM(E39*$C$4*$B$8),IF(B39=$A$9,SUM(E39*$C$4*$B$9),IF(B39=$A$10,SUM(E39*$C$4*$B$10),IF(B39=$A$11,SUM(E39*$C$4*$B$11),IF(B39=$A$12,SUM(E39*$C$4*$B$12),IF(B39=$A$13,SUM(E39*$C$4*$B$13))))))))) -> FALSE | G39: =+(Tabla111121314151617[[#This Row],[Columna4]]-Tabla111121314151617[[#This Row],[Columna3]])*24 -> 0
E40: =+IF(Tabla111121314151617[[#This Row],[Columna7]]<0,Tabla111121314151617[[#This Row],[Columna7]]*-1,Tabla111121314151617[[#This Row],[Columna7]]) -> 0 | F40: =IF(B40=$A$7,SUM(E40*$C$4*$B$7),(IF(B40=$A$8,SUM(E40*$C$4*$B$8),IF(B40=$A$9,SUM(E40*$C$4*$B$9),IF(B40=$A$10,SUM(E40*$C$4*$B$10),IF(B40=$A$11,SUM(E40*$C$4*$B$11),IF(B40=$A$12,SUM(E40*$C$4*$B$12),IF(B40=$A$13,SUM(E40*$C$4*$B$13))))))))) -> FALSE | G40: =+(Tabla111121314151617[[#This Row],[Columna4]]-Tabla111121314151617[[#This Row],[Columna3]])*24 -> 0
E41: =+IF(Tabla111121314151617[[#This Row],[Columna7]]<0,Tabla111121314151617[[#This Row],[Columna7]]*-1,Tabla111121314151617[[#This Row],[Columna7]]) -> 0 | F41: =IF(B41=$A$7,SUM(E41*$C$4*$B$7),(IF(B41=$A$8,SUM(E41*$C$4*$B$8),IF(B41=$A$9,SUM(E41*$C$4*$B$9),IF(B41=$A$10,SUM(E41*$C$4*$B$10),IF(B41=$A$11,SUM(E41*$C$4*$B$11),IF(B41=$A$12,SUM(E41*$C$4*$B$12),IF(B41=$A$13,SUM(E41*$C$4*$B$13))))))))) -> FALSE | G41: =+(Tabla111121314151617[[#This Row],[Columna4]]-Tabla111121314151617[[#This Row],[Columna3]])*24 -> 0
E42: =+IF(Tabla111121314151617[[#This Row],[Columna7]]<0,Tabla111121314151617[[#This Row],[Columna7]]*-1,Tabla111121314151617[[#This Row],[Columna7]]) -> 0 | F42: FALSE | G42: =+(Tabla111121314151617[[#This Row],[Columna4]]-Tabla111121314151617[[#This Row],[Columna3]])*24 -> 0
E43: =+IF(Tabla111121314151617[[#This Row],[Columna7]]<0,Tabla111121314151617[[#This Row],[Columna7]]*-1,Tabla111121314151617[[#This Row],[Columna7]]) -> 0 | F43: =IF(B43=$A$7,SUM(E43*$C$4*$B$7),(IF(B43=$A$8,SUM(E43*$C$4*$B$8),IF(B43=$A$9,SUM(E43*$C$4*$B$9),IF(B43=$A$10,SUM(E43*$C$4*$B$10),IF(B43=$A$11,SUM(E43*$C$4*$B$11),IF(B43=$A$12,SUM(E43*$C$4*$B$12),IF(B43=$A$13,SUM(E43*$C$4*$B$13))))))))) -> FALSE | G43: =+(Tabla111121314151617[[#This Row],[Columna4]]-Tabla111121314151617[[#This Row],[Columna3]])*24 -> 0
E44: =+IF(Tabla111121314151617[[#This Row],[Columna7]]<0,Tabla111121314151617[[#This Row],[Columna7]]*-1,Tabla111121314151617[[#This Row],[Columna7]]) -> 0 | F44: =IF(B44=$A$7,SUM(E44*$C$4*$B$7),(IF(B44=$A$8,SUM(E44*$C$4*$B$8),IF(B44=$A$9,SUM(E44*$C$4*$B$9),IF(B44=$A$10,SUM(E44*$C$4*$B$10),IF(B44=$A$11,SUM(E44*$C$4*$B$11),IF(B44=$A$12,SUM(E44*$C$4*$B$12),IF(B44=$A$13,SUM(E44*$C$4*$B$13))))))))) -> FALSE | G44: =+(Tabla111121314151617[[#This Row],[Columna4]]-Tabla111121314151617[[#This Row],[Columna3]])*24 -> 0
E45: =+IF(Tabla111121314151617[[#This Row],[Columna7]]<0,Tabla111121314151617[[#This Row],[Columna7]]*-1,Tabla111121314151617[[#This Row],[Columna7]]) -> 0 | F45: FALSE | G45: =+(Tabla111121314151617[[#This Row],[Columna4]]-Tabla111121314151617[[#This Row],[Columna3]])*24 -> 0
E46: =+IF(Tabla111121314151617[[#This Row],[Columna7]]<0,Tabla111121314151617[[#This Row],[Columna7]]*-1,Tabla111121314151617[[#This Row],[Columna7]]) -> 0 | F46: FALSE | G46: =+(Tabla111121314151617[[#This Row],[Columna4]]-Tabla111121314151617[[#This Row],[Columna3]])*24 -> 0
E47: =+IF(Tabla111121314151617[[#This Row],[Columna7]]<0,Tabla111121314151617[[#This Row],[Columna7]]*-1,Tabla111121314151617[[#This Row],[Columna7]]) -> 0 | F47: =IF(B47=$A$7,SUM(E47*$C$4*$B$7),(IF(B47=$A$8,SUM(E47*$C$4*$B$8),IF(B47=$A$9,SUM(E47*$C$4*$B$9),IF(B47=$A$10,SUM(E47*$C$4*$B$10),IF(B47=$A$11,SUM(E47*$C$4*$B$11),IF(B47=$A$12,SUM(E47*$C$4*$B$12),IF(B47=$A$13,SUM(E47*$C$4*$B$13))))))))) -> FALSE | G47: =+(Tabla111121314151617[[#This Row],[Columna4]]-Tabla111121314151617[[#This Row],[Columna3]])*24 -> 0
E48: =+IF(Tabla111121314151617[[#This Row],[Columna7]]<0,Tabla111121314151617[[#This Row],[Columna7]]*-1,Tabla111121314151617[[#This Row],[Columna7]]) -> 0 | F48: FALSE | G48: =+(Tabla111121314151617[[#This Row],[Columna4]]-Tabla111121314151617[[#This Row],[Columna3]])*24 -> 0
E49: =+IF(Tabla111121314151617[[#This Row],[Columna7]]<0,Tabla111121314151617[[#This Row],[Columna7]]*-1,Tabla111121314151617[[#This Row],[Columna7]]) -> 0 | F49: =IF(B49=$A$7,SUM(E49*$C$4*$B$7),(IF(B49=$A$8,SUM(E49*$C$4*$B$8),IF(B49=$A$9,SUM(E49*$C$4*$B$9),IF(B49=$A$10,SUM(E49*$C$4*$B$10),IF(B49=$A$11,SUM(E49*$C$4*$B$11),IF(B49=$A$12,SUM(E49*$C$4*$B$12),IF(B49=$A$13,SUM(E49*$C$4*$B$13))))))))) -> FALSE | G49: =+(Tabla111121314151617[[#This Row],[Columna4]]-Tabla111121314151617[[#This Row],[Columna3]])*24 -> 0
E50: =+IF(Tabla111121314151617[[#This Row],[Columna7]]<0,Tabla111121314151617[[#This Row],[Columna7]]*-1,Tabla111121314151617[[#This Row],[Columna7]]) -> 0 | F50: FALSE | G50: =+(Tabla111121314151617[[#This Row],[Columna4]]-Tabla111121314151617[[#This Row],[Columna3]])*24 -> 0
E51: =+IF(Tabla111121314151617[[#This Row],[Columna7]]<0,Tabla111121314151617[[#This Row],[Columna7]]*-1,Tabla111121314151617[[#This Row],[Columna7]]) -> 0 | F51: =IF(B51=$A$7,SUM(E51*$C$4*$B$7),(IF(B51=$A$8,SUM(E51*$C$4*$B$8),IF(B51=$A$9,SUM(E51*$C$4*$B$9),IF(B51=$A$10,SUM(E51*$C$4*$B$10),IF(B51=$A$11,SUM(E51*$C$4*$B$11),IF(B51=$A$12,SUM(E51*$C$4*$B$12),IF(B51=$A$13,SUM(E51*$C$4*$B$13))))))))) -> FALSE | G51: =+(Tabla111121314151617[[#This Row],[Columna4]]-Tabla111121314151617[[#This Row],[Columna3]])*24 -> 0
E52: =+IF(Tabla111121314151617[[#This Row],[Columna7]]<0,Tabla111121314151617[[#This Row],[Columna7]]*-1,Tabla111121314151617[[#This Row],[Columna7]]) -> 0 | F52: FALSE | G52: =+(Tabla111121314151617[[#This Row],[Columna4]]-Tabla111121314151617[[#This Row],[Columna3]])*24 -> 0
E53: =+IF(Tabla111121314151617[[#This Row],[Columna7]]<0,Tabla111121314151617[[#This Row],[Columna7]]*-1,Tabla111121314151617[[#This Row],[Columna7]]) -> 0 | F53: FALSE | G53: =+(Tabla111121314151617[[#This Row],[Columna4]]-Tabla111121314151617[[#This Row],[Columna3]])*24 -> 0
E54: =+IF(Tabla111121314151617[[#This Row],[Columna7]]<0,Tabla111121314151617[[#This Row],[Columna7]]*-1,Tabla111121314151617[[#This Row],[Columna7]]) -> 0 | F54: FALSE | G54: =+(Tabla111121314151617[[#This Row],[Columna4]]-Tabla111121314151617[[#This Row],[Columna3]])*24 -> 0
E55: =+IF(Tabla111121314151617[[#This Row],[Columna7]]<0,Tabla111121314151617[[#This Row],[Columna7]]*-1,Tabla111121314151617[[#This Row],[Columna7]]) -> 0 | F55: FALSE | G55: =+(Tabla111121314151617[[#This Row],[Columna4]]-Tabla111121314151617[[#This Row],[Columna3]])*24 -> 0
E56: =+IF(Tabla111121314151617[[#This Row],[Columna7]]<0,Tabla111121314151617[[#This Row],[Columna7]]*-1,Tabla111121314151617[[#This Row],[Columna7]]) -> 0 | F56: FALSE | G56: =+(Tabla111121314151617[[#This Row],[Columna4]]-Tabla111121314151617[[#This Row],[Columna3]])*24 -> 0
E57: =+IF(Tabla111121314151617[[#This Row],[Columna7]]<0,Tabla111121314151617[[#This Row],[Columna7]]*-1,Tabla111121314151617[[#This Row],[Columna7]]) -> 0 | F57: FALSE | G57: =+(Tabla111121314151617[[#This Row],[Columna4]]-Tabla111121314151617[[#This Row],[Columna3]])*24 -> 0
E58: =+IF(Tabla111121314151617[[#This Row],[Columna7]]<0,Tabla111121314151617[[#This Row],[Columna7]]*-1,Tabla111121314151617[[#This Row],[Columna7]]) -> 0 | F58: FALSE | G58: =+(Tabla111121314151617[[#This Row],[Columna4]]-Tabla111121314151617[[#This Row],[Columna3]])*24 -> 0
E59: =+IF(Tabla111121314151617[[#This Row],[Columna7]]<0,Tabla111121314151617[[#This Row],[Columna7]]*-1,Tabla111121314151617[[#This Row],[Columna7]]) -> 0 | F59: FALSE | G59: =+(Tabla111121314151617[[#This Row],[Columna4]]-Tabla111121314151617[[#This Row],[Columna3]])*24 -> 0
E60: =+IF(Tabla111121314151617[[#This Row],[Columna7]]<0,Tabla111121314151617[[#This Row],[Columna7]]*-1,Tabla111121314151617[[#This Row],[Columna7]]) -> 0 | F60: FALSE | G60: =+(Tabla111121314151617[[#This Row],[Columna4]]-Tabla111121314151617[[#This Row],[Columna3]])*24 -> 0
E61: =+IF(Tabla111121314151617[[#This Row],[Columna7]]<0,Tabla111121314151617[[#This Row],[Columna7]]*-1,Tabla111121314151617[[#This Row],[Columna7]]) -> 0 | F61: FALSE | G61: =+(Tabla111121314151617[[#This Row],[Columna4]]-Tabla111121314151617[[#This Row],[Columna3]])*24 -> 0
E62: =+IF(Tabla111121314151617[[#This Row],[Columna7]]<0,Tabla111121314151617[[#This Row],[Columna7]]*-1,Tabla111121314151617[[#This Row],[Columna7]]) -> 0 | F62: =IF(B62=$A$7,SUM(E62*$C$4*$B$7),(IF(B62=$A$8,SUM(E62*$C$4*$B$8),IF(B62=$A$9,SUM(E62*$C$4*$B$9),IF(B62=$A$10,SUM(E62*$C$4*$B$10),IF(B62=$A$11,SUM(E62*$C$4*$B$11),IF(B62=$A$12,SUM(E62*$C$4*$B$12),IF(B62=$A$13,SUM(E62*$C$4*$B$13))))))))) -> FALSE | G62: =+(Tabla111121314151617[[#This Row],[Columna4]]-Tabla111121314151617[[#This Row],[Columna3]])*24 -> 0
E63: =+IF(Tabla111121314151617[[#This Row],[Columna7]]<0,Tabla111121314151617[[#This Row],[Columna7]]*-1,Tabla111121314151617[[#This Row],[Columna7]]) -> 0 | F63: =IF(B63=$A$7,SUM(E63*$C$4*$B$7),(IF(B63=$A$8,SUM(E63*$C$4*$B$8),IF(B63=$A$9,SUM(E63*$C$4*$B$9),IF(B63=$A$10,SUM(E63*$C$4*$B$10),IF(B63=$A$11,SUM(E63*$C$4*$B$11),IF(B63=$A$12,SUM(E63*$C$4*$B$12),IF(B63=$A$13,SUM(E63*$C$4*$B$13))))))))) -> FALSE | G63: =+(Tabla111121314151617[[#This Row],[Columna4]]-Tabla111121314151617[[#This Row],[Columna3]])*24 -> 0
E64: =+IF(Tabla111121314151617[[#This Row],[Columna7]]<0,Tabla111121314151617[[#This Row],[Columna7]]*-1,Tabla111121314151617[[#This Row],[Columna7]]) -> 0 | F64: FALSE | G64: =+(Tabla111121314151617[[#This Row],[Columna4]]-Tabla111121314151617[[#This Row],[Columna3]])*24 -> 0
E65: =+IF(Tabla111121314151617[[#This Row],[Columna7]]<0,Tabla111121314151617[[#This Row],[Columna7]]*-1,Tabla111121314151617[[#This Row],[Columna7]]) -> 0 | F65: FALSE | G65: =+(Tabla111121314151617[[#This Row],[Columna4]]-Tabla111121314151617[[#This Row],[Columna3]])*24 -> 0
E66: =+IF(Tabla111121314151617[[#This Row],[Columna7]]<0,Tabla111121314151617[[#This Row],[Columna7]]*-1,Tabla111121314151617[[#This Row],[Columna7]]) -> 0 | F66: FALSE | G66: =+(Tabla111121314151617[[#This Row],[Columna4]]-Tabla111121314151617[[#This Row],[Columna3]])*24 -> 0
E67: =+IF(Tabla111121314151617[[#This Row],[Columna7]]<0,Tabla111121314151617[[#This Row],[Columna7]]*-1,Tabla111121314151617[[#This Row],[Columna7]]) -> 0 | F67: FALSE | G67: =+(Tabla111121314151617[[#This Row],[Columna4]]-Tabla111121314151617[[#This Row],[Columna3]])*24 -> 0
E68: =+IF(Tabla111121314151617[[#This Row],[Columna7]]<0,Tabla111121314151617[[#This Row],[Columna7]]*-1,Tabla111121314151617[[#This Row],[Columna7]]) -> 0 | F68: FALSE | G68: =+(Tabla111121314151617[[#This Row],[Columna4]]-Tabla111121314151617[[#This Row],[Columna3]])*24 -> 0
E69: =+IF(Tabla111121314151617[[#This Row],[Columna7]]<0,Tabla111121314151617[[#This Row],[Columna7]]*-1,Tabla111121314151617[[#This Row],[Columna7]]) -> 0 | F69: FALSE | G69: =+(Tabla111121314151617[[#This Row],[Columna4]]-Tabla111121314151617[[#This Row],[Columna3]])*24 -> 0
E70: =+IF(Tabla111121314151617[[#This Row],[Columna7]]<0,Tabla111121314151617[[#This Row],[Columna7]]*-1,Tabla111121314151617[[#This Row],[Columna7]]) -> 0 | F70: FALSE | G70: =+(Tabla111121314151617[[#This Row],[Columna4]]-Tabla111121314151617[[#This Row],[Columna3]])*24 -> 0
E71: =+IF(Tabla111121314151617[[#This Row],[Columna7]]<0,Tabla111121314151617[[#This Row],[Columna7]]*-1,Tabla111121314151617[[#This Row],[Columna7]]) -> 0 | F71: =IF(B71=$A$7,SUM(E71*$C$4*$B$7),(IF(B71=$A$8,SUM(E71*$C$4*$B$8),IF(B71=$A$9,SUM(E71*$C$4*$B$9),IF(B71=$A$10,SUM(E71*$C$4*$B$10),IF(B71=$A$11,SUM(E71*$C$4*$B$11),IF(B71=$A$12,SUM(E71*$C$4*$B$12),IF(B71=$A$13,SUM(E71*$C$4*$B$13))))))))) -> FALSE | G71: =+(Tabla111121314151617[[#This Row],[Columna4]]-Tabla111121314151617[[#This Row],[Columna3]])*24 -> 0
E72: =+IF(Tabla111121314151617[[#This Row],[Columna7]]<0,Tabla111121314151617[[#This Row],[Columna7]]*-1,Tabla111121314151617[[#This Row],[Columna7]]) -> 0 | F72: =IF(B72=$A$7,SUM(E72*$C$4*$B$7),(IF(B72=$A$8,SUM(E72*$C$4*$B$8),IF(B72=$A$9,SUM(E72*$C$4*$B$9),IF(B72=$A$10,SUM(E72*$C$4*$B$10),IF(B72=$A$11,SUM(E72*$C$4*$B$11),IF(B72=$A$12,SUM(E72*$C$4*$B$12),IF(B72=$A$13,SUM(E72*$C$4*$B$13))))))))) -> FALSE | G72: =+(Tabla111121314151617[[#This Row],[Columna4]]-Tabla111121314151617[[#This Row],[Columna3]])*24 -> 0
E73: =+IF(Tabla111121314151617[[#This Row],[Columna7]]<0,Tabla111121314151617[[#This Row],[Columna7]]*-1,Tabla111121314151617[[#This Row],[Columna7]]) -> 0 | F73: =IF(B73=$A$7,SUM(E73*$C$4*$B$7),(IF(B73=$A$8,SUM(E73*$C$4*$B$8),IF(B73=$A$9,SUM(E73*$C$4*$B$9),IF(B73=$A$10,SUM(E73*$C$4*$B$10),IF(B73=$A$11,SUM(E73*$C$4*$B$11),IF(B73=$A$12,SUM(E73*$C$4*$B$12),IF(B73=$A$13,SUM(E73*$C$4*$B$13))))))))) -> FALSE | G73: =+(Tabla111121314151617[[#This Row],[Columna4]]-Tabla111121314151617[[#This Row],[Columna3]])*24 -> 0
E74: =+IF(Tabla111121314151617[[#This Row],[Columna7]]<0,Tabla111121314151617[[#This Row],[Columna7]]*-1,Tabla111121314151617[[#This Row],[Columna7]]) -> 0 | F74: =IF(B74=$A$7,SUM(E74*$C$4*$B$7),(IF(B74=$A$8,SUM(E74*$C$4*$B$8),IF(B74=$A$9,SUM(E74*$C$4*$B$9),IF(B74=$A$10,SUM(E74*$C$4*$B$10),IF(B74=$A$11,SUM(E74*$C$4*$B$11),IF(B74=$A$12,SUM(E74*$C$4*$B$12),IF(B74=$A$13,SUM(E74*$C$4*$B$13))))))))) -> FALSE | G74: =+(Tabla111121314151617[[#This Row],[Columna4]]-Tabla111121314151617[[#This Row],[Columna3]])*24 -> 0
E75: =+IF(Tabla111121314151617[[#This Row],[Columna7]]<0,Tabla111121314151617[[#This Row],[Columna7]]*-1,Tabla111121314151617[[#This Row],[Columna7]]) -> 0 | F75: FALSE | G75: =+(Tabla111121314151617[[#This Row],[Columna4]]-Tabla111121314151617[[#This Row],[Columna3]])*24 -> 0
E76: =+IF(Tabla111121314151617[[#This Row],[Columna7]]<0,Tabla111121314151617[[#This Row],[Columna7]]*-1,Tabla111121314151617[[#This Row],[Columna7]]) -> 0 | F76: FALSE | G76: =+(Tabla111121314151617[[#This Row],[Columna4]]-Tabla111121314151617[[#This Row],[Columna3]])*24 -> 0
E77: =+IF(Tabla111121314151617[[#This Row],[Columna7]]<0,Tabla111121314151617[[#This Row],[Columna7]]*-1,Tabla111121314151617[[#This Row],[Columna7]]) -> 0 | F77: FALSE | G77: =+(Tabla111121314151617[[#This Row],[Columna4]]-Tabla111121314151617[[#This Row],[Columna3]])*24 -> 0
E78: =+IF(Tabla111121314151617[[#This Row],[Columna7]]<0,Tabla111121314151617[[#This Row],[Columna7]]*-1,Tabla111121314151617[[#This Row],[Columna7]]) -> 0 | F78: FALSE | G78: =+(Tabla111121314151617[[#This Row],[Columna4]]-Tabla111121314151617[[#This Row],[Columna3]])*24 -> 0
E79: =+IF(Tabla111121314151617[[#This Row],[Columna7]]<0,Tabla111121314151617[[#This Row],[Columna7]]*-1,Tabla111121314151617[[#This Row],[Columna7]]) -> 0 | F79: FALSE | G79: =+(Tabla111121314151617[[#This Row],[Columna4]]-Tabla111121314151617[[#This Row],[Columna3]])*24 -> 0
E80: =+IF(Tabla111121314151617[[#This Row],[Columna7]]<0,Tabla111121314151617[[#This Row],[Columna7]]*-1,Tabla111121314151617[[#This Row],[Columna7]]) -> 0 | F80: FALSE | G80: =+(Tabla111121314151617[[#This Row],[Columna4]]-Tabla111121314151617[[#This Row],[Columna3]])*24 -> 0
E81: =+IF(Tabla111121314151617[[#This Row],[Columna7]]<0,Tabla111121314151617[[#This Row],[Columna7]]*-1,Tabla111121314151617[[#This Row],[Columna7]]) -> 0 | F81: FALSE | G81: =+(Tabla111121314151617[[#This Row],[Columna4]]-Tabla111121314151617[[#This Row],[Columna3]])*24 -> 0
E82: =+IF(Tabla111121314151617[[#This Row],[Columna7]]<0,Tabla111121314151617[[#This Row],[Columna7]]*-1,Tabla111121314151617[[#This Row],[Columna7]]) -> 0 | F82: FALSE | G82: =+(Tabla111121314151617[[#This Row],[Columna4]]-Tabla111121314151617[[#This Row],[Columna3]])*24 -> 0
E83: =+IF(Tabla111121314151617[[#This Row],[Columna7]]<0,Tabla111121314151617[[#This Row],[Columna7]]*-1,Tabla111121314151617[[#This Row],[Columna7]]) -> 0 | F83: FALSE | G83: =+(Tabla111121314151617[[#This Row],[Columna4]]-Tabla111121314151617[[#This Row],[Columna3]])*24 -> 0
E84: =+IF(Tabla111121314151617[[#This Row],[Columna7]]<0,Tabla111121314151617[[#This Row],[Columna7]]*-1,Tabla111121314151617[[#This Row],[Columna7]]) -> 0 | F84: FALSE | G84: =+(Tabla111121314151617[[#This Row],[Columna4]]-Tabla111121314151617[[#This Row],[Columna3]])*24 -> 0
E85: =+IF(Tabla111121314151617[[#This Row],[Columna7]]<0,Tabla111121314151617[[#This Row],[Columna7]]*-1,Tabla111121314151617[[#This Row],[Columna7]]) -> 0 | F85: FALSE | G85: =+(Tabla111121314151617[[#This Row],[Columna4]]-Tabla111121314151617[[#This Row],[Columna3]])*24 -> 0
E86: =+IF(Tabla111121314151617[[#This Row],[Columna7]]<0,Tabla111121314151617[[#This Row],[Columna7]]*-1,Tabla111121314151617[[#This Row],[Columna7]]) -> 0 | F86: FALSE | G86: =+(Tabla111121314151617[[#This Row],[Columna4]]-Tabla111121314151617[[#This Row],[Columna3]])*24 -> 0
E87: =+IF(Tabla111121314151617[[#This Row],[Columna7]]<0,Tabla111121314151617[[#This Row],[Columna7]]*-1,Tabla111121314151617[[#This Row],[Columna7]]) -> 0 | F87: FALSE | G87: =+(Tabla111121314151617[[#This Row],[Columna4]]-Tabla111121314151617[[#This Row],[Columna3]])*24 -> 0
E88: =+IF(Tabla111121314151617[[#This Row],[Columna7]]<0,Tabla111121314151617[[#This Row],[Columna7]]*-1,Tabla111121314151617[[#This Row],[Columna7]]) -> 0 | F88: FALSE | G88: =+(Tabla111121314151617[[#This Row],[Columna4]]-Tabla111121314151617[[#This Row],[Columna3]])*24 -> 0
E89: =+IF(Tabla111121314151617[[#This Row],[Columna7]]<0,Tabla111121314151617[[#This Row],[Columna7]]*-1,Tabla111121314151617[[#This Row],[Columna7]]) -> 0 | F89: FALSE | G89: =+(Tabla111121314151617[[#This Row],[Columna4]]-Tabla111121314151617[[#This Row],[Columna3]])*24 -> 0
E90: =+IF(Tabla111121314151617[[#This Row],[Columna7]]<0,Tabla111121314151617[[#This Row],[Columna7]]*-1,Tabla111121314151617[[#This Row],[Columna7]]) -> 0 | F90: FALSE | G90: =+(Tabla111121314151617[[#This Row],[Columna4]]-Tabla111121314151617[[#This Row],[Columna3]])*24 -> 0
E91: =+IF(Tabla111121314151617[[#This Row],[Columna7]]<0,Tabla111121314151617[[#This Row],[Columna7]]*-1,Tabla111121314151617[[#This Row],[Columna7]]) -> 0 | F91: FALSE | G91: =+(Tabla111121314151617[[#This Row],[Columna4]]-Tabla111121314151617[[#This Row],[Columna3]])*24 -> 0
E92: =+IF(Tabla111121314151617[[#This Row],[Columna7]]<0,Tabla111121314151617[[#This Row],[Columna7]]*-1,Tabla111121314151617[[#This Row],[Columna7]]) -> 0 | F92: FALSE | G92: =+(Tabla111121314151617[[#This Row],[Columna4]]-Tabla111121314151617[[#This Row],[Columna3]])*24 -> 0
E93: =+IF(Tabla111121314151617[[#This Row],[Columna7]]<0,Tabla111121314151617[[#This Row],[Columna7]]*-1,Tabla111121314151617[[#This Row],[Columna7]]) -> 0 | F93: FALSE | G93: =+(Tabla111121314151617[[#This Row],[Columna4]]-Tabla111121314151617[[#This Row],[Columna3]])*24 -> 0
E94: =+IF(Tabla111121314151617[[#This Row],[Columna7]]<0,Tabla111121314151617[[#This Row],[Columna7]]*-1,Tabla111121314151617[[#This Row],[Columna7]]) -> 0 | F94: FALSE | G94: =+(Tabla111121314151617[[#This Row],[Columna4]]-Tabla111121314151617[[#This Row],[Columna3]])*24 -> 0
E95: =+IF(Tabla111121314151617[[#This Row],[Columna7]]<0,Tabla111121314151617[[#This Row],[Columna7]]*-1,Tabla111121314151617[[#This Row],[Columna7]]) -> 0 | F95: FALSE | G95: =+(Tabla111121314151617[[#This Row],[Columna4]]-Tabla111121314151617[[#This Row],[Columna3]])*24 -> 0
E96: =+IF(Tabla111121314151617[[#This Row],[Columna7]]<0,Tabla111121314151617[[#This Row],[Columna7]]*-1,Tabla111121314151617[[#This Row],[Columna7]]) -> 0 | F96: FALSE | G96: =+(Tabla111121314151617[[#This Row],[Columna4]]-Tabla111121314151617[[#This Row],[Columna3]])*24 -> 0
E97: =+IF(Tabla111121314151617[[#This Row],[Columna7]]<0,Tabla111121314151617[[#This Row],[Columna7]]*-1,Tabla111121314151617[[#This Row],[Columna7]]) -> 0 | F97: FALSE | G97: =+(Tabla111121314151617[[#This Row],[Columna4]]-Tabla111121314151617[[#This Row],[Columna3]])*24 -> 0
E98: =+IF(Tabla111121314151617[[#This Row],[Columna7]]<0,Tabla111121314151617[[#This Row],[Columna7]]*-1,Tabla111121314151617[[#This Row],[Columna7]]) -> 0 | F98: FALSE | G98: =+(Tabla111121314151617[[#This Row],[Columna4]]-Tabla111121314151617[[#This Row],[Columna3]])*24 -> 0
E99: =+IF(Tabla111121314151617[[#This Row],[Columna7]]<0,Tabla111121314151617[[#This Row],[Columna7]]*-1,Tabla111121314151617[[#This Row],[Columna7]]) -> 0 | F99: FALSE | G99: =+(Tabla111121314151617[[#This Row],[Columna4]]-Tabla111121314151617[[#This Row],[Columna3]])*24 -> 0
E100: =+IF(Tabla111121314151617[[#This Row],[Columna7]]<0,Tabla111121314151617[[#This Row],[Columna7]]*-1,Tabla111121314151617[[#This Row],[Columna7]]) -> 0 | F100: FALSE | G100: =+(Tabla111121314151617[[#This Row],[Columna4]]-Tabla111121314151617[[#This Row],[Columna3]])*24 -> 0

Sheet ANGEL ESTIVEN (hidden)
A1: EMPLEADO
A2: SALARIO BÁSICO | C2: 368858
A3: AUX. TRANSPORTE | C3: 83140
A4: HORA BÁSICA | C4: =+C2/240 -> 1536.908333
A6: CLASE | B6: FACTOR | C6: VR. HORA | D6: Total Horas | E6: Vr. Horas
A7: HEOD | B7: 1.25 | C7: =+$C$4*B7 -> 1921.135417 | D7: =SUMIF($B$61:$B$100,$A7,$E$61:$E$100) -> 0 | E7: =+IF(G7<0,G7*-1,G7) -> 0 | G7: =SUMIF($B$61:$B$100,$A7,$F$61:$F$100) -> 0
A8: HEON | B8: 1.75 | C8: =+$C$4*B8 -> 2689.589583 | D8: =SUMIF($B$19:$B$100,$A8,$E$19:$E$100) -> 0 | E8: =+IF(G8<0,G8*-1,G8) -> 0 | G8: =SUMIF($B$19:$B$100,$A8,$F$19:$F$100) -> 0
A9: HEFD | B9: 2 | C9: 3073.816667 | D9: =SUMIF($B$19:$B$100,$A9,$E$19:$E$100) -> 0 | E9: 0 | G9: =SUMIF($B$19:$B$100,$A9,$F$19:$F$100) -> 0
A10: HEFN | B10: 2.5 | C10: 3842.270833 | D10: =SUMIF($B$19:$B$100,$A10,$E$19:$E$100) -> 0 | E10: 0 | G10: =SUMIF($B$19:$B$100,$A10,$F$19:$F$100) -> 0
A11: RON | B11: 0.35 | C11: 537.9179167 | D11: =SUMIF($B$19:$B$100,$A11,$E$19:$E$100) -> 0 | E11: 0 | G11: =SUMIF($B$19:$B$99,$A11,$F$19:$F$99) -> 0
A12: RFD | B12: 0.75 | C12: 1152.68125 | D12: =SUMIF($B$19:$B$99,$A12,$E$19:$E$99) -> 0 | E12: 0 | G12: =SUMIF($B$19:$B$99,$A12,$F$19:$F$99) -> 0
A13: RFN | B13: 1.1 | C13: 1690.599167 | D13: =SUMIF($B$19:$B$99,$A13,$E$19:$E$99) -> 0 | E13: 0 | G13: =SUMIF($B$19:$B$99,$A13,$F$19:$F$99) -> 0
A14: Total | E14: =SUM(E7:E13) -> 0 | G14: =SUM(G7:G13) -> 0
A16: Periodo del 1 al 15 Octubre de 2016
A17: Fecha | B17: TIPO HE | C17: ENTRA | D17: SALE | E17: TOTAL | F17: DEVENGADO
A18: Columna1 | B18: Columna2 | C18: Columna3 | D18: Columna4 | E18: Columna5 | F18: Columna6 | G18: Columna7
A19: 2017-04-01 | E19: =+IF(Tabla11112131415161725[[#This Row],[Columna7]]<0,Tabla11112131415161725[[#This Row],[Columna7]]*-1,Tabla11112131415161725[[#This Row],[Columna7]]) -> 0 | F19: =IF(B19=$A$7,SUM(E19*$C$4*$B$7),(IF(B19=$A$8,SUM(E19*$C$4*$B$8),IF(B19=$A$9,SUM(E19*$C$4*$B$9),IF(B19=$A$10,SUM(E19*$C$4*$B$10),IF(B19=$A$11,SUM(E19*$C$4*$B$11),IF(B19=$A$12,SUM(E19*$C$4*$B$12),IF(B19=$A$13,SUM(E19*$C$4*$B$13))))))))) -> FALSE | G19: =+(Tabla11112131415161725[[#This Row],[Columna4]]-Tabla11112131415161725[[#This Row],[Columna3]])*24 -> 0 | I19: DESCANSO
A20: 2017-04-02 | E20: =+IF(Tabla11112131415161725[[#This Row],[Columna7]]<0,Tabla11112131415161725[[#This Row],[Columna7]]*-1,Tabla11112131415161725[[#This Row],[Columna7]]) -> 0 | F20: =IF(B20=$A$7,SUM(E20*$C$4*$B$7),(IF(B20=$A$8,SUM(E20*$C$4*$B$8),IF(B20=$A$9,SUM(E20*$C$4*$B$9),IF(B20=$A$10,SUM(E20*$C$4*$B$10),IF(B20=$A$11,SUM(E20*$C$4*$B$11),IF(B20=$A$12,SUM(E20*$C$4*$B$12),IF(B20=$A$13,SUM(E20*$C$4*$B$13))))))))) -> FALSE | G20: =+(Tabla11112131415161725[[#This Row],[Columna4]]-Tabla11112131415161725[[#This Row],[Columna3]])*24 -> 0 | I20: DOMINGO
A21: 2017-04-03 | E21: =+IF(Tabla11112131415161725[[#This Row],[Columna7]]<0,Tabla11112131415161725[[#This Row],[Columna7]]*-1,Tabla11112131415161725[[#This Row],[Columna7]]) -> 0 | F21: =IF(B21=$A$7,SUM(E21*$C$4*$B$7),(IF(B21=$A$8,SUM(E21*$C$4*$B$8),IF(B21=$A$9,SUM(E21*$C$4*$B$9),IF(B21=$A$10,SUM(E21*$C$4*$B$10),IF(B21=$A$11,SUM(E21*$C$4*$B$11),IF(B21=$A$12,SUM(E21*$C$4*$B$12),IF(B21=$A$13,SUM(E21*$C$4*$B$13))))))))) -> FALSE | G21: =+(Tabla11112131415161725[[#This Row],[Columna4]]-Tabla11112131415161725[[#This Row],[Columna3]])*24 -> 0 | I21: FESTIVO
A22: 2017-04-04 | E22: =+IF(Tabla11112131415161725[[#This Row],[Columna7]]<0,Tabla11112131415161725[[#This Row],[Columna7]]*-1,Tabla11112131415161725[[#This Row],[Columna7]]) -> 0 | F22: FALSE | G22: =+(Tabla11112131415161725[[#This Row],[Columna4]]-Tabla11112131415161725[[#This Row],[Columna3]])*24 -> 0
A23: 2017-04-05 | E23: =+IF(Tabla11112131415161725[[#This Row],[Columna7]]<0,Tabla11112131415161725[[#This Row],[Columna7]]*-1,Tabla11112131415161725[[#This Row],[Columna7]]) -> 0 | F23: FALSE | G23: =+(Tabla11112131415161725[[#This Row],[Columna4]]-Tabla11112131415161725[[#This Row],[Columna3]])*24 -> 0
A24: 2017-04-06 | E24: =+IF(Tabla11112131415161725[[#This Row],[Columna7]]<0,Tabla11112131415161725[[#This Row],[Columna7]]*-1,Tabla11112131415161725[[#This Row],[Columna7]]) -> 0 | F24: =IF(B24=$A$7,SUM(E24*$C$4*$B$7),(IF(B24=$A$8,SUM(E24*$C$4*$B$8),IF(B24=$A$9,SUM(E24*$C$4*$B$9),IF(B24=$A$10,SUM(E24*$C$4*$B$10),IF(B24=$A$11,SUM(E24*$C$4*$B$11),IF(B24=$A$12,SUM(E24*$C$4*$B$12),IF(B24=$A$13,SUM(E24*$C$4*$B$13))))))))) -> FALSE | G24: =+(Tabla11112131415161725[[#This Row],[Columna4]]-Tabla11112131415161725[[#This Row],[Columna3]])*24 -> 0
A25: 2017-04-07 | E25: =+IF(Tabla11112131415161725[[#This Row],[Columna7]]<0,Tabla11112131415161725[[#This Row],[Columna7]]*-1,Tabla11112131415161725[[#This Row],[Columna7]]) -> 0 | F25: FALSE | G25: =+(Tabla11112131415161725[[#This Row],[Columna4]]-Tabla11112131415161725[[#This Row],[Columna3]])*24 -> 0
A26: 2017-04-08 | E26: =+IF(Tabla11112131415161725[[#This Row],[Columna7]]<0,Tabla11112131415161725[[#This Row],[Columna7]]*-1,Tabla11112131415161725[[#This Row],[Columna7]]) -> 0 | F26: FALSE | G26: =+(Tabla11112131415161725[[#This Row],[Columna4]]-Tabla11112131415161725[[#This Row],[Columna3]])*24 -> 0
A27: 2017-04-09 | E27: =+IF(Tabla11112131415161725[[#This Row],[Columna7]]<0,Tabla11112131415161725[[#This Row],[Columna7]]*-1,Tabla11112131415161725[[#This Row],[Columna7]]) -> 0 | F27: FALSE | G27: =+(Tabla11112131415161725[[#This Row],[Columna4]]-Tabla11112131415161725[[#This Row],[Columna3]])*24 -> 0
A28: 2017-04-10 | E28: =+IF(Tabla11112131415161725[[#This Row],[Columna7]]<0,Tabla11112131415161725[[#This Row],[Columna7]]*-1,Tabla11112131415161725[[#This Row],[Columna7]]) -> 0 | F28: =IF(B28=$A$7,SUM(E28*$C$4*$B$7),(IF(B28=$A$8,SUM(E28*$C$4*$B$8),IF(B28=$A$9,SUM(E28*$C$4*$B$9),IF(B28=$A$10,SUM(E28*$C$4*$B$10),IF(B28=$A$11,SUM(E28*$C$4*$B$11),IF(B28=$A$12,SUM(E28*$C$4*$B$12),IF(B28=$A$13,SUM(E28*$C$4*$B$13))))))))) -> FALSE | G28: =+(Tabla11112131415161725[[#This Row],[Columna4]]-Tabla11112131415161725[[#This Row],[Columna3]])*24 -> 0
A29: 2017-04-11 | E29: =+IF(Tabla11112131415161725[[#This Row],[Columna7]]<0,Tabla11112131415161725[[#This Row],[Columna7]]*-1,Tabla11112131415161725[[#This Row],[Columna7]]) -> 0 | F29: FALSE | G29: =+(Tabla11112131415161725[[#This Row],[Columna4]]-Tabla11112131415161725[[#This Row],[Columna3]])*24 -> 0
A30: 2017-04-12 | E30: =+IF(Tabla11112131415161725[[#This Row],[Columna7]]<0,Tabla11112131415161725[[#This Row],[Columna7]]*-1,Tabla11112131415161725[[#This Row],[Columna7]]) -> 0 | F30: =IF(B30=$A$7,SUM(E30*$C$4*$B$7),(IF(B30=$A$8,SUM(E30*$C$4*$B$8),IF(B30=$A$9,SUM(E30*$C$4*$B$9),IF(B30=$A$10,SUM(E30*$C$4*$B$10),IF(B30=$A$11,SUM(E30*$C$4*$B$11),IF(B30=$A$12,SUM(E30*$C$4*$B$12),IF(B30=$A$13,SUM(E30*$C$4*$B$13))))))))) -> FALSE | G30: =+(Tabla11112131415161725[[#This Row],[Columna4]]-Tabla11112131415161725[[#This Row],[Columna3]])*24 -> 0
A31: 2017-04-13 | E31: =+IF(Tabla11112131415161725[[#This Row],[Columna7]]<0,Tabla11112131415161725[[#This Row],[Columna7]]*-1,Tabla11112131415161725[[#This Row],[Columna7]]) -> 0 | F31: =IF(B31=$A$7,SUM(E31*$C$4*$B$7),(IF(B31=$A$8,SUM(E31*$C$4*$B$8),IF(B31=$A$9,SUM(E31*$C$4*$B$9),IF(B31=$A$10,SUM(E31*$C$4*$B$10),IF(B31=$A$11,SUM(E31*$C$4*$B$11),IF(B31=$A$12,SUM(E31*$C$4*$B$12),IF(B31=$A$13,SUM(E31*$C$4*$B$13))))))))) -> FALSE | G31: =+(Tabla11112131415161725[[#This Row],[Columna4]]-Tabla11112131415161725[[#This Row],[Columna3]])*24 -> 0
A32: 2017-04-14 | E32: =+IF(Tabla11112131415161725[[#This Row],[Columna7]]<0,Tabla11112131415161725[[#This Row],[Columna7]]*-1,Tabla11112131415161725[[#This Row],[Columna7]]) -> 0 | F32: FALSE | G32: =+(Tabla11112131415161725[[#This Row],[Columna4]]-Tabla11112131415161725[[#This Row],[Columna3]])*24 -> 0
A33: 2017-04-15 | E33: =+IF(Tabla11112131415161725[[#This Row],[Columna7]]<0,Tabla11112131415161725[[#This Row],[Columna7]]*-1,Tabla11112131415161725[[#This Row],[Columna7]]) -> 0 | F33: FALSE | G33: =+(Tabla11112131415161725[[#This Row],[Columna4]]-Tabla11112131415161725[[#This Row],[Columna3]])*24 -> 0
E34: =+IF(Tabla11112131415161725[[#This Row],[Columna7]]<0,Tabla11112131415161725[[#This Row],[Columna7]]*-1,Tabla11112131415161725[[#This Row],[Columna7]]) -> 0 | F34: FALSE | G34: =+(Tabla11112131415161725[[#This Row],[Columna4]]-Tabla11112131415161725[[#This Row],[Columna3]])*24 -> 0
E35: =+IF(Tabla11112131415161725[[#This Row],[Columna7]]<0,Tabla11112131415161725[[#This Row],[Columna7]]*-1,Tabla11112131415161725[[#This Row],[Columna7]]) -> 0 | F35: FALSE | G35: =+(Tabla11112131415161725[[#This Row],[Columna4]]-Tabla11112131415161725[[#This Row],[Columna3]])*24 -> 0
E36: =+IF(Tabla11112131415161725[[#This Row],[Columna7]]<0,Tabla11112131415161725[[#This Row],[Columna7]]*-1,Tabla11112131415161725[[#This Row],[Columna7]]) -> 0 | F36: FALSE | G36: =+(Tabla11112131415161725[[#This Row],[Columna4]]-Tabla11112131415161725[[#This Row],[Columna3]])*24 -> 0
E37: =+IF(Tabla11112131415161725[[#This Row],[Columna7]]<0,Tabla11112131415161725[[#This Row],[Columna7]]*-1,Tabla11112131415161725[[#This Row],[Columna7]]) -> 0 | F37: =IF(B37=$A$7,SUM(E37*$C$4*$B$7),(IF(B37=$A$8,SUM(E37*$C$4*$B$8),IF(B37=$A$9,SUM(E37*$C$4*$B$9),IF(B37=$A$10,SUM(E37*$C$4*$B$10),IF(B37=$A$11,SUM(E37*$C$4*$B$11),IF(B37=$A$12,SUM(E37*$C$4*$B$12),IF(B37=$A$13,SUM(E37*$C$4*$B$13))))))))) -> FALSE | G37: =+(Tabla11112131415161725[[#This Row],[Columna4]]-Tabla11112131415161725[[#This Row],[Columna3]])*24 -> 0
E38: =+IF(Tabla11112131415161725[[#This Row],[Columna7]]<0,Tabla11112131415161725[[#This Row],[Columna7]]*-1,Tabla11112131415161725[[#This Row],[Columna7]]) -> 0 | F38: =IF(B38=$A$7,SUM(E38*$C$4*$B$7),(IF(B38=$A$8,SUM(E38*$C$4*$B$8),IF(B38=$A$9,SUM(E38*$C$4*$B$9),IF(B38=$A$10,SUM(E38*$C$4*$B$10),IF(B38=$A$11,SUM(E38*$C$4*$B$11),IF(B38=$A$12,SUM(E38*$C$4*$B$12),IF(B38=$A$13,SUM(E38*$C$4*$B$13))))))))) -> FALSE | G38: =+(Tabla11112131415161725[[#This Row],[Columna4]]-Tabla11112131415161725[[#This Row],[Columna3]])*24 -> 0
E39: =+IF(Tabla11112131415161725[[#This Row],[Columna7]]<0,Tabla11112131415161725[[#This Row],[Columna7]]*-1,Tabla11112131415161725[[#This Row],[Columna7]]) -> 0 | F39: =IF(B39=$A$7,SUM(E39*$C$4*$B$7),(IF(B39=$A$8,SUM(E39*$C$4*$B$8),IF(B39=$A$9,SUM(E39*$C$4*$B$9),IF(B39=$A$10,SUM(E39*$C$4*$B$10),IF(B39=$A$11,SUM(E39*$C$4*$B$11),IF(B39=$A$12,SUM(E39*$C$4*$B$12),IF(B39=$A$13,SUM(E39*$C$4*$B$13))))))))) -> FALSE | G39: =+(Tabla11112131415161725[[#This Row],[Columna4]]-Tabla11112131415161725[[#This Row],[Columna3]])*24 -> 0
E40: =+IF(Tabla11112131415161725[[#This Row],[Columna7]]<0,Tabla11112131415161725[[#This Row],[Columna7]]*-1,Tabla11112131415161725[[#This Row],[Columna7]]) -> 0 | F40: =IF(B40=$A$7,SUM(E40*$C$4*$B$7),(IF(B40=$A$8,SUM(E40*$C$4*$B$8),IF(B40=$A$9,SUM(E40*$C$4*$B$9),IF(B40=$A$10,SUM(E40*$C$4*$B$10),IF(B40=$A$11,SUM(E40*$C$4*$B$11),IF(B40=$A$12,SUM(E40*$C$4*$B$12),IF(B40=$A$13,SUM(E40*$C$4*$B$13))))))))) -> FALSE | G40: =+(Tabla11112131415161725[[#This Row],[Columna4]]-Tabla11112131415161725[[#This Row],[Columna3]])*24 -> 0
E41: =+IF(Tabla11112131415161725[[#This Row],[Columna7]]<0,Tabla11112131415161725[[#This Row],[Columna7]]*-1,Tabla11112131415161725[[#This Row],[Columna7]]) -> 0 | F41: FALSE | G41: =+(Tabla11112131415161725[[#This Row],[Columna4]]-Tabla11112131415161725[[#This Row],[Columna3]])*24 -> 0
E42: =+IF(Tabla11112131415161725[[#This Row],[Columna7]]<0,Tabla11112131415161725[[#This Row],[Columna7]]*-1,Tabla11112131415161725[[#This Row],[Columna7]]) -> 0 | F42: =IF(B42=$A$7,SUM(E42*$C$4*$B$7),(IF(B42=$A$8,SUM(E42*$C$4*$B$8),IF(B42=$A$9,SUM(E42*$C$4*$B$9),IF(B42=$A$10,SUM(E42*$C$4*$B$10),IF(B42=$A$11,SUM(E42*$C$4*$B$11),IF(B42=$A$12,SUM(E42*$C$4*$B$12),IF(B42=$A$13,SUM(E42*$C$4*$B$13))))))))) -> FALSE | G42: =+(Tabla11112131415161725[[#This Row],[Columna4]]-Tabla11112131415161725[[#This Row],[Columna3]])*24 -> 0
E43: =+IF(Tabla11112131415161725[[#This Row],[Columna7]]<0,Tabla11112131415161725[[#This Row],[Columna7]]*-1,Tabla11112131415161725[[#This Row],[Columna7]]) -> 0 | F43: =IF(B43=$A$7,SUM(E43*$C$4*$B$7),(IF(B43=$A$8,SUM(E43*$C$4*$B$8),IF(B43=$A$9,SUM(E43*$C$4*$B$9),IF(B43=$A$10,SUM(E43*$C$4*$B$10),IF(B43=$A$11,SUM(E43*$C$4*$B$11),IF(B43=$A$12,SUM(E43*$C$4*$B$12),IF(B43=$A$13,SUM(E43*$C$4*$B$13))))))))) -> FALSE | G43: =+(Tabla11112131415161725[[#This Row],[Columna4]]-Tabla11112131415161725[[#This Row],[Columna3]])*24 -> 0
E44: =+IF(Tabla11112131415161725[[#This Row],[Columna7]]<0,Tabla11112131415161725[[#This Row],[Columna7]]*-1,Tabla11112131415161725[[#This Row],[Columna7]]) -> 0 | F44: FALSE | G44: =+(Tabla11112131415161725[[#This Row],[Columna4]]-Tabla11112131415161725[[#This Row],[Columna3]])*24 -> 0
E45: =+IF(Tabla11112131415161725[[#This Row],[Columna7]]<0,Tabla11112131415161725[[#This Row],[Columna7]]*-1,Tabla11112131415161725[[#This Row],[Columna7]]) -> 0 | F45: FALSE | G45: =+(Tabla11112131415161725[[#This Row],[Columna4]]-Tabla11112131415161725[[#This Row],[Columna3]])*24 -> 0
E46: =+IF(Tabla11112131415161725[[#This Row],[Columna7]]<0,Tabla11112131415161725[[#This Row],[Columna7]]*-1,Tabla11112131415161725[[#This Row],[Columna7]]) -> 0 | F46: =IF(B46=$A$7,SUM(E46*$C$4*$B$7),(IF(B46=$A$8,SUM(E46*$C$4*$B$8),IF(B46=$A$9,SUM(E46*$C$4*$B$9),IF(B46=$A$10,SUM(E46*$C$4*$B$10),IF(B46=$A$11,SUM(E46*$C$4*$B$11),IF(B46=$A$12,SUM(E46*$C$4*$B$12),IF(B46=$A$13,SUM(E46*$C$4*$B$13))))))))) -> FALSE | G46: =+(Tabla11112131415161725[[#This Row],[Columna4]]-Tabla11112131415161725[[#This Row],[Columna3]])*24 -> 0
E47: =+IF(Tabla11112131415161725[[#This Row],[Columna7]]<0,Tabla11112131415161725[[#This Row],[Columna7]]*-1,Tabla11112131415161725[[#This Row],[Columna7]]) -> 0 | F47: FALSE | G47: =+(Tabla11112131415161725[[#This Row],[Columna4]]-Tabla11112131415161725[[#This Row],[Columna3]])*24 -> 0
E48: =+IF(Tabla11112131415161725[[#This Row],[Columna7]]<0,Tabla11112131415161725[[#This Row],[Columna7]]*-1,Tabla11112131415161725[[#This Row],[Columna7]]) -> 0 | F48: =IF(B48=$A$7,SUM(E48*$C$4*$B$7),(IF(B48=$A$8,SUM(E48*$C$4*$B$8),IF(B48=$A$9,SUM(E48*$C$4*$B$9),IF(B48=$A$10,SUM(E48*$C$4*$B$10),IF(B48=$A$11,SUM(E48*$C$4*$B$11),IF(B48=$A$12,SUM(E48*$C$4*$B$12),IF(B48=$A$13,SUM(E48*$C$4*$B$13))))))))) -> FALSE | G48: =+(Tabla11112131415161725[[#This Row],[Columna4]]-Tabla11112131415161725[[#This Row],[Columna3]])*24 -> 0
E49: =+IF(Tabla11112131415161725[[#This Row],[Columna7]]<0,Tabla11112131415161725[[#This Row],[Columna7]]*-1,Tabla11112131415161725[[#This Row],[Columna7]]) -> 0 | F49: FALSE | G49: =+(Tabla11112131415161725[[#This Row],[Columna4]]-Tabla11112131415161725[[#This Row],[Columna3]])*24 -> 0
E50: =+IF(Tabla11112131415161725[[#This Row],[Columna7]]<0,Tabla11112131415161725[[#This Row],[Columna7]]*-1,Tabla11112131415161725[[#This Row],[Columna7]]) -> 0 | F50: =IF(B50=$A$7,SUM(E50*$C$4*$B$7),(IF(B50=$A$8,SUM(E50*$C$4*$B$8),IF(B50=$A$9,SUM(E50*$C$4*$B$9),IF(B50=$A$10,SUM(E50*$C$4*$B$10),IF(B50=$A$11,SUM(E50*$C$4*$B$11),IF(B50=$A$12,SUM(E50*$C$4*$B$12),IF(B50=$A$13,SUM(E50*$C$4*$B$13))))))))) -> FALSE | G50: =+(Tabla11112131415161725[[#This Row],[Columna4]]-Tabla11112131415161725[[#This Row],[Columna3]])*24 -> 0
E51: =+IF(Tabla11112131415161725[[#This Row],[Columna7]]<0,Tabla11112131415161725[[#This Row],[Columna7]]*-1,Tabla11112131415161725[[#This Row],[Columna7]]) -> 0 | F51: FALSE | G51: =+(Tabla11112131415161725[[#This Row],[Columna4]]-Tabla11112131415161725[[#This Row],[Columna3]])*24 -> 0
E52: =+IF(Tabla11112131415161725[[#This Row],[Columna7]]<0,Tabla11112131415161725[[#This Row],[Columna7]]*-1,Tabla11112131415161725[[#This Row],[Columna7]]) -> 0 | F52: FALSE | G52: =+(Tabla11112131415161725[[#This Row],[Columna4]]-Tabla11112131415161725[[#This Row],[Columna3]])*24 -> 0
E53: =+IF(Tabla11112131415161725[[#This Row],[Columna7]]<0,Tabla11112131415161725[[#This Row],[Columna7]]*-1,Tabla11112131415161725[[#This Row],[Columna7]]) -> 0 | F53: FALSE | G53: =+(Tabla11112131415161725[[#This Row],[Columna4]]-Tabla11112131415161725[[#This Row],[Columna3]])*24 -> 0
E54: =+IF(Tabla11112131415161725[[#This Row],[Columna7]]<0,Tabla11112131415161725[[#This Row],[Columna7]]*-1,Tabla11112131415161725[[#This Row],[Columna7]]) -> 0 | F54: FALSE | G54: =+(Tabla11112131415161725[[#This Row],[Columna4]]-Tabla11112131415161725[[#This Row],[Columna3]])*24 -> 0
E55: =+IF(Tabla11112131415161725[[#This Row],[Columna7]]<0,Tabla11112131415161725[[#This Row],[Columna7]]*-1,Tabla11112131415161725[[#This Row],[Columna7]]) -> 0 | F55: FALSE | G55: =+(Tabla11112131415161725[[#This Row],[Columna4]]-Tabla11112131415161725[[#This Row],[Columna3]])*24 -> 0
E56: =+IF(Tabla11112131415161725[[#This Row],[Columna7]]<0,Tabla11112131415161725[[#This Row],[Columna7]]*-1,Tabla11112131415161725[[#This Row],[Columna7]]) -> 0 | F56: FALSE | G56: =+(Tabla11112131415161725[[#This Row],[Columna4]]-Tabla11112131415161725[[#This Row],[Columna3]])*24 -> 0
E57: =+IF(Tabla11112131415161725[[#This Row],[Columna7]]<0,Tabla11112131415161725[[#This Row],[Columna7]]*-1,Tabla11112131415161725[[#This Row],[Columna7]]) -> 0 | F57: FALSE | G57: =+(Tabla11112131415161725[[#This Row],[Columna4]]-Tabla11112131415161725[[#This Row],[Columna3]])*24 -> 0
E58: =+IF(Tabla11112131415161725[[#This Row],[Columna7]]<0,Tabla11112131415161725[[#This Row],[Columna7]]*-1,Tabla11112131415161725[[#This Row],[Columna7]]) -> 0 | F58: FALSE | G58: =+(Tabla11112131415161725[[#This Row],[Columna4]]-Tabla11112131415161725[[#This Row],[Columna3]])*24 -> 0
E59: =+IF(Tabla11112131415161725[[#This Row],[Columna7]]<0,Tabla11112131415161725[[#This Row],[Columna7]]*-1,Tabla11112131415161725[[#This Row],[Columna7]]) -> 0 | F59: FALSE | G59: =+(Tabla11112131415161725[[#This Row],[Columna4]]-Tabla11112131415161725[[#This Row],[Columna3]])*24 -> 0
E60: =+IF(Tabla11112131415161725[[#This Row],[Columna7]]<0,Tabla11112131415161725[[#This Row],[Columna7]]*-1,Tabla11112131415161725[[#This Row],[Columna7]]) -> 0 | F60: FALSE | G60: =+(Tabla11112131415161725[[#This Row],[Columna4]]-Tabla11112131415161725[[#This Row],[Columna3]])*24 -> 0
E61: =+IF(Tabla11112131415161725[[#This Row],[Columna7]]<0,Tabla11112131415161725[[#This Row],[Columna7]]*-1,Tabla11112131415161725[[#This Row],[Columna7]]) -> 0 | F61: =IF(B61=$A$7,SUM(E61*$C$4*$B$7),(IF(B61=$A$8,SUM(E61*$C$4*$B$8),IF(B61=$A$9,SUM(E61*$C$4*$B$9),IF(B61=$A$10,SUM(E61*$C$4*$B$10),IF(B61=$A$11,SUM(E61*$C$4*$B$11),IF(B61=$A$12,SUM(E61*$C$4*$B$12),IF(B61=$A$13,SUM(E61*$C$4*$B$13))))))))) -> FALSE | G61: =+(Tabla11112131415161725[[#This Row],[Columna4]]-Tabla11112131415161725[[#This Row],[Columna3]])*24 -> 0
E62: =+IF(Tabla11112131415161725[[#This Row],[Columna7]]<0,Tabla11112131415161725[[#This Row],[Columna7]]*-1,Tabla11112131415161725[[#This Row],[Columna7]]) -> 0 | F62: FALSE | G62: =+(Tabla11112131415161725[[#This Row],[Columna4]]-Tabla11112131415161725[[#This Row],[Columna3]])*24 -> 0
E63: =+IF(Tabla11112131415161725[[#This Row],[Columna7]]<0,Tabla11112131415161725[[#This Row],[Columna7]]*-1,Tabla11112131415161725[[#This Row],[Columna7]]) -> 0 | F63: FALSE | G63: =+(Tabla11112131415161725[[#This Row],[Columna4]]-Tabla11112131415161725[[#This Row],[Columna3]])*24 -> 0
E64: =+IF(Tabla11112131415161725[[#This Row],[Columna7]]<0,Tabla11112131415161725[[#This Row],[Columna7]]*-1,Tabla11112131415161725[[#This Row],[Columna7]]) -> 0 | F64: FALSE | G64: =+(Tabla11112131415161725[[#This Row],[Columna4]]-Tabla11112131415161725[[#This Row],[Columna3]])*24 -> 0
E65: =+IF(Tabla11112131415161725[[#This Row],[Columna7]]<0,Tabla11112131415161725[[#This Row],[Columna7]]*-1,Tabla11112131415161725[[#This Row],[Columna7]]) -> 0 | F65: FALSE | G65: =+(Tabla11112131415161725[[#This Row],[Columna4]]-Tabla11112131415161725[[#This Row],[Columna3]])*24 -> 0
E66: =+IF(Tabla11112131415161725[[#This Row],[Columna7]]<0,Tabla11112131415161725[[#This Row],[Columna7]]*-1,Tabla11112131415161725[[#This Row],[Columna7]]) -> 0 | F66: FALSE | G66: =+(Tabla11112131415161725[[#This Row],[Columna4]]-Tabla11112131415161725[[#This Row],[Columna3]])*24 -> 0
E67: =+IF(Tabla11112131415161725[[#This Row],[Columna7]]<0,Tabla11112131415161725[[#This Row],[Columna7]]*-1,Tabla11112131415161725[[#This Row],[Columna7]]) -> 0 | F67: FALSE | G67: =+(Tabla11112131415161725[[#This Row],[Columna4]]-Tabla11112131415161725[[#This Row],[Columna3]])*24 -> 0
E68: =+IF(Tabla11112131415161725[[#This Row],[Columna7]]<0,Tabla11112131415161725[[#This Row],[Columna7]]*-1,Tabla11112131415161725[[#This Row],[Columna7]]) -> 0 | F68: FALSE | G68: =+(Tabla11112131415161725[[#This Row],[Columna4]]-Tabla11112131415161725[[#This Row],[Columna3]])*24 -> 0
E69: =+IF(Tabla11112131415161725[[#This Row],[Columna7]]<0,Tabla11112131415161725[[#This Row],[Columna7]]*-1,Tabla11112131415161725[[#This Row],[Columna7]]) -> 0 | F69: FALSE | G69: =+(Tabla11112131415161725[[#This Row],[Columna4]]-Tabla11112131415161725[[#This Row],[Columna3]])*24 -> 0
E70: =+IF(Tabla11112131415161725[[#This Row],[Columna7]]<0,Tabla11112131415161725[[#This Row],[Columna7]]*-1,Tabla11112131415161725[[#This Row],[Columna7]]) -> 0 | F70: =IF(B70=$A$7,SUM(E70*$C$4*$B$7),(IF(B70=$A$8,SUM(E70*$C$4*$B$8),IF(B70=$A$9,SUM(E70*$C$4*$B$9),IF(B70=$A$10,SUM(E70*$C$4*$B$10),IF(B70=$A$11,SUM(E70*$C$4*$B$11),IF(B70=$A$12,SUM(E70*$C$4*$B$12),IF(B70=$A$13,SUM(E70*$C$4*$B$13))))))))) -> FALSE | G70: =+(Tabla11112131415161725[[#This Row],[Columna4]]-Tabla11112131415161725[[#This Row],[Columna3]])*24 -> 0
E71: =+IF(Tabla11112131415161725[[#This Row],[Columna7]]<0,Tabla11112131415161725[[#This Row],[Columna7]]*-1,Tabla11112131415161725[[#This Row],[Columna7]]) -> 0 | F71: =IF(B71=$A$7,SUM(E71*$C$4*$B$7),(IF(B71=$A$8,SUM(E71*$C$4*$B$8),IF(B71=$A$9,SUM(E71*$C$4*$B$9),IF(B71=$A$10,SUM(E71*$C$4*$B$10),IF(B71=$A$11,SUM(E71*$C$4*$B$11),IF(B71=$A$12,SUM(E71*$C$4*$B$12),IF(B71=$A$13,SUM(E71*$C$4*$B$13))))))))) -> FALSE | G71: =+(Tabla11112131415161725[[#This Row],[Columna4]]-Tabla11112131415161725[[#This Row],[Columna3]])*24 -> 0
E72: =+IF(Tabla11112131415161725[[#This Row],[Columna7]]<0,Tabla11112131415161725[[#This Row],[Columna7]]*-1,Tabla11112131415161725[[#This Row],[Columna7]]) -> 0 | F72: =IF(B72=$A$7,SUM(E72*$C$4*$B$7),(IF(B72=$A$8,SUM(E72*$C$4*$B$8),IF(B72=$A$9,SUM(E72*$C$4*$B$9),IF(B72=$A$10,SUM(E72*$C$4*$B$10),IF(B72=$A$11,SUM(E72*$C$4*$B$11),IF(B72=$A$12,SUM(E72*$C$4*$B$12),IF(B72=$A$13,SUM(E72*$C$4*$B$13))))))))) -> FALSE | G72: =+(Tabla11112131415161725[[#This Row],[Columna4]]-Tabla11112131415161725[[#This Row],[Columna3]])*24 -> 0
E73: =+IF(Tabla11112131415161725[[#This Row],[Columna7]]<0,Tabla11112131415161725[[#This Row],[Columna7]]*-1,Tabla11112131415161725[[#This Row],[Columna7]]) -> 0 | F73: =IF(B73=$A$7,SUM(E73*$C$4*$B$7),(IF(B73=$A$8,SUM(E73*$C$4*$B$8),IF(B73=$A$9,SUM(E73*$C$4*$B$9),IF(B73=$A$10,SUM(E73*$C$4*$B$10),IF(B73=$A$11,SUM(E73*$C$4*$B$11),IF(B73=$A$12,SUM(E73*$C$4*$B$12),IF(B73=$A$13,SUM(E73*$C$4*$B$13))))))))) -> FALSE | G73: =+(Tabla11112131415161725[[#This Row],[Columna4]]-Tabla11112131415161725[[#This Row],[Columna3]])*24 -> 0
E74: =+IF(Tabla11112131415161725[[#This Row],[Columna7]]<0,Tabla11112131415161725[[#This Row],[Columna7]]*-1,Tabla11112131415161725[[#This Row],[Columna7]]) -> 0 | F74: FALSE | G74: =+(Tabla11112131415161725[[#This Row],[Columna4]]-Tabla11112131415161725[[#This Row],[Columna3]])*24 -> 0
E75: =+IF(Tabla11112131415161725[[#This Row],[Columna7]]<0,Tabla11112131415161725[[#This Row],[Columna7]]*-1,Tabla11112131415161725[[#This Row],[Columna7]]) -> 0 | F75: FALSE | G75: =+(Tabla11112131415161725[[#This Row],[Columna4]]-Tabla11112131415161725[[#This Row],[Columna3]])*24 -> 0
E76: =+IF(Tabla11112131415161725[[#This Row],[Columna7]]<0,Tabla11112131415161725[[#This Row],[Columna7]]*-1,Tabla11112131415161725[[#This Row],[Columna7]]) -> 0 | F76: FALSE | G76: =+(Tabla11112131415161725[[#This Row],[Columna4]]-Tabla11112131415161725[[#This Row],[Columna3]])*24 -> 0
E77: =+IF(Tabla11112131415161725[[#This Row],[Columna7]]<0,Tabla11112131415161725[[#This Row],[Columna7]]*-1,Tabla11112131415161725[[#This Row],[Columna7]]) -> 0 | F77: FALSE | G77: =+(Tabla11112131415161725[[#This Row],[Columna4]]-Tabla11112131415161725[[#This Row],[Columna3]])*24 -> 0
E78: =+IF(Tabla11112131415161725[[#This Row],[Columna7]]<0,Tabla11112131415161725[[#This Row],[Columna7]]*-1,Tabla11112131415161725[[#This Row],[Columna7]]) -> 0 | F78: FALSE | G78: =+(Tabla11112131415161725[[#This Row],[Columna4]]-Tabla11112131415161725[[#This Row],[Columna3]])*24 -> 0
E79: =+IF(Tabla11112131415161725[[#This Row],[Columna7]]<0,Tabla11112131415161725[[#This Row],[Columna7]]*-1,Tabla11112131415161725[[#This Row],[Columna7]]) -> 0 | F79: FALSE | G79: =+(Tabla11112131415161725[[#This Row],[Columna4]]-Tabla11112131415161725[[#This Row],[Columna3]])*24 -> 0
E80: =+IF(Tabla11112131415161725[[#This Row],[Columna7]]<0,Tabla11112131415161725[[#This Row],[Columna7]]*-1,Tabla11112131415161725[[#This Row],[Columna7]]) -> 0 | F80: FALSE | G80: =+(Tabla11112131415161725[[#This Row],[Columna4]]-Tabla11112131415161725[[#This Row],[Columna3]])*24 -> 0
E81: =+IF(Tabla11112131415161725[[#This Row],[Columna7]]<0,Tabla11112131415161725[[#This Row],[Columna7]]*-1,Tabla11112131415161725[[#This Row],[Columna7]]) -> 0 | F81: FALSE | G81: =+(Tabla11112131415161725[[#This Row],[Columna4]]-Tabla11112131415161725[[#This Row],[Columna3]])*24 -> 0
E82: =+IF(Tabla11112131415161725[[#This Row],[Columna7]]<0,Tabla11112131415161725[[#This Row],[Columna7]]*-1,Tabla11112131415161725[[#This Row],[Columna7]]) -> 0 | F82: FALSE | G82: =+(Tabla11112131415161725[[#This Row],[Columna4]]-Tabla11112131415161725[[#This Row],[Columna3]])*24 -> 0
E83: =+IF(Tabla11112131415161725[[#This Row],[Columna7]]<0,Tabla11112131415161725[[#This Row],[Columna7]]*-1,Tabla11112131415161725[[#This Row],[Columna7]]) -> 0 | F83: FALSE | G83: =+(Tabla11112131415161725[[#This Row],[Columna4]]-Tabla11112131415161725[[#This Row],[Columna3]])*24 -> 0
E84: =+IF(Tabla11112131415161725[[#This Row],[Columna7]]<0,Tabla11112131415161725[[#This Row],[Columna7]]*-1,Tabla11112131415161725[[#This Row],[Columna7]]) -> 0 | F84: FALSE | G84: =+(Tabla11112131415161725[[#This Row],[Columna4]]-Tabla11112131415161725[[#This Row],[Columna3]])*24 -> 0
E85: =+IF(Tabla11112131415161725[[#This Row],[Columna7]]<0,Tabla11112131415161725[[#This Row],[Columna7]]*-1,Tabla11112131415161725[[#This Row],[Columna7]]) -> 0 | F85: FALSE | G85: =+(Tabla11112131415161725[[#This Row],[Columna4]]-Tabla11112131415161725[[#This Row],[Columna3]])*24 -> 0
E86: =+IF(Tabla11112131415161725[[#This Row],[Columna7]]<0,Tabla11112131415161725[[#This Row],[Columna7]]*-1,Tabla11112131415161725[[#This Row],[Columna7]]) -> 0 | F86: FALSE | G86: =+(Tabla11112131415161725[[#This Row],[Columna4]]-Tabla11112131415161725[[#This Row],[Columna3]])*24 -> 0
E87: =+IF(Tabla11112131415161725[[#This Row],[Columna7]]<0,Tabla11112131415161725[[#This Row],[Columna7]]*-1,Tabla11112131415161725[[#This Row],[Columna7]]) -> 0 | F87: FALSE | G87: =+(Tabla11112131415161725[[#This Row],[Columna4]]-Tabla11112131415161725[[#This Row],[Columna3]])*24 -> 0
E88: =+IF(Tabla11112131415161725[[#This Row],[Columna7]]<0,Tabla11112131415161725[[#This Row],[Columna7]]*-1,Tabla11112131415161725[[#This Row],[Columna7]]) -> 0 | F88: FALSE | G88: =+(Tabla11112131415161725[[#This Row],[Columna4]]-Tabla11112131415161725[[#This Row],[Columna3]])*24 -> 0
E89: =+IF(Tabla11112131415161725[[#This Row],[Columna7]]<0,Tabla11112131415161725[[#This Row],[Columna7]]*-1,Tabla11112131415161725[[#This Row],[Columna7]]) -> 0 | F89: FALSE | G89: =+(Tabla11112131415161725[[#This Row],[Columna4]]-Tabla11112131415161725[[#This Row],[Columna3]])*24 -> 0
E90: =+IF(Tabla11112131415161725[[#This Row],[Columna7]]<0,Tabla11112131415161725[[#This Row],[Columna7]]*-1,Tabla11112131415161725[[#This Row],[Columna7]]) -> 0 | F90: FALSE | G90: =+(Tabla11112131415161725[[#This Row],[Columna4]]-Tabla11112131415161725[[#This Row],[Columna3]])*24 -> 0
E91: =+IF(Tabla11112131415161725[[#This Row],[Columna7]]<0,Tabla11112131415161725[[#This Row],[Columna7]]*-1,Tabla11112131415161725[[#This Row],[Columna7]]) -> 0 | F91: FALSE | G91: =+(Tabla11112131415161725[[#This Row],[Columna4]]-Tabla11112131415161725[[#This Row],[Columna3]])*24 -> 0
E92: =+IF(Tabla11112131415161725[[#This Row],[Columna7]]<0,Tabla11112131415161725[[#This Row],[Columna7]]*-1,Tabla11112131415161725[[#This Row],[Columna7]]) -> 0 | F92: FALSE | G92: =+(Tabla11112131415161725[[#This Row],[Columna4]]-Tabla11112131415161725[[#This Row],[Columna3]])*24 -> 0
E93: =+IF(Tabla11112131415161725[[#This Row],[Columna7]]<0,Tabla11112131415161725[[#This Row],[Columna7]]*-1,Tabla11112131415161725[[#This Row],[Columna7]]) -> 0 | F93: FALSE | G93: =+(Tabla11112131415161725[[#This Row],[Columna4]]-Tabla11112131415161725[[#This Row],[Columna3]])*24 -> 0
E94: =+IF(Tabla11112131415161725[[#This Row],[Columna7]]<0,Tabla11112131415161725[[#This Row],[Columna7]]*-1,Tabla11112131415161725[[#This Row],[Columna7]]) -> 0 | F94: FALSE | G94: =+(Tabla11112131415161725[[#This Row],[Columna4]]-Tabla11112131415161725[[#This Row],[Columna3]])*24 -> 0
E95: =+IF(Tabla11112131415161725[[#This Row],[Columna7]]<0,Tabla11112131415161725[[#This Row],[Columna7]]*-1,Tabla11112131415161725[[#This Row],[Columna7]]) -> 0 | F95: FALSE | G95: =+(Tabla11112131415161725[[#This Row],[Columna4]]-Tabla11112131415161725[[#This Row],[Columna3]])*24 -> 0
E96: =+IF(Tabla11112131415161725[[#This Row],[Columna7]]<0,Tabla11112131415161725[[#This Row],[Columna7]]*-1,Tabla11112131415161725[[#This Row],[Columna7]]) -> 0 | F96: FALSE | G96: =+(Tabla11112131415161725[[#This Row],[Columna4]]-Tabla11112131415161725[[#This Row],[Columna3]])*24 -> 0
E97: =+IF(Tabla11112131415161725[[#This Row],[Columna7]]<0,Tabla11112131415161725[[#This Row],[Columna7]]*-1,Tabla11112131415161725[[#This Row],[Columna7]]) -> 0 | F97: FALSE | G97: =+(Tabla11112131415161725[[#This Row],[Columna4]]-Tabla11112131415161725[[#This Row],[Columna3]])*24 -> 0
E98: =+IF(Tabla11112131415161725[[#This Row],[Columna7]]<0,Tabla11112131415161725[[#This Row],[Columna7]]*-1,Tabla11112131415161725[[#This Row],[Columna7]]) -> 0 | F98: FALSE | G98: =+(Tabla11112131415161725[[#This Row],[Columna4]]-Tabla11112131415161725[[#This Row],[Columna3]])*24 -> 0
E99: =+IF(Tabla11112131415161725[[#This Row],[Columna7]]<0,Tabla11112131415161725[[#This Row],[Columna7]]*-1,Tabla11112131415161725[[#This Row],[Columna7]]) -> 0 | F99: FALSE | G99: =+(Tabla11112131415161725[[#This Row],[Columna4]]-Tabla11112131415161725[[#This Row],[Columna3]])*24 -> 0
